Workbook

Sheet MATRIZ DE INDICADORES
D2: MACROPROCESO ESTRATÉGICO | N2: CÓDIGO: ESGr027
D3: PROCESO GESTIÓN SISTEMAS INTEGRADOS | N3: VERSIÓN: 7
D4: MATRIZ DE MEDICIÓN Y SEGUIMIENTO A LOS PROCESOS DE GESTIÓN | N4: VIGENCIA: 2020-03-31
N5: PÁGINA: 1 de 1
L7: FECHA DE ACTUALIZACIÓN: | N7: AÑO | O7: MES | P7: DÍA
N8: 2021 | O8: 2 | P8: 22
B10: ALINEACIÓN DE LOS INDICADORES CON LOS DOCUMENTOS ESTRATÉGICOS Y LOS OBJETIVOS DE CALIDAD
B12: FRENTES DEL PLAN ESTRATÉGICO | C12: LINEAMIENTOS DE LA POLÍTICA DE CALIDAD | D12: OBJETIVOS DE CALIDAD | E12: PROCESO GESTIÓN | F12: ¿QUÉ SE VA A HACER? | G12: ¿QUÉ RECURSOS SE REQUIEREN? | H12: ¿CUÁNDO FINALIZARÁ? | I12: NOMBRE INDICADOR | J12: FÓRMULA | K12: TIPO DE INDICADOR | L12: SEGUIMIENTO MEDICIÓN | M12: META ANUAL | N12: RESULTADO | O12: NIVEL OBTENIDO | P12: ACCESO
B13: Frente Estratégico I: Institución Translocal del siglo 21: Desde la acreditación de programas a la acreditación institucional | C13: La Universidad guía su comportamiento y mejora continua a través de cumplimiento de requisitos definidos en buenas prácticas administrativas que soportan su quehacer diario redundando en la calidad de los procesos y logrando la acreditación de los programas y la acreditación institucional. | D13: 6. Consolidar y visibilizar a la Universidad de Cundinamarca como Institución consistente logrando la acreditación de programas y la acreditación institucional. | E13: Formación y Aprendizaje | F13: Ruta institucional de mejoramiento de resultados SABER PRO Plan de mejoramiento por programa académico | G13: Recursos financieros Recursos tecnológicos e informáticos Medios publicitarios Información documentada Talento Humano | H13: Diciembre 2020 | I13: Saber PRO | J13: Promedio global de resultados saber pro superior a la media nacional | K13: Acreditación | L13: Anual | M13: 147 + 6 PUNTOS | N13: 145 | O13: 1 | P13: MFA-10
E14: Formación y Aprendizaje | F14: Acorde con la asignación de aulas virtuales a los programas académicos, se validara la oportunidad en términos de tiempo frente a la notificación de entrega de los mismos. | G14: Talento Humano (Profesionales asignados) Información Documentada (Cronograma) Recursos tecnológicos | H14: Diciembre 2020 | I14: Oportunidad en la asignación de las aulas virtuales | J14: (Fecha de inicio de actividad académica - Promedio de fecha de entrega de aula virtual) + 5 | K14: Acreditación | L14: Semestral | M14: 5 | N14: -4.1 | O14: 2 | P14: MFA-12
E15: Formación y Aprendizaje | F15: Se revisaran las bases de datos de talento humano frente a los docente contratados en la vigencia con dedicación de tiempo completo en cada uno de los programas académicos con miras a la acreditación | G15: Recursos financieros (Contratación) Talento Humano (Profesores) Información documentada (Perfiles docentes, actividades asignadas) | H15: Diciembre 2020 | I15: Número de profesores con dedicación de tiempo completo | J15: N° de profesores tiempo completo | K15: Acreditación | L15: Semestral | M15: 490 | N15: 501 | O15: 5 | P15: MFA-13
E16: Formación y Aprendizaje | F16: Se validara la relación del número de estudiantes frente a los profesores contratados en la vigencia con el fin de dar cumplimiento a las condiciones de acreditación del CNA para los programas posgraduales (Maestrías) | G16: Talento Humano Información documentada y recursos electrónicos (Bases de datos de Admisiones y Registro, Talento Humano y Desarrollo Académico) | H16: Diciembre 2020 | I16: Relación profesor - estudiante (Maestrías) | J16: N° de estudiantes por programa académico / Total de profesores que prestan servicio al programa | K16: Acreditación | L16: Semestral | M16: 20 | N16: 10 | O16: 5 | P16: MFA-14
E17: Formación y Aprendizaje | F17: Se validara la relación del número de estudiantes frente a los profesores contratados en la vigencia con el fin de dar cumplimiento a las condiciones de acreditación del CNA para los programas de pregrado y postgrado (Especializaciones) | G17: Talento Humano Información documentada y recursos electrónicos (Bases de datos de Admisiones y Registro, Talento Humano y Desarrollo Académico) | H17: Diciembre 2020 | I17: Relación profesor - estudiante | J17: N° de estudiantes por programa académico / Total de profesores que prestan servicio al programa | K17: Acreditación | L17: Semestral | M17: 30 | N17: 14 | O17: 5 | P17: MFA-15
E18: Formación y Aprendizaje | F18: Verificar el impacto de los resultados de aprendizaje por cada uno de los programas académicos | G18: Talento Humano Información documentada (Bases de datos de Admisiones y Registro) | H18: Diciembre 2020 | I18: Resultados de aprendizaje | J18: N° de estudiantes promovidos / N° total de estudiantes matriculados * 100 | K18: Acreditación | L18: Semestral | M18: 0.89 | N18: 0.87 | O18: 4 | P18: MFA-16
E19: Formación y Aprendizaje | F19: Evaluar el estado de los convenios vigentes entre la Universidad y las distintas partes interesadas externas, con el fin de dinamizar los convenios producto de la interacción con la sociedad, propendiendo por el mejoramiento de la calidad de vida de las comunidades | G19: Talento Humano dedicado al seguimiento de Convenios y su mejoramiento continuo Tecnológicos apoyados en herramientas como Office o plataforma Institucional para la custodia y análisis de los convenios establecidos Financieros al establecer convenios que generen recursos para el funcionamiento del proceso | H19: Diciembre 2020 | I19: Vinculación efectiva con la comunidad y el sector productivo | J19: (#convenios en uso / # total de convenios vigentes) * 100 | K19: Acreditación | L19: Semestral | M19: 0.8 | N19: 0.13 | O19: 1 | P19: MFA-17
E20: Bienes y Servicios - Recursos Físicos | F20: *Creación del cronograma de Mantenimiento a la infraestructura física de espacios académicos *Creación formato reporte de mantenimiento y alimentación del cronograma de Mantenimiento a la infraestructura física de espacios académicos frente a las actividades realizadas y las reprogramadas | G20: Talento Humano calificado para realizar las actividades de mantenimiento a la infraestructura física Documental con la aplicación del procedimiento ABSP09 según se requiera Presupuesto rubro de mantenimiento para asegurar la realización de actividades necesarias Presupuesto rubro materiales y suministros para completar la operación de mantenimiento a la infraestructura física | H20: Diciembre 2020 | I20: Mantenimiento a infraestructura física de espacios académicos | J20: (Actividades ejecutadas / Actividades planificadas) * 100 | K20: Acreditación | L20: Semestral | M20: 0.7 | N20: 0.99 | O20: 5 | P20: ABS-6
E21: Bienes y Servicios | F21: Aplicación de las políticas de inclusión en el desarrollo de proyectos de infraestructura física, buscando beneficiar a los miembros de la Comunidad Universitaria que requieren facilidades en el acceso a las Instalaciones | G21: Talento Humano especializado como Arquitectos, Ingenieros Civiles y de obra Tecnológico por medio de herramientas digitales que permitan diagramar planos que incluyan aspectos inclusivos Presupuesto rubro de Planta Física para la ejecución de éstos proyectos | H21: Diciembre 2020 | I21: Renovación y actualización de obras con enfoque inclusivo (eliminación de barreras arquitectónicas) | J21: (Recursos ejecutados relacionados a inclusión / Recursos viabilizados relacionados a inclusión) * 100 | K21: Acreditación | L21: Semestral | M21: 0.7 | N21: 0.82 | O21: 5 | P21: ABS-7
E22: Formación y Aprendizaje | F22: Evaluar el estado de los convenios vigentes entre la Universidad y las distintas partes interesadas externas, con el fin de dinamizar los convenios producto de la interacción con la sociedad, propendiendo por el mejoramiento de la calidad de vida de las comunidades | G22: Talento Humano dedicado al seguimiento de Convenios y su mejoramiento continuo Tecnológicos apoyados en herramientas como Office o plataforma Institucional para la custodia y análisis de los convenios establecidos Financieros al establecer convenios que generen recursos para el funcionamiento del proceso | H22: Diciembre 2020 | I22: Vinculación efectiva con la comunidad y el sector productivo | J22: (#convenios en uso / # total de convenios vigentes) * 100 | K22: Acreditación | L22: Semestral | M22: 0.8 | N22: 0.1 | O22: 1 | P22: MFA-17
E23: Bienestar Universitario | F23: Convocatorias por distintos medios de divulgación (página web. perifoneo, correo electrónico, pantallas digitales) a actividades propuestas en el cronograma institucional, así como actividades internas y externas donde participe la Institución, planteadas a través de la oficina de Bienestar Universitario | G23: Talento Humano para el desarrollo de las actividades propuestas en los cronograma de actividades Financieros como recursos para implementar las distintas jornadas de participación para la Comunidad Universitaria Soporte Documental de las asistencias a los eventos organizados por Bienestar | H23: Diciembre 2020 | I23: Participación de la Comunidad Universitaria | J23: No. de integrantes de la comunidad universitaria (estudiantes, docentes y administrativos) que participan en las actividades desarrolladas por Bienestar Universitario * 100 / No. de participantes totales de la comunidad universitaria propuestos en el Plan de Acción para la vigencia | K23: Acreditación | L23: Semestral | M23: 0.9 | N23: 1 | O23: 5 | P23: MBU-9
E24: Planeación Institucional | F24: Trimestralmente se realizan seguimientos al plan de acción, mediante la plataforma institucional, este seguimiento se socializa vía correo electrónico con el rector, vicerrectores, secretaria general y con los órganos consultivos que los requieran | G24: Talento Humano que realice el seguimiento al cumplimiento de las metas del Plan de Acción y que gestione los resultados ante la Alta Dirección Comunicaciones que se realicen por medios electrónicos y que permitan la consecución de los datos requeridos para la medición | H24: Diciembre 2020 | I24: Cumplimiento del desempeño, evaluación y seguimiento a los documentos estratégicos | J24: % de Cumplimiento acumulado del Plan de Acción * 100 / % Esperado de Plan de Acción | K24: Eficacia | L24: Semestral | M24: 0.9 | N24: 1 | O24: 5 | P24: EPI-3
E25: Autoevaluación y Acreditación | F25: *Cronograma (Planeación) *Aplicación de la normatividad decreto 1330 de 2019 *Implementación del sistema SACES UDEC (en desarrollo) *Radicación en plataforma SACES *Visita de pares colaborativos *Visita de pares por parte del MEN | G25: Recurso financiero Talento Humano Sistemas de información Recursos tecnológicos Información documentada (estudios de mercado, procedimientos y guías) | H25: Diciembre 2020 | I25: Eficacia en la obtención de registros calificados | J25: Número de registros calificados otorgados / Total de solicitudes de registros calificados * 100 | K25: Eficacia | L25: Semestral | M25: 1 | N25: 1 | O25: 4 | P25: EAA-1
E26: Autoevaluación y Acreditación | F26: Proceso de autoevaluación: 1. Socialización y apertura de la autoevaluación 2. Ponderación 3. Recolección de información estadística y documental 4. Aplicación de instrumentos de percepción 5. Emisión de juicio de calidad 6. Documento Informe de Autoevaluación 7. Formulación y aprobación del plan de mejoramiento 8. Ejecución del plan de mejoramiento 9. Socialización de resultados | G26: Recursos financieros Recursos tecnológicos (aplicativo institucional Modulo de aseguramiento de la calidad educativa) Información documentada (Acta de consejo de facultad, acta del consejo académico y procedimientos del SGC) Talento Humano | H26: Diciembre 2022 | I26: Cumplimiento de los planes de mejoramiento producto de la autoevaluación | J26: Nivel de avance de los planes de mejoramiento derivados de la autoevaluación | K26: Eficacia | L26: Semestral | M26: 0.8 | N26: 0.55 | O26: 2 | P26: EAA-2
E27: Autoevaluación y Acreditación | F27: *Realizar proceso de condiciones iniciales en coherencia a los lineamientos del CNA *Recibir visita por parte del consejero del CNA *Proceso de autoevaluación: 1. Socialización y apertura 2. Ponderación 3. Recolección de información estadística y documental 4. Aplicación de instrumentos de percepción 5. Emisión de juicio de calidad 6. Documento Informe de Autoevaluación 7. Formulación y aprobación del plan de mejoramiento 8. Ejecución 9. Socialización de resultados 10. Radicación ante el CNA 11. Recibir visita de pares CNA (Responsable pares del CNA) 12. Informe de visita de pares (Responsable pares del CNA) | G27: Recursos financieros Talento Humano Recursos tecnológicos (Aplicativo SACES UDEC-en desarrollo) Información documentada (Procedimientos del proceso EAA) | H27: Diciembre 2020 | I27: Acreditación de programas en alta calidad | J27: Número de acreditaciones otorgadas / Total de resoluciones emitidas por el MEN * 100 | K27: Eficacia | L27: Semestral | M27: 1 | N27: 0 | O27: 1 | P27: EAA-3
E28: Autoevaluación y Acreditación | F28: Se realizará una sensibilización sobre el proceso de autoevaluación Se parametrizara la encuesta en el modulo de aseguramiento de la calidad educativa | G28: Tecnológicos (Modulo de aseguramiento de la calidad educativa) Comunicaciones - Difusión de la información | H28: Diciembre 2020 | I28: Participación de estudiantes en la autoevaluación de los programas académicos | J28: N° de estudiantes que participaron en la autoevaluación / Total de estudiantes del programa *100 (Aplica solo para programas que presenten autoevaluación durante el desarrollo de la vigencia) | K28: Acreditación | L28: Anual | M28: 0.4 | N28: 0.56 | O28: 5 | P28: EAA-4
E29: Autoevaluación y Acreditación | F29: Se realizará una sensibilización sobre el proceso de autoevaluación Se parametrizara la encuesta en el modulo de aseguramiento de la calidad educativa | G29: Tecnológicos (Modulo de aseguramiento de la calidad educativa) Comunicaciones - Difusión de la información | H29: Diciembre 2020 | I29: Participación de docentes en la autoevaluación de los programas académicos | J29: N° de docentes que participaron en la autoevaluación / Total de docentes vinculados en el programa * 100 (Aplica solo para programas que presenten autoevaluación durante el desarrollo de la vigencia) | K29: Acreditación | L29: Anual | M29: 0.4 | N29: 0.65 | O29: 5 | P29: EAA-5
E30: Autoevaluación y Acreditación | F30: Se realizará una sensibilización sobre el proceso de autoevaluación Se parametrizara la encuesta en el modulo de aseguramiento de la calidad educativa | G30: Tecnológicos (Modulo de aseguramiento de la calidad educativa) Comunicaciones - Difusión de la información | H30: Diciembre 2020 | I30: Participación de graduados en la autoevaluación de los programas académicos | J30: N° de graduados que participaron en la autoevaluación / Total de graduados del programa * 100 (Aplica solo para programas que presenten autoevaluación durante el desarrollo de la vigencia) | K30: Acreditación | L30: Anual | M30: 0.2 | N30: 0.11 | O30: 4 | P30: EAA-6
E31: Autoevaluación y Acreditación | F31: Se realizará seguimiento al cumplimiento del cronograma de autoevaluación acorde con sus fases: 1.Ponderación 2.Recolección de información 3.Aplicación de instrumentos de percepción 4.Emisión de juicios de calidad 5.Plan de mejoramiento 6.Informe de autoevaluación | G31: Tecnológicos (Modulo de aseguramiento de la calidad educativa) Talento Humano (Profesionales asignados) | H31: Diciembre 2020 | I31: Oportunidad en el cumplimiento del cronograma de autoevaluación | J31: N° de actividades ejecutadas oportunamente / Total de actividades * 100 | K31: Acreditación | L31: Trimestral | M31: 1 | N31: 1 | O31: 4 | P31: EAA-7
E32: Autoevaluación y Acreditación | F32: Se llevara a cabo la verificación de evidencias donde se identifique el nivel de cumplimiento de los planes de contingencia de las licenciaturas que perdieron el registro calificado hasta su culminación | G32: Talento Humano (Profesionales asignados) Información documentada (Evidencias, soportes de actividades y cronograma) | H32: Diciembre 2020 | I32: Cumplimiento de los planes de contingencia | J32: Total de actividades ejecutadas oportunamente / Total de actividades programadas | K32: Eficiencia | L32: Trimestral | M32: 1 | N32: 0.78 | O32: 4 | P32: EAA-8
B33: Frente Estratégico II: Cultura Académica, Científica y Formativa | C33: Satisface las necesidades y expectativas de la comunidad académica mediante procesos de formación y aprendizaje, ciencia, tecnología e investigación e interacción social universitaria. | D33: 2. Asegurar una cultura académica que privilegie el saber, el conocimiento y la formación para la vida con seres humanos integrales, responsables, solidarios y tolerantes. | E33: Interacción Universitaria | F33: Informe del impacto de las actividades de educación continuada Estadísticas con base a los resultados obtenidos en las actividades de educación continuada | G33: Talento Humano que analice y realice los informes requeridos Organización de Funciones al interior del Proceso Tecnológicos apoyados en las herramientas digitales con las que cuenta la Universidad Económicos a fin de garantizar convenios de asociación | H33: Diciembre 2020 | I33: Evaluación de las actividades desarrolladas - Educación Continuada | J33: (# Evaluaciones Calificadas ≥ 4) * 100 / Total Evaluaciones | K33: Eficiencia | L33: Semestral | M33: 0.8 | N33: 0.96 | O33: 5 | P33: MIU-1
E34: Interacción Universitaria | F34: Medir el impacto que tienen las pasantías y las practicas que realizan los estudiantes de los diferentes programas académicos, por medio de la aplicación de encuestas de satisfacción, que permitan establecer acciones de mejora en caso de ser necesarias | G34: Talento Humano del proceso que recopile las encuestas y determine el impacto de los resultados obtenidos Tecnológicos como herramientas ofimáticas que permitan presentar informes a la Alta Dirección | H34: Diciembre 2020 | I34: Evaluación de la percepción de las empresas | J34: (# Evaluaciones Calificadas ≥ 4) * 100 / Total Evaluaciones | K34: Eficiencia | L34: Semestral | M34: 0.8 | N34: 0.38 | O34: 1 | P34: MIU-2
E35: Interacción Universitaria | F35: Medir la percepción que tiene la Institución o la Empresa hacia las actividades que desarrollan los estudiantes de los diferentes programas académicos, por medio de la aplicación de encuestas de satisfacción, que permitan establecer acciones de mejora en caso de ser necesarias | G35: Talento Humano del proceso que recopile las encuestas y determine el impacto de los resultados obtenidos Tecnológicos como herramientas ofimáticas que permitan presentar informes a la Alta Dirección | H35: Diciembre 2020 | I35: Evaluación de la Institución o Empresa hacia el pasante o practicante | J35: (# Evaluaciones Calificadas ≥ 4) * 100 / Total Evaluaciones | K35: Eficiencia | L35: Semestral | M35: 0.8 | N35: 0.3 | O35: 1 | P35: MIU-3
E36: Interacción Universitaria | F36: Determinar los impactos de las actividades de Proyección Social en la región Medir los impactos de los proyectos, programas y actividades realizados por los distintos programas frente a la Comunidad | G36: Talento Humano del proceso que recopile las encuestas y determine el impacto de los resultados obtenidos Tecnológicos como herramientas ofimáticas que permitan presentar informes a la Alta Dirección Financieros por medio de proyectos de inversión o asignación de recursos para ejecutar en la Comunidad | H36: Diciembre 2020 | I36: Evaluación de las actividades de Proyección Social | J36: (# Evaluaciones Calificadas ≥ 4) * 100 / Total Evaluaciones | K36: Eficiencia | L36: Semestral | M36: 0.8 | N36: 0.95 | O36: 5 | P36: MIU-4
B37: Frente Estratégico III: Educación para la vida, los valores democráticos, la civilidad y la libertad | C37: La Universidad de Cundinamarca se compromete con una formación para la vida, valores democráticos, civilidad y libertad | D37: 1. Ofrecer formación educadora para la vida, los valores democráticos, la civilidad y libertad | E37: Apoyo Académico | F37: * Tener al día el inventario de Software académico. * Validar los Software que fueron aprobados para su adquisición y renovación con recursos asignados. (Banco Universitario de Proyectos) | G37: Financieros (presupuesto aprobado), talento humano (administrativo), tecnológico, red (acceso a internet), información documentada (procedimientos de contratación ABSP01-ABSP15) | H37: Diciembre 2020 | I37: Disponibilidad de Softwares Académicos | J37: Total de softwares disponibles de los requeridos por la academia/Total de Softwares requeridos por la academia (pregrado y posgrado) * 100 | K37: Eficacia | L37: Semestral | M37: 1 | N37: 0.87 | O37: 4 | P37: AAA-1
E38: Apoyo Académico | F38: *Solicitar a la dirección de Investigación con frecuencia anual los equipos que requieren calibración. *Solicitar el presupuesto de cuerdo a las solicitudes recibidas. *Priorizar las solicitudes y determinar los equipos reportados por investigación. *Gestionar ABS - tramité precontractual y contractual *Entregar los equipos calibrados al docente cuando se requiera, de lo contrario, se coloca directamente en el espacio académico de la UCundinamarca. | G38: Financieros (presupuesto aprobado), talento humano (AAA-MCT-PROVEEDOR), tecnológico, red (acceso a internet), información documentada (procedimientos de contratación ABSP01-ABSP15) | H38: Diciembre 2020 | I38: Calibración de Equipos y elementos educativos de investigación | J38: Total de equipos con calibración realizada / 100% de total de equipos reportados por la Dirección de Investigación y con presupuesto asignado. | K38: Eficiencia | L38: Semestral | M38: 1 | N38: 0.92 | O38: 4 | P38: AAA-2
E39: Apoyo Académico | F39: *Reportar las necesidades de mantenimiento preventivo y correctivo de los elementos educativos de cada uno de los espacios académicos adscritos a la Unidad de Apoyo Académico. *Solicitar presupuesto para la ejecución de los mantenimientos. *Ejecutar de acuerdo al PAA. *Tramite precontractual y contractual. | G39: Financieros (presupuesto aprobado), talento humano (administrativo), tecnológico, red (acceso a internet), información documentada (procedimientos de contratación ABSP01-ABSP15) | H39: Diciembre 2020 | I39: Mantenimiento a Elementos Educativos | J39: Total de Elementos Educativos Con Mantenimiento Realizado/ Total de Elementos Educativos que Requieren Mantenimiento | K39: Acreditación | L39: Semestral | M39: 1 | N39: 1 | O39: 4 | P39: AAA-5
E40: Apoyo Académico | F40: * Verificar la disponibilidad y funcionamiento del acceso a las bases de datos. * Validar los recursos electrónicos que fueron aprobados para su adquisición y/o renovación con recursos asignados (Banco Universitario de Proyectos) | G40: Talento humano (administrativo), tecnológico: plataforma - SIS "Gestión Apoyo Académico", red (acceso a internet), información documentada: procedimientos (AAAP01 - AAAP05) | H40: Diciembre 2020 | I40: Disponibilidad de recursos electrónicos | J40: Total de recursos electrónicos disponibles de los requeridos por la academia/Total de recursos electrónico requeridos por la academia (pregrado y posgrado) * 100 | K40: Acreditación | L40: Semestral | M40: 1 | N40: 1 | O40: 4 | P40: AAA-6
E41: Apoyo Académico | F41: * Verificar el listado de espacios académicos (total) en el aplicativo Gestión Apoyo Académico. * Estado actual de los espacios académicos | G41: Talento humano (administrativo), tecnológico: plataforma - SIS "Gestión Apoyo Académico", red (acceso a internet), información documentada: procedimientos (AAAP01 - AAAP05) | H41: Diciembre 2020 | I41: Disponibilidad de espacios académicos | J41: Espacios académicos disponibles (condiciones aptas para su uso) requeridos por la academia / total de espacios académicos requeridos por la academia * 100 | K41: Acreditación | L41: Semestral | M41: 1 | N41: 1 | O41: 4 | P41: AAA-7
E42: Apoyo Académico | F42: * Verificación de la disponibilidad del Material bibliográfico en las bibliotecas. * Validar los recursos asignados para la compra de nuevo material, contra el material bibliográfico aprobado por los coordinadores de programa. (Banco Universitario de proyectos - Aplicativo Gestión Apoyo Académico- Solicitud Material bibliográfico). | G42: Talento humano (administrativo), tecnológico: plataforma - SIS "Gestión Apoyo Académico", red (acceso a internet), información documentada: procedimientos (AAAP01 - AAAP05) | H42: Diciembre 2020 | I42: Disponibilidad de material bibliográfico | J42: Total de material bibliográfico disponibles de los requeridos por la academia/Total de material bibliográfico requeridos por la academia en la vigencia anterior (pregrado y posgrado) * 100 | K42: Acreditación | L42: Anual | M42: 1 | N42: 0 | O42: 1 | P42: AAA-8
E43: Apoyo Académico | F43: * Validación del estado de los elementos educativos por medio del formato AAAr054 y verificar su estado. * Validación de la disponibilidad de los espacios académicos por medio del aplicativo gestión Apoyo Académico, versus las solicitudes realizadas por los coordinadores de programa. | G43: Talento humano (administrativo), tecnológico: plataforma - SIS "Gestión Apoyo Académico", red (acceso a internet), información documentada: procedimientos (AAAP01 - AAAP05) | H43: Diciembre 2020 | I43: Suficiencia de elementos educativos | J43: Elementos educativos suficientes de los requeridos por la academia/ total de elementos educativos requeridos por la academia (pregrado y posgrado) * 100 | K43: Acreditación | L43: Semestral | M43: 1 | N43: 1 | O43: 4 | P43: AAA-9
E44: Apoyo Académico | F44: * Validación de la disponibilidad de los espacios académicos por medio del aplicativo gestión Apoyo Académico, versus las solicitudes realizadas por los coordinadores de programa. | G44: Talento humano, tecnológico: plataforma - SIS "Gestión Apoyo Académico", red (acceso a internet), información documentada: procedimientos (AAAP01 - AAA+G20:G21P05) | H44: Diciembre 2020 | I44: Suficiencia de espacios académicos | J44: Total de espacios académicos disponibles de los requeridos por la academia/Total de espacio académicos requeridos por la academia (pregrado y posgrado) * 100 | K44: Acreditación | L44: Semestral | M44: 1 | N44: 1 | O44: 4 | P44: AAA-10
E45: Apoyo Académico | F45: *Realizar la validación de los reportes de las solicitudes realizadas por parte de los coordinadores de programa para el uso de los espacios académicos de acuerdo a los cupos usados de los grupos de cada núcleo temático | G45: Talento humano (administrativo), tecnológico: plataforma - SIS "Gestión Apoyo Académico", red (acceso a internet), información documentada: procedimientos (AAAP01 - AAAP05) | H45: Diciembre 2020 | I45: Recursos de apoyo - Usabilidad de laboratorios | J45: Número de visitas a los laboratorios / Total de estudiantes activos para el uso del laboratorio * 100 | K45: Semestral | L45: Semestral | M45: 2 | N45: 0 | O45: 1 | P45: AAA-11
E46: Apoyo Académico | F46: * Realizar el reporte del sistema de gestión bibliotecaria con el fin de obtener la usabilidad por parte de los estudiantes de los recursos bibliográficos (Recursos Electrónicos, Libros digitales) | G46: Talento humano (administrativo), tecnológico: plataforma - SIS "Gestión Apoyo Académico", red (acceso a internet), información documentada: procedimientos (AAAP01 - AAAP05) | H46: Diciembre 2020 | I46: Usabilidad de recursos bibliográficos, (bases de datos, libros impresos y digitales) | J46: Número de consultas en relación con los recursos bibliográficos de la Ucundiamarca | K46: Semestral | L46: Semestral | M46: 70000 | N46: 88558 | O46: 5 | P46: AAA-12
E47: Bienestar Universitario | F47: Realización de actividades Culturales y Deportivas, por medio de jornadas programadas con el fin de asegurar la participación de la Comunidad Universitaria, así como el Control de asistencias a los grupos de formación cultural y deportiva | G47: Talento Humano que presten los servicios en los grupos culturales y deportivos Financieros por medio de contratación de profesionales que dirijan los grupos culturales y deportivos Soporte Documental de las asistencias a estos grupos culturales y deportivos | H47: Diciembre 2020 | I47: Aumento de la participación en los grupos culturales y deportivos | J47: 1- (# de participantes en el semestre actual * 100) / # de participantes en el semestre anterior | K47: Eficacia | L47: Semestral | M47: 0.15 | N47: 0.28 | O47: 5 | P47: MBU-7
E48: Bienestar Universitario | F48: Acompañamiento interdisciplinar antes, durante y después de las actividades planificadas, a los miembros de la Comunidad Universitaria que participan en procesos de formación | G48: Talento Humano capacitado que brinde acompañamiento integral a los participantes Financieros por medio de consecución de profesionales (fisioterapeutas, psicólogos u enfermeras) Soporte Documental Elementos terapéuticos para el desarrollo de las actividades de acompañamiento | H48: Diciembre 2020 | I48: Mejoramiento de la calidad de vida | J48: (# de personas que mejoraron su calidad de vida / # total de personas encuestadas) *100 | K48: Eficiencia | L48: Semestral | M48: 0.7 | N48: 0 | O48: 1 | P48: MBU-8
E49: Bienes y Servicios - Almacén | F49: *Elaboración de Cronograma de Tomas físicas de inventario *Publicación del Cronograma para conocimiento de la Comunidad Universitaria *Toma física de inventarios en las distintas dependencias de la Universidad, en su sede, seccionales y extensiones | G49: Talento Humano competente para la realización de las tomas físicas de inventario y elaboración de cronogramas de cumplimiento Tecnológico para la consolidación de información de inventarios y actualización de inventarios de la Institución | H49: Diciembre 2020 | I49: Toma física de inventarios | J49: (Toma Física ejecutada + Toma Física reprogramada con Justificación) + Extras / (Toma Física programada) + Extras | K49: Eficacia | L49: Trimestral | M49: 0.95 | N49: 0 | O49: 1 | P49: ABS-1
E50: Bienes y Servicios - Almacén | F50: *Consolidación del histórico de consumos *Gestionar la adquisición de suministros de papelería *Controlar el consumo de los suministros de papelería | G50: Talento Humano para la gestión y entrega de los suministros Tecnológico que permita mantener en tiempo real información de los stocks disponibles de papelería Infraestructura para asegurar el buen estado de los suministros | H50: Diciembre 2020 | I50: Oportunidad en la entrega de suministros de papelería | J50: (# Pedidos entregados ≤ 15 días * 100) / # Total de Pedidos | K50: Eficiencia | L50: Trimestral | M50: 0.95 | N50: 1 | O50: 5 | P50: ABS-2
E51: Bienes y Servicios - Recursos Físicos | F51: Medir la prestación de los servicios que realizan los funcionarios de Recursos Físicos en la atención de solicitudes que se realizan por medio de la plataforma Institucional, con el fin de determinar acciones de mejora posteriores que aumenten la satisfacción de las partes interesadas | G51: Tecnológicos por medio de la Plataforma Institucional para recopilar las necesidades y estado de satisfacción del usuario Talento Humano para la consolidación de informe, análisis de necesidades e informes a la Alta Dirección | H51: Diciembre 2020 | I51: Evaluación de los servicios prestados por Recursos Físicos y Servicios Generales | J51: (Promedio de calificación del servicio/Máxima calificación esperada) * 100 | K51: Eficacia | L51: Semestral | M51: 0.95 | N51: 0.97 | O51: 5 | P51: ABS-5
B52: Frente Estratégico IV: Ciencia, Tecnología, Investigación, Innovación | C52: Satisface las necesidades y expectativas de la comunidad académica mediante procesos de formación y aprendizaje, ciencia, tecnología e investigación e interacción social universitaria. | D52: 3. Generar Investigación aplicada, sistemática y de impacto | E52: Ciencia, Tecnología e Innovación | F52: 1.MTC Informa a los investigadores la apertura de las convocatorias para categorización ante Colciencias ( se apertura cada 2 Años), 2. Los docentes se presenten a la convocatoria. 3. Realizar consolidado de los investigadores categorizados. 4. Realizar seguimiento a los investigadores categorizados los cuales deben estar vinculados a la UDEC. 5. Reportar el indicador. | G52: Talento Humano (Profesionales asignados), Tecnológicos: software y hardware , Correo electrónico, Herramientas de ofimática, PC, Material de oficina | H52: Diciembre 2020 | I52: Investigadores de la universidad reconocidos ante Colciencias | J52: Número ponderado de investigadores de la universidad sujeto a convocatoria de Colciencias | K52: Eficacia | L52: Semestral | M52: 55 | N52: 63 | O52: 5 | P52: MCT-2
E53: Ciencia, Tecnología e Innovación | F53: 1.MTC Informa a los grupos la apertura de las convocatorias para categorización ante Colciencias ( se apertura cada 2 Años), 2. Los dGruposse presenten a la convocatoria. 3. Realizar consolidado de los Grupos categorizados. 4. Realizar seguimiento a nuevos grupos categorizados que se vinculen a la UDEC . 5. reportar el indicador. | G53: Recursos Human Tecnológicos: software y hardware, Herramientas de ofimática, PC, Material de oficina | H53: Diciembre 2020 | I53: Grupos de investigación avalados institucionalmente y registrados ante Colciencias | J53: Numero de Grupos de investigación avalados institucionalmente sujeto a convocatoria de Colciencias | K53: Eficacia | L53: Semestral | M53: 30 | N53: 33 | O53: 5 | P53: MCT-3
E54: Ciencia, Tecnología e Innovación | F54: 1. Realizar solicitudes a los lideres de grupos de investigación para registrar la producción el GrupLAC. 2. Registro de los producción por parte de los lideres de grupo. 3. Verificación de producción a través del instuLAC de Colciencias. 4. Generar reporte de indicadores. | G54: Recursos Humanos (Profesionales asignados), Tecnológicos: software y hardware, Correo electrónico, Herramientas de ofimática, PC, Material de oficina | H54: Diciembre 2020 | I54: Publicación de Capítulos de libro | J54: Número de capítulos de libros publicados en el periodo | K54: Eficiencia | L54: Semestral | M54: 35 | N54: 31 | O54: 4 | P54: MCT-4
E55: Ciencia, Tecnología e Innovación | F55: 1. Realizar solicitudes a los lideres de semilleros de investigación para registrar los resultados de investigación por programa 2. Generar reporte de indicadores. | G55: Recursos Humanos (Profesionales asignados), Tecnológicos, Correo electrónico, Herramientas de ofimática, PC, Material de oficina | H55: Diciembre 2020 | I55: Resultados de investigación del programa | J55: Resultados de investigación del programa / Total de Resultados de investigación propuestos * 100 | K55: Eficiencia (Acreditación) | L55: Semestral | M55: 1 | N55: 1 | O55: 4 | P55: MCT-5
E56: Ciencia, Tecnología e Innovación | F56: 1. Realizar solicitudes a los lideres de semilleros de investigación 2. Generar reporte de indicadores. | G56: Recursos Humanos (Profesión Tecnológicos: software y hardware Tecnológicos, Correo electrónico, Herramientas de ofimática, PC, Material de oficina | H56: Diciembre 2020 | I56: Participación de estudiantes en Estrategias para la Formación en Investigación e Innovación | J56: Estudiantes que participen en estrategias para la formación en investigación del programa / total de estudiantes del programa * 100. | K56: Eficiencia (Acreditación) | L56: Semestral | M56: 1 | N56: 1 | O56: 4 | P56: MCT-6
B57: Frente Estratégico V: Internacionalización: Dialogar con el mundo. | C57: Fundamenta su operación con lineamientos de emprendimiento, alta calidad de los programas, Translocalidad y con la posibilidad de generar una cultura de paz. | D57: 4. Propiciar la gestión de la internacionalización: dialogar con el mundo. | E57: Dialogando con el Mundo | F57: 1. Resultados de la convocatoria. 2. seguir lineamientos establecidos en la información documentada del SGC. 3. Solicitar listado de estudiantes a las facultados. 4. Realizar la medición del indicador. Enviar a la oficina de calidad para publicación | G57: 1. Recursos financieros Rubro presupuestal. 2. Recurso Humano: Personal administrativo. 3.Tecnológicos: software y hardware: Plataforma digital. | H57: Diciembre 2020 | I57: Estudiantes beneficiados con la implementación de la acción estratégica de movilidad académica y alianzas correspondiente a la política Dialogando con el mundo | J57: Estudiantes de 6 a 10 semestre beneficiados de políticas de gestión institucional y bienestar / total de estudiantes de 6 a 10 semestre | K57: Eficacia Acreditación | L57: Semestral | M57: 0.3 | N57: 0.23 | O57: 4 | P57: MDM-1
E58: Dialogando con el Mundo | F58: 1. Resultados de la convocatoria. 2. seguir lineamientos establecidos en la información documentada del SGC. 3. Solicitar listado de estudiantes a las facultados. 4. Realizar la medición del indicador. Enviar a la oficina de calidad para publicación | G58: 1. Recursos financieros Rubro presupuestal. 2. Recurso Humano: Personal administrativo. 3.Tecnológicos: software y hardware: Plataforma digital. | H58: Diciembre 2020 | I58: Estudiantes beneficiados con la implementación de la acción estratégica de: dialogo común curricular, diálogo con funciones misionales de la u. Cundinamarca, apoyo al CADI de segunda lengua. Correspondiente a la política Dialogando con el mundo. | J58: Estrategias de internacionalización de los programa programas académicos donde participan estudiantes de 1 a 10 semestre /# de estrategias en las participaron los estudiantes de 1 a 10 semestre | K58: Eficacia Acreditación | L58: Semestral | M58: 1000 | N58: 1300 | O58: 5 | P58: MDM-2
E59: Dialogando con el Mundo | F59: 1. Resultados de la convocatoria. 2. seguir lineamientos establecidos en la información documentada del SGC. 3. Solicitar listado de estudiantes a las facultados. 4. Realizar la medición del indicador. Enviar a la oficina de calidad para publicación | G59: 1. Recursos financieros Rubro presupuestal. 2. Recurso Humano: Personal administrativo. 3.Tecnológicos: software y hardware: Plataforma digital. | H59: Diciembre 2020 | I59: Dinamizar convenios | J59: Numero de convenios dinamizados/ Numero de convenios establecidos en la UDEC | K59: Eficacia Calidad | L59: Semestral | M59: 0.2 | N59: 0.77 | O59: 5 | P59: MDM-3
B60: Frente Estratégico VI: Gobierno Universitario Digital | C60: La Universidad guía su comportamiento y mejora continua a través de cumplimiento de requisitos definidos en buenas prácticas administrativas que soportan su quehacer diario redundando en la calidad de los procesos y logrando la acreditación de los programas y la acreditación institucional. | D60: 5. Instituir un Gobierno Universitario Digital, caracterizado por el autocontrol, el control social, las buenas prácticas y el control social universitario | E60: Admisiones y Registro | F60: *Actualizar el instructivo de acompañamiento del proceso de inscripción, el cual se publica en el enlace "admisiones" de la página institucional. *Solicitar a la Oficina de Comunicaciones la publicación de las fechas de inscripción. *Asesorar a los estudiantes vía telefónica y presencial (ventanilla - oficina de Admisiones y Registro) | G60: Tecnológico: Plataforma digital - enlace de admisiones en página institucional Líneas telefónicas Talento Humano (administrativos) Documentación: modelo de operación digital procedimiento MARP02 / MARC01 | H60: Diciembre 2020 | I60: Inscripciones efectivas | J60: (Inscritos efectivos/total de aspirantes inscritos por seccional y extensión) *100 | K60: Eficacia | L60: Semestral | M60: 0.95 | N60: 0.9 | O60: 4 | P60: MAR-2
E61: Admisiones y Registro | F61: *Renovar el paso a paso como guía para el diligenciamiento del formulario de inscripción, publicado en nuestro portal web – Admisiones. *Realizar las respectivas publicaciones con antelación a dicho proceso, solicitud directa a Comunicaciones. *Gestionar el debido acompañamiento a las partes interesadas por nuestros variados canales de comunicación, e-mail, telefónico; entre otros. | G61: Tecnología: WebSite – Admisiones Red (acceso a internet) E-mail - Correo electrónico institucional Talento Humano (administrativo) Líneas telefónicas Documentación: Modelo de Operación Digital – Procedimiento MARP02 / MARC01 | H61: Diciembre 2020 | I61: Índice de selectividad | J61: Número de admitidos / número de inscritos * 100 | K61: Acreditación | L61: Semestral | M61: 0.5 | N61: 0.65 | O61: 5 | P61: MAR-4
E62: Admisiones y Registro | F62: “*Actualizar la información con respecto al pago de matrícula, beneficios, financiación, descuentos, entre otros, en nuestro Portal Web. Apoyo, Pagaduría (recibo pago matricula) y Tesorería. Fechas para pago de liquidación de matrícula para cada periodo académico 2020 *Publicar las fechas estimadas para el periodo de facturación vigente, Calendario Académico – Admisiones y Registro, Pagaduría, Tesorería. *Gestionar los horarios (matricula) por Programa, Sede, Extensiones y Seccionales a los aspirantes – Admisiones y Registro. *Ejecutar dichas propuestas en apoyo con el área de Comunicaciones y partes pertinentes. | G62: Tecnológico: Portal Web – Admisiones Red (acceso a internet) Talento Humano (Administrativo) Líneas telefónicas E-mail - Correo electrónico institucional Documentación: Modelo de Operación Digital – Procedimiento MARP03 / MARC01 | H62: Diciembre 2020 | I62: Requisitos de matricula | J62: Número de matriculados efectivos/ total de número de admitidos * 100 | K62: Acreditación | L62: Semestral | M62: 0.9 | N62: 0.88 | O62: 4 | P62: MAR-5
E63: Admisiones y Registro | F63: “*Garantizar el seguimiento a los estudiantes en su proceso académico, laborando mancomunadamente con las Facultades, Directores, Coordinadores de Programa, Admisiones y registro, Unidad de Apoyo Académico. *Realizar seguimiento al proceso de aprendizaje y cumplimiento del tiempo estimado de duración para cada programa académico. *(Complementario: Considerar semestralmente la curva de deserción y sus causales, hacer el debido seguimiento - Bienestar Universitario). *Analizar el rendimiento académico de los estudiantes para no perder su calidad del mismo. | G63: Tecnológico: Plataforma digital (Servicios: Aulas Virtuales, Plataforma Institucional en nuestro Portal Web) Red (acceso a internet) Líneas telefónicas, Correo electrónico Institucional, Talento Humano (Facultades, Sede, Extensiones y Seccionales). Procedimientos del modelo de operación digital - MARP05 / MARP010 / MARC01 | H63: Diciembre 2020 | I63: Tasa de graduación efectiva | J63: Número de graduados oportunos (plan de estudios + 1 semestre)/ total de estudiantes inscritos de cada programa académico * 100 | K63: Acreditación | L63: Semestral | M63: 0.9 | N63: 0.73 | O63: 2 | P63: MAR-6
E64: Admisiones y Registro | F64: *Analizar la información suministrada en relación con los planes de consejería académica y psicológica en pro del bienestar del estudiante y su desarrollo académico, por Programa, Sede, Extensiones y Seccionales a la comunidad estudiantil – Bienestar Universitario / Desarrollo Académico. *Indagar sobre los factores que repercuten a la hora de reprobar alguna asignatura y bajo rendimiento académico por falta de recursos, incentivos e inconvenientes que afectan el desarrollo del cumplimiento de las actividades estimadas para cada Programa académico. *Revisar y analizar los resultados obtenidos en el desarrollo del ejercicio. | G64: Tecnológico: Plataforma digital (enlace de Servicios: Unidad de Apoyo Académico, Aulas Virtuales, Plataforma Institucional en nuestro Portal Web) Líneas telefónicas, Correo electrónico Institucional, Talento Humano (Facultades, Sede, Extensiones y Seccionales). Procedimientos del modelo de operación digital - MARP05 / MARP010 / MARF002 / MARF006 / MARC01 | H64: Diciembre 2020 | I64: Perdida de Calidad de estudiante (no renovación de matricula, sanciones académicas y disciplinarias, motivos graves de salud, promedio acumulado inferior 3.0) | J64: Número de estudiantes que pierden calidad de estudiante / total de estudiantes * 100 | K64: Acreditación | L64: Semestral | M64: 0.3 | N64: 0.07 | O64: 5 | P64: MAR-7
E65: Admisiones y Registro | F65: *Actualizar el formulario de inscripción en articulación con la dirección de Sistemas y Tecnología. *Actualizar el instructivo de acompañamiento, paso a paso como guía para el diligenciamiento del formulario de inscripción, en donde se requiere anexar dentro de los datos personales la especificación como estudiante incluyente; publicado en nuestro portal web – Admisiones, haciendo referencia a la Inclusión Educativa. *Solicitar con antelación a la Oficina de Comunicaciones la publicación de las fechas de inscripción y demás procesos que engloba el ingreso a la Universidad. *Guiar a las partes interesadas, vía telefónica, por medio de e-mail, información en general en nuestro sitio web y demás variados canales informativos, con respecto a su proceso de gestión, documentación requerida y pago de su matrícula, efectivamente. *Realizar seguimiento periódico a los estudiantes en condición de discapacidad, inclusión Social y Grupo étnico; con respecto a su rendimiento académico y permanencia en la UDEC, con el apoyo de Bienestar Universitario. *Mantener acompañamiento, social y psicológico de los estudiantes en mención de inclusión educativa, en trabajo conjunto con Bienestar Universitario. | G65: Tecnológico: Plataforma digital - Academusoft (enlace de admisiones en página institucional), red (Acceso a internet) Líneas telefónicas, Talento Humano (administrativo), Correo electrónico institucional, Enlace de Servicios: Unidad de Apoyo Académico, Aulas Virtuales, Plataforma Institucional en nuestro Portal Web Procedimientos del modelo de operación digital - MARP02 / MARP03 / MARC01 | H65: Diciembre 2020 | I65: Condiciones de accesibilidad (inclusión) | J65: Número de aspirantes en condiciones de discapacidad y vulneración matriculados efectivos / total de numero inscritos efectivos (condiciones de discapacidad y vulneración) * 100 | K65: Acreditación | L65: Semestral | M65: 0.9 | O65: 1 | P65: MAR-8
E66: Planeación Institucional | F66: Aplicación de encuestas dirigidas a estudiantes, docentes, graduados y administrativos, con el fin de conocer la satisfacción de la comunidad universitaria frente a los servicios ofrecidos y establecer mecanismos institucionales que permitan fortalecer los resultados obtenidos | G66: * Talento Humano que consolide la información y genere las estadísticas necesarias para presentar a la Alta Dirección * Comunicaciones para dar a conocer a la Comunidad Universitaria por medio de la página web, las encuestas de satisfacción | H66: Diciembre 2020 | I66: Medición de satisfacción del cliente | J66: (Total encuestas calificación mayor a 4/Total encuestas) * 100 | K66: Eficacia | L66: Anual | M66: 0.82 | N66: 0.82 | O66: 4 | P66: EPI-1
E67: Planeación Institucional | F67: Se realizan los reportes de información poblacional y financiera emitida por la dependencias de la institución, es revisada y consolidada por la Dirección de Planeación Institucional, de manera semestral atendiendo la Resolución No. 19591 de 2017 y la Resolución No. 20434 de 2016 emitidas por Ministerio de Educación Nacional. | G67: Talento Humano que solicite y gestione ante las distintas áreas, la información que se requiere reportar Tecnológicos por medio de plataformas digitales del MEN donde se deben reportar los datos obtenidos por la Institución | H67: Diciembre 2020 | I67: Oportunidad en los Reportes Externos | J67: (# reportes SNIES en la fecha establecida / # Total de reportes SNIES) * 100 | K67: Eficiencia | L67: Semestral | M67: 0.9 | N67: 0.94 | O67: 5 | P67: EPI-2
E68: Proyectos Especiales y Relaciones Interinstitucionales | F68: 1. Verificación de los pasos a seguir en el procedimiento Gestión de Convenios Interinstitucionales. 2. Revisión periódica de las páginas SECOP. 3. Revisar y analizar las invitaciones que llegan de otras entidades, con el fin de dar una respuesta efectiva. | G68: Recurso humano dedicado al seguimiento de Convenios y su mejoramiento continuo, Recursos informáticos (Aplicativo CRM para centralizar todas las interacciones de Proyectos Especiales con sus clientes), Información documentada (Procedimientos EPRP01, EPRP02, EPRP03, cronograma de actividades de los contratos, soportes de actividades y evidencias), Infraestructura física. | H68: Diciembre 2020 | I68: Evaluación del No. de alianzas estratégicas mediante convenios empresariales | J68: (No. de alianzas estratégicas mediante convenios empresariales/No. de alianzas estratégicas proyectadas por año) * 100 | K68: Eficiencia | L68: Trimestral | M68: 1 | N68: 0.67 | O68: 4 | P68: EPR-1
E69: Proyectos Especiales y Relaciones Interinstitucionales | F69: 1. Seguimiento periódico al cronograma de actividades de cada contrato suscrito. 2. Verificación de los informes periódicos elaborados por los cooperantes, por parte de apoyo a la supervisión. | G69: Recurso humano dedicado al seguimiento de Convenios y su mejoramiento continuo, Recursos informáticos (Aplicativo CRM para centralizar todas las interacciones de Proyectos Especiales con sus clientes), Información documentada (Procedimientos EPRP01, EPRP02, EPRP03, cronograma de actividades de los contratos, soportes de actividades y evidencias), Infraestructura física. | H69: Diciembre 2020 | I69: Evaluación del No. de actividades desarrolladas de los contratos suscritos | J69: (No. de actividades desarrolladas de los contratos suscritos en el tiempo planeado/No. Total de actividades planificadas de los contratos suscritos) * 100 | K69: Eficiencia | L69: Trimestral | M69: 1 | N69: 1 | O69: 4 | P69: EPR-2
E70: Control Disciplinario | F70: 1. Emisión de una nueva circular para definir el término de evaluación de la queja. 2. Gestión de la queja a través de los procedimientos SCDP01, SCDP03, SCDP04. 3. Seguimiento mensual a los expedientes. | G70: Recurso humano (Profesionales en derecho) Recursos informáticos (Actualizar el aplicativo de Control Disciplinario, de acuerdo con los requerimientos técnicos del proceso) Información documentada (Procedimientos del proceso SCD, normograma, conceptos jurídicos solicitados a los entes externos) Infraestructura física (Se requiere un espacio adecuado para adelantar las audiencias públicas de los procesos verbales, así como las declaraciones y versiones libres) | H70: Diciembre 2020 | I70: Término para evaluar quejas e informes | J70: (Número de quejas e informes atendidos en el tiempo meta/Número de quejas e informes recepcionados) * 100 | K70: Eficiencia | L70: Trimestral | M70: 0.8 | N70: 0.87 | O70: 5 | P70: SCD-1
E71: Sistemas y Tecnología | F71: Contribuir al frente estratégico ORGANIZACIÓN UNIVERSITARIA DIGITAL realizando constante renovación en los servicios de la plataforma institucional, apoyando a todos los procesos del modelo de operación digital de la universidad, imperando en una sistematización y digitalización de los tramites en la comunidad universitaria en general | G71: - Equipos de computo especializado - Analistas de Sistemas - Desarrolladores de Software - Administrador de Base de Datos - Administrador de infraestructura de servidores - Tester y/o Ingenieros en calidad de Software - Licencias y soporte en las tecnologías utilizadas - Mesa de ayuda - Canal dedicado al ambiente de Desarrollo y Pruebas - Ingenieros de implementación - Capacitación constante en temas relacionados en Desarrollo de Software, Bases de Datos, Calidad de Software y Metodologías de Desarrollo de Software | H71: Diciembre 2020 | I71: Sistemas de Información implementados | J71: Sistemas de Información Implementados | K71: Eficacia | L71: Trimestral | M71: 65 | N71: 66 | O71: 5 | P71: ASI-1
E72: Sistemas Integrados de Gestión | F72: *Elaboración de Cronograma de Mantenimiento por funcionario en Trello *Seguimiento a la ejecución por medio de reuniones periódicas | G72: Talento Humano competente que realice actividades de acompañamiento a los procesos Tecnológicos por medio de la Plataforma SAD para actualización de Documentos e Integradoc para el desarrollo de trámites administrativos Información Documentada por medio de los procedimientos ESGP01, ESGP03, ESGP05 y ESGP07 Financieros a través del Proyecto de Inversión | H72: Diciembre 2020 | I72: Cumplimiento en el cronograma de mantenimiento ISO 9001:2015 | J72: (Total actividades ejecutadas/Total de actividades planificadas) * 100 | K72: Eficacia | L72: Trimestral | M72: 0.95 | N72: 1 | O72: 5 | P72: ESG-1
E73: Sistemas Integrados de Gestión | F73: *Distribución de procesos entre los gestores de la oficina de Calidad *Cronograma de Actividades y listado de tareas *Seguimiento a los resultados de la medición | G73: Talento Humano competente que realice actividades de acompañamiento a los procesos Tecnológicos por medio de Integradoc como optimizador de trámites y procesos Información Documentada a través del procedimiento ESGP01, ESGP03, ESGP05 y ESGP07 Financieros por medio de caja menor para desplazamientos a Seccionales, Extensiones y Oficina de Bogotá | H73: Diciembre 2020 | I73: Acompañamientos por Proceso | J73: Número de Acompañamientos / Número Total de Procesos | K73: Eficiencia | L73: Trimestral | M73: 7 | N73: 7.2 | O73: 5 | P73: ESG-2
E74: Jurídica | F74: *Acatar las disposiciones del estatuto de contratación de la Universidad de Cundinamarca y demás normas internas complementarias. *Designar las solicitudes a los abogados de forma expedita. *Informar oportunamente al solicitante los resultados de la revisión mediante la plataforma. *Realizar control de las respuestas mediante formato DE SOLICITUD Y SEGUIMIENTO TRAMITES AJUF007. | G74: Tecnológico (plataforma) Talento humano Materiales de papelería Información Documentada: Solicitud y seguimiento trámites - AJUF007 Procedimientos del modelo de operación digital - AJUP01 , estatuto de contratación | H74: Diciembre 2020 | I74: Tiempo de respuesta en término de contratación (OPS) | J74: Total de solicitudes en término de contratación (OPS) contestadas a tiempo / Total de solicitudes en término de contratación (OPS) recibidas | K74: Eficiencia | L74: Semestral | M74: 1 | N74: 100 | O74: 4 | P74: AJU-3
E75: Jurídica | F75: *Acatar las disposiciones del estatuto de contratación de la Universidad de Cundinamarca y demás normas internas complementarias. *Designar las solicitudes a los abogados de forma expedita. *Informar oportunamente al solicitante los resultados de la revisión mediante la plataforma institucional e INTEGRADOC *Realizar control de las respuestas a través de los reportes de la plataforma y el aplicativo INTEGRADOC. | G75: Tecnológico (plataforma) Talento humano Materiales de papelería Información Documentada: Solicitud y seguimiento trámites - Procedimientos del modelo de operación digital - AJUP06, estatuto de contratación | H75: Diciembre 2020 | I75: Oportunidad de respuesta en solicitudes contractuales (Directa) | J75: # de solicitudes atendidas oportunamente / # de solicitudes recibidas * 100 | K75: Eficiencia | L75: Trimestral | M75: 1 | N75: 0.85 | O75: 4 | P75: AJU-4
E76: Jurídica | F76: *Acatar las disposiciones del estatuto de contratación de la Universidad de Cundinamarca y demás normas internas complementarias. *Designar las solicitudes a los abogados de forma expedita. *Informar oportunamente al solicitante los resultados de la revisión mediante la plataforma institucional e INTEGRADOC *Realizar control de las respuestas a través de los reportes de la plataforma y el aplicativo INTEGRADOC. | G76: Tecnológico (plataforma) Talento humano Materiales de papelería Información Documentada: Solicitud y seguimiento trámites - Procedimientos del modelo de operación digital - AJUP06, estatuto de contratación | H76: Diciembre 2020 | I76: Oportunidad de respuesta en solicitudes contractuales (Publico-Privada) | J76: # de solicitudes atendidas oportunamente / # de solicitudes recibidas * 100 | K76: Eficiencia | L76: Trimestral | M76: 1 | N76: 0.92 | O76: 4 | P76: AJU-5
E77: Financiera | F77: 1. Realizar consolidad de información de cuentas . 2.Supervision a los resultados de cada corte. 3. generar reporte del indicador | G77: Recursos Humanos (Profesionales asignados), Tecnológicos: software y hardware , Correo electrónico, Herramientas de ofimática, PC, Material de oficina | H77: Diciembre 2020 | I77: Oportunidad en pagos | J77: (Total cuentas pagadas fechas establecidas/total cuentas pagadas) * 100 | K77: Eficiencia | L77: Trimestral | M77: 0.95 | N77: 0.85 | O77: 4 | P77: AFI-1
E78: Financiera | F78: 1. Bases de datos de los beneficiadas. 2. Discriminado de cuotas según el tipo de fraccionamiento. 3. Realizar cruce de la información con la oficina de admisiones y tesorería . 4. Reportar la medición. 5. Se comienza proceso de cobro coactivo. | G78: Recursos Humanos (Profesionales asignados), Tecnológicos: software y hardware, Correo electrónico, Herramientas de ofimática, PC, Material de oficina | H78: Diciembre 2020 | I78: Recuperación de cartera | J78: (Total cartera recuperada/Total cartera por matriculas) * 100 | K78: Eficacia | L78: Semestral | M78: 0.9 | N78: 0.4 | O78: 1 | P78: AFI-2
E79: Financiera | F79: 1.Realizar consolidado de facturas pagadas 2.Presentar solicitud de devolución del IVA a l DIAN. 3. Entregar soportes anexos a la solicitud según los requerimientos de la DIAN. 4.Reportar el indicador | G79: Recursos Humanos (Profesionales asignados), Tecnológicos: software y hardware, Correo electrónico, Herramientas de ofimática, PC, Material de oficina | H79: Diciembre 2020 | I79: Recuperación de IVA | J79: Total IVA recuperado/Total IVA cobrado*100 | K79: Eficacia | L79: Bimensual | M79: 0.97 | N79: 1 | O79: 5 | P79: AFI-3
E80: Financiera | F80: 1. Realizar consolidado de cuentas para causar 2. Verificar requisitos de pagos. 3. Si cumple, se causa la cuenta. 4. No cumple, se devuelve la cuenta al supervisor del contrato. 5. Reportar el indicador | G80: Recursos Humanos, Tecnológicos: software y hardware, Correo electrónico, Herramientas de ofimática, PC, Material de oficina | H80: Diciembre 2020 | I80: Tramites de cuentas para causación | J80: Numero Tramites de cuentas para causación devueltas /Numero Tramites de cuentas para causación *100 | K80: Eficacia | L80: Mensual | M80: 0.2 | N80: 0.14 | O80: 4 | P80: AFI-4
E81: Comunicaciones | F81: Establecimiento de cronogramas de trabajo Asignación de responsabilidad en el equipo de trabajo Seguimiento y medición al indicador de oportunidad de atención a solicitudes | G81: Recursos tecnológicos Recursos financieros (Material P.O.P) Talento Humano (Profesionales) Equipo audiovisual Información documentada (ECOM001, ECOP01) | H81: Diciembre 2020 | I81: Oportunidad de atención a solicitudes (análisis según tipología) | J81: Total de solicitudes atendidas oportunamente / Total de solicitudes * 100 | K81: Eficiencia | L81: Trimestral | M81: 0.8 | N81: 0.82 | O81: 5 | P81: ECO-1
E82: Comunicaciones | F82: Articulación de consenso entre el solicitante y la oficina asesora de comunicaciones con el objetivo de dar trámite a la solicitud Etapa de revisión y aprobación de producción de contenido (gráfico, audiovisual, texto y/o radial) con el usuario previo al cierre de la solicitud generada mediante el SIS Cierre de la solicitud Medición de la satisfacción por parte del usuario | G82: Recursos tecnológicos (Equipos) Equipo audiovisual Talento Humano (Profesionales) Información documentada (ECOM001) Recursos financieros (Material P.O.P) | H82: Diciembre 2020 | I82: Nivel de satisfacción del usuario | J82: Número de solicitudes con calificación buenas y/o excelentes / Número de solicitudes calificadas * 100 | K82: Eficiencia | L82: Trimestral | M82: 0.88 | N82: 0.99 | O82: 5 | P82: ECO-2
E83: Documental | F83: Organización y clasificación del archivo acorde con las TRD cumpliendo con el manual de gestión documental ADOM001 Asignación de responsabilidades en seccionales y extensiones Seguimiento y medición al indicador de oportunidad en la atención de solicitudes | G83: Talento Humano Recursos Electrónicos Información documentada (Registros, oficios, manuales, procedimientos) | H83: Diciembre 2020 | I83: Oportunidad en la atención de solicitudes | J83: Número de solicitudes gestionadas oportunamente / Total de solicitudes * 100 | K83: Eficiencia | L83: Trimestral | M83: 0.8 | N83: 0.88 | O83: 5 | P83: ADO-1
E84: Bienes y Servicios - Compras | F84: Asegurar los criterios necesarios para realizar la Reevaluación de Proveedores de la Universidad de Cundinamarca (ABSF 049 / ABSF084) Coordinar con los Supervisores de Contrato, por medio de la herramienta Integradoc, los seguimientos necesarios a los contratos u Ordenes contractuales, para que oportunamente carguen la respectiva reevaluación de los proveedores en la plataforma | G84: Talento Humano para el cargue de información actualizada en el Banco de Proveedores Documental para la actualización y uso de los formatos de Reevaluación de Proveedores de Servicios y de Bienes Tecnológicos para la consolidación de información en la Base de datos de Proveedores y la presentación de informes a la Alta Dirección | H84: Diciembre 2020 | I84: Reevaluación de proveedores | J84: (Total proveedores calificados mayor a 70/Total proveedores) *100 | K84: Eficacia | L84: Semestral | M84: 0.9 | N84: 0.97 | O84: 5 | P84: ABS-3
E85: Bienes y Servicios - Compras | F85: Sistematización y actualización del procedimiento de Contratación Directa Actualizar ABSr097 y su posterior sistematización | G85: Talento Humano que actualice en tiempo real las instancias en las que va el proceso contractual Documental con el fin de mantener la información actualizada de los procesos contractuales Tecnológicos que permitan monitorear la contratación Directa, por medio de INTEGRADOC o la Plataforma Institucional | H85: Diciembre 2020 | I85: Oportunidad de la compra | J85: (Total compras de contratación directa atendidas en tiempo menor a 25 días/Total de compras de contratación directa) * 100 | K85: Eficiencia | L85: Trimestral | M85: 0.8 | N85: 0.59 | O85: 1 | P85: ABS-4
E86: Talento Humano | F86: 1. Identificar necesidad de capacitación. 2. Establecer cronograma de capacitaciones con fechas y responsables. 3. Cumplir con el programa de capacitación vigencia 2019. 4. verificación de cumplimiento de cronograma de actividades. 5. Reportar indicador | G86: Recursos Humanos (Profesionales asignados), Tecnológicos: software y hardware, Correo electrónico, Herramientas de ofimática, PC, Material de oficina | H86: Diciembre 2020 | I86: Cobertura de la capacitación | J86: (Número de personas capacitadas/Número total de empleados) * 100 | K86: Eficacia | L86: Trimestral | M86: 0.8 | N86: 0.68 | O86: 2 | P86: ATH-1
E87: Talento Humano | F87: 1. Resección de las necesidades de contratación. 2. realizar proceso de contratación. 3. Solicitar a lideres de proceso que realicen al inducción a puestos de trabajo. 4. Recepcionar los registros de inducción al puesto de trabajo. 5. envío de correo electrónico a los lideres del proceso recordando el compromiso que se tiene con este procedimiento. 6. Reportar indicador. | G87: Recursos Humanos (Profesionales asignados), Tecnológicos: software y hardware, Correo electrónico, Herramientas de ofimática, PC, Material de oficina | H87: Diciembre 2020 | I87: Cobertura capacitaciones Puesto de trabajo | J87: (Inducciones realizadas puestos de trabajo/Número de funcionarios vinculados en el periodo) * 100 | K87: Eficacia | L87: Semestral | M87: 0.9 | N87: 0.81 | O87: 4 | P87: ATH-2
E88: Talento Humano(SG-SST) | F88: 1. Verificar cumplimiento plan de trabajo SST 2. Garantizando que antes de la contratación la persona realice esta actividad. 3. Verificar en plataforma la realización de la inducción. 4. Validar datos en plataforma. 5 Reportar indicador. | G88: Recursos Humanos (Profesionales asignados),Tecnológicos: software y hardware, Correo electrónico, Herramientas de ofimática, PC, Material de oficina | H88: Diciembre 2020 | I88: Cumplimiento Plan de Trabajo anual de SST. | J88: Actividades realizadas/ actividades programadas *100 | K88: Eficacia | L88: Trimestral | M88: 0.9 | N88: 0.91 | O88: 5 | P88: ATH-4
E89: Talento Humano(SG-SST) | F89: 1. Verificar solicitudes de publicación de campañas. 2. Garantizando que antes de la contratación la persona realice esta actividad. 3. Verificar en plataforma la realización de la inducción. 4. Validar datos en plataforma. 5 Reportar indicador. | G89: Recursos Humanos (Profesionales asignados), Tecnológicos: software y hardware, Correo electrónico, Herramientas de ofimática, PC, Material de oficina | H89: Diciembre 2020 | I89: Proyección de publicación campañas anuales | J89: Proyección de publicación campañas anuales | K89: Eficacia | L89: Semestral | M89: 10 | N89: 15 | O89: 5 | P89: ATH-5
E90: Control Interno | F90: 1. Envío de pre informes de auditoria. 2. Recepción de Controversia si aplica durante los 2 días siguientes a la entrega del pre informe. 3. Determinar si se presentaron controversias. 4.Relacionar numero de controversias. 5.Reportar indicador. | G90: Recursos Humanos (Profesionales asignados), Tecnológicos: software y hardware, Correo electrónico, Herramientas de ofimática, PC, Material de oficina | H90: Diciembre 2020 | I90: Controversias resultantes de auditoría | J90: (Número de controversias aceptadas*objetividad de criterios/Total de controversias presentadas) * 100 | K90: Eficiencia | L90: Semestral | M90: 0.2 | N90: 0 | O90: 5 | P90: SCI-3
E91: Control Interno | F91: 1. Dar cumplimiento a los tiempos establecidos para entregar Pre Informe (15 días) 2. Estimar tiempos de entrega de per Informes. Reportar Indicador. | G91: Recursos Humanos (Profesionales asignados), Tecnológicos, Correo electrónico, Herramientas de ofimática, PC, Material de oficina | H91: Diciembre 2020 | I91: Oportunidad en la entrega de pre- informes de auditoria | J91: Informes de auditoria entregados a tiempo/Total procesos auditados | K91: Eficiencia | L91: Semestral | M91: 0.9 | N91: 0.7 | O91: 2 | P91: SCI-6
E92: Servicio de Atención al Ciudadano | F92: *Recepcionar las PQRS por parte de la comunidad general. *Tramitar las PQRS recibidas, designándolas a cada responsable. *Descargar reporte general de las PQRS trimestralmente. Realizar análisis desde los reportes generados desde el aplicativo SAIC de las PQRS | G92: Tecnológico- Software (plataforma SAIC) Correo electrónico Talento Humano, información documentada, procedimiento modelo de operación digital (SACP01 - SACP02) Informes trimestrales | H92: Diciembre 2020 | I92: Disminución de causas de las PQRS | J92: Número de causas de PQRS que disminuyeron en su recurrencia en el periodo igual al de la vigencia anterior / Total causas de las PQRS recibidas y analizadas * 100 | K92: Eficacia | L92: Trimestral | M92: 0.3 | N92: 0.42 | O92: 5 | P92: SAC-2
E93: Servicio de Atención al Ciudadano | F93: *Recepcionar las PQRS por parte de la comunidad general. *Tramitar las PQRS recibidas, designándolas a cada responsable. *Descargar reporte general de las PQRS trimestralmente. Realizar análisis desde los reportes generados desde el aplicativo SAIC de las PQRS | G93: Tecnológico- Software (plataforma SAIC) Correo electrónico Talento Humano, información documentada, procedimiento modelo de operación digital (SACP01 - SACP02) Informes trimestrales | H93: Diciembre 2020 | I93: Disminución de quejas sobre las oficinas, facultades y programas académicos | J93: N° de quejas que disminuyeron frente a las oficinas, facultades y/o programas académicos en relación al periodo igual de la vigencia anterior / Total de quejas recibidas y analizadas * 100 | K93: Eficacia | L93: Trimestral | M93: 0.3 | N93: 0.57 | O93: 5 | P93: SAC-3
E94: Servicio de Atención al Ciudadano | F94: *Recepcionar las PQRS por parte de la comunidad general. *Tramitar las PQRS recibidas, designándolas a cada responsable. *Enviar alertas a los funcionarios a través del aplicativo SAIC (parametrizado por la Oficina de Servicio de Atención al Ciudadano) *Notificar a los funcionarios cada tercer día vía correo electrónico, recordándoles que tienen pendientes solicitudes por contestar. *Enviar cuadros de seguimiento vía correo electrónico a los funcionarios responsables. | G94: Tecnológico- Software (plataforma SAIC) Correo electrónico Talento Humano, información documentada, procedimiento modelo de operación digital (SACP01 - SACP02) | H94: Diciembre 2020 | I94: Eficiencia en el tiempo de respuestas de derechos de peticiones, quejas, reclamos, solicitudes, denuncias | J94: # de DP- D- Q-R-S resueltas en 13 o menos días / # total de DP-D-Q-R-S * 100 | L94: Trimestral | M94: 0.8 | N94: 0.88 | O94: 4 | P94: SAC-4
E95: Institucionales | F95: Semestralmente se realizan seguimientos al plan operativo anual de inversiones, con respecto a 3 fuentes de información certificaciones emitidas por el banco de proyectos, CDP y RP, este seguimiento se socializa vía correo electrónico con el rector, vicerrectores, secretaria general y con los órganos consultivos que los requieran | G95: Comunicación, para la gestión mediante la pagina web, Mantenimiento de la plataforma Institucional, Talento Humano para el análisis de información | H95: Diciembre 2020 | I95: Cumplimiento ejecución presupuestal POAI | J95: (Vr. Total ejecutado / Vr. Total Proyectos)*100 | K95: Eficacia | L95: Semestral | M95: 0.6 | N95: 0.88 | O95: 5 | P95: INS-1
D96: 7. Garantizar la mejora continua a través de la gestión de los riesgos y las oportunidades en la Universidad de Cundinamarca. | E96: Institucionales | F96: 1. Reportes de aplicativo de control interno. 2. Matriz de seguimiento planes de mejoramiento contraloría. 3. Reporte de Indicadores | G96: Recursos Humanos (Profesionales asignados), Tecnológicos: software y hardware, Correo electrónico, Herramientas de ofimática, PC, Material de oficina | H96: Diciembre 2020 | I96: Nivel de mejoramiento | J96: Mejoras cerradas/Total de mejoras por proceso | L96: Trimestral | M96: 0.8 | N96: 0.61 | O96: 2 | P96: INS-2
E97: Institucionales | F97: 1. Realizar seguimiento a los Riesgos identificados en los procesos 2. Resultado de los seguimientos a los controles establecidos 3. Reportar el Indicador | G97: Recursos Humanos (Profesionales asignados), Tecnológicos: software y hardware, Correo electrónico, Herramientas de ofimática, PC, Material de oficina | H97: Diciembre 2020 | I97: Eficacia en el control de riesgos | J97: No. de riesgos residuales (A - E) residuales operativos institucionales controlados/Total de riesgos Altos y Extremos residuales operativos institucionales | K97: Eficacia | L97: Semestral | M97: 0.4 | N97: 0.92 | O97: 5 | P97: INS-5
E98: Institucionales | F98: *Determinación de indicadores por proceso *Recolección y consolidación de resultados *Presentación de resultados ante entes colegiados *Reporte a Control Interno para tomar acciones que se requieran | G98: Talento Humano competente para la consolidación de información Tecnológico para análisis de datos y gestión de gráficos Información Documentada por parte de los procesos como soporte a las mediciones realizadas | H98: Diciembre 2020 | I98: Cumplimiento en indicadores | J98: (Sumatoria de los niveles de cumplimiento de los indicadores de los procesos/Máximo nivel de cumplimiento) *100 | K98: Eficacia | L98: Semestral | M98: 0.9 | N98: 0.75 | O98: 2 | P98: INS-4

Sheet EPI-1
B2: REGRESAR
E5: MACROPROCESO ESTRATÉGICO | M5: CÓDIGO: ESGr027
E6: PROCESO GESTIÓN SISTEMAS INTEGRADOS | M6: VERSIÓN: 7
E7: MATRIZ DE MEDICIÓN Y SEGUIMIENTO A LOS PROCESOS DE GESTIÓN | M7: VIGENCIA: 2020-03-31
M8: PÁGINA: 1 de 1
C10: FICHA DE INDICADOR
C12: MACROPROCESO | E12: Estratégico | I12: NOMBRE DEL INDICADOR | K12: Medición de satisfacción del cliente
C13: PROCESO GESTIÓN | E13: Planeación Institucional
C14: RESPONSABLE DE MEDICIÓN | E14: Director de Planeación Institucional
C16: 1. COMPORTAMIENTO DE INDICADOR
C17: CLASIFICACIÓN DE LA MEDICIÓN | E17: 1 | H17: TIPO DE INDICADOR | J17: Eficacia | L17: META ANUAL | N17: 0.82
C18: FORMULA | E18: NUMERADOR | G18: (# Total encuestas con calificación mayor a 4) * 100 | L18: UNIDAD DE MEDIDA | N18: Porcentual
E19: DENOMINADOR | G19: # Total encuestas
C20: TENDENCIA | E20: Positiva | H20: NIVEL DE SEGREGACIÓN * | J20: No Aplica | L20: ESCALA
L21: Deficiente | M21: Aceptable | N21: Bueno | O21: Excelente
L22: 0 - 59,9% | M22: 60% - 69,9% | N22: 70% - 82% | O22: 82,1% - 100%
C23: ORIGEN DE DATOS NUMERADOR | E23: Encuestas Satisfacción al Cliente | H23: FRECUENCIA DE LA MEDICIÓN | J23: ANUAL | L23: FRECUENCIA DE RESULTADO | N23: ANUAL
C24: ORIGEN DE DATOS DENOMINADOR | E24: Encuestas Satisfacción al Cliente
C26: RESULTADOS
J27: ANÁLISIS DE DATOS
J28: Se formuló una encuesta de percepción de satisfacción del usuario con los procesos institucionales en conjunto con la dirección de autoevaluación y acreditación y la oficina de atención al ciudadano. Se cargó en el aplicativo de encuestas de la universidad y se aplicó a estudiantes, docentes, administrativos, graduados y comunidad en general. En fecha viernes 23 de octubre se realiza corte de información y se aplica la metodología construida para dicho análisis de satisfacción con un resultado del 82%.
J34: ACCIÓN FORMULADA
J35: Se formuló una metodología que se formalizará por medio de una guía de planeación institucional.
J37: RESPONSABLE
J38: =E14 -> Director de Planeación Institucional
C41: PERIODO DE EVALUACIÓN
C42: MES | D42: =IF(J23="MENSUAL","ENERO",IF(J23="TRIMESTRAL","MARZO",IF(J23="SEMESTRAL","JUNIO",IF(J23="ANUAL",YEAR(TODAY()),"")))) -> 2021 | E42: =IF(J23="MENSUAL","FEBRERO",IF(J23="TRIMESTRAL","JUNIO",IF(J23="SEMESTRAL","DICIEMBRE",""))) ->  | F42: =IF(J23="MENSUAL","MARZO",IF(J23="TRIMESTRAL","SEPTIEMBRE","")) ->  | G42: =IF(J23="MENSUAL","ABRIL",IF(J23="TRIMESTRAL","DICIEMBRE","")) ->  | H42: =IF(J23="MENSUAL","MAYO","") ->  | I42: =IF(J23="MENSUAL","JUNIO","") ->  | J42: =IF(J23="MENSUAL","JULIO","") ->  | K42: =IF(J23="MENSUAL","AGOSTO","") ->  | L42: =IF(J23="MENSUAL","SEPTIEMBRE","") ->  | M42: =IF(J23="MENSUAL","OCTUBRE","") ->  | N42: =IF(J23="MENSUAL","NOVIEMBRE","") ->  | O42: =IF(J23="MENSUAL","DICIEMBRE","") -> 
C43: =G18 -> (# Total encuestas con calificación mayor a 4) * 100 | D43: 0.82
C44: =G19 -> # Total encuestas | D44: 1
C45: VALOR | D45: =IFERROR(IF($E$17=1,D43/D44,IF($E$17=2,D43,"")),"") -> 0.82 | E45: =IFERROR(IF($E$17=1,E43/E44,IF($E$17=2,E43,"")),"") -> 
C46: META PONDERADA | D46: =IF(AND(N23="ANUAL",J23="MENSUAL"),N17/12,IF(AND(N23="ANUAL",J23="TRIMESTRAL"),N17/4,IF(AND(N23="ANUAL",J23="SEMESTRAL"),N17/2,IF(AND(N23="ANUAL",J23="ANUAL"),N17,IF(AND(N23="SEMESTRAL",J23="MENSUAL"),N17/6,IF(AND(N23="SEMESTRAL",J23="TRIMESTRAL"),N17/2,IF(AND(N23="SEMESTRAL",J23="SEMESTRAL"),N17,IF(AND(N23="SEMESTRAL",J23="ANUAL"),"REVISAR FRECUENCIAS",IF(AND(N23="TRIMESTRAL",J23="MENSUAL"),N17/3,IF(AND(N23="TRIMESTRAL",J23="TRIMESTRAL"),N17,IF(AND(N23="TRIMESTRAL",J23="SEMESTRAL"),"REVISAR FRECUENCIAS",IF(AND(N23="TRIMESTRAL",J23="ANUAL"),"REVISAR FRECUENCIAS",IF(AND(N23="MENSUAL",J23="MENSUAL"),N17,IF(AND(N23="MENSUAL",J23="TRIMESTRAL"),"REVISAR FRECUENCIAS",IF(AND(N23="MENSUAL",J23="SEMESTRAL"),"REVISAR FRECUENCIAS",IF(AND(N23="MENSUAL",J23="ANUAL"),"REVISAR FRECUENCIAS","")))))))))))))))) -> 0.82 | E46: =IF(AND(N23="ANUAL",J23="MENSUAL"),N17/12+D46,IF(AND(N23="ANUAL",J23="TRIMESTRAL"),N17/4+D46,IF(AND(N23="ANUAL",J23="SEMESTRAL"),N17/2+D46,IF(AND(N23="SEMESTRAL",J23="MENSUAL"),N17/6+D46,IF(AND(N23="SEMESTRAL",J23="TRIMESTRAL"),N17/2+D46,IF(AND(N23="SEMESTRAL",J23="SEMESTRAL"),N17,IF(AND(N23="TRIMESTRAL",J23="MENSUAL"),N17/3+D46,IF(AND(N23="TRIMESTRAL",J23="TRIMESTRAL"),N17,IF(AND(N23="MENSUAL",J23="MENSUAL"),N17,""))))))))) ->  | F46: =IF(AND(N23="ANUAL",J23="MENSUAL"),N17/12+E46,IF(AND(N23="ANUAL",J23="TRIMESTRAL"),N17/4+E46,IF(AND(N23="SEMESTRAL",J23="MENSUAL"),N17/6+E46,IF(AND(N23="SEMESTRAL",J23="TRIMESTRAL"),N17/2,IF(AND(N23="TRIMESTRAL",J23="MENSUAL"),N17/3+E46,IF(AND(N23="TRIMESTRAL",J23="TRIMESTRAL"),N17,IF(AND(N23="MENSUAL",J23="MENSUAL"),N17,""))))))) ->  | G46: =IF(AND(N23="ANUAL",J23="MENSUAL"),N17/12+F46,IF(AND(N23="ANUAL",J23="TRIMESTRAL"),N17/4+F46,IF(AND(N23="SEMESTRAL",J23="MENSUAL"),N17/6+F46,IF(AND(N23="SEMESTRAL",J23="TRIMESTRAL"),N17/2+F46,IF(AND(N23="TRIMESTRAL",J23="MENSUAL"),N17/3,IF(AND(N23="TRIMESTRAL",J23="TRIMESTRAL"),N17,IF(AND(N23="MENSUAL",J23="MENSUAL"),N17,""))))))) ->  | H46: =IF(AND($N$23="ANUAL",$J$23="MENSUAL"),$N$17/12+G46,IF(AND(N23="SEMESTRAL",J23="MENSUAL"),N17/6+G46,IF(AND(N23="TRIMESTRAL",J23="MENSUAL"),N17/3+G46,IF(AND(N23="MENSUAL",J23="MENSUAL"),N17,"")))) ->  | I46: =IF(AND($N$23="ANUAL",$J$23="MENSUAL"),$N$17/12+H46,IF(AND(N23="SEMESTRAL",J23="MENSUAL"),N17/6+H46,IF(AND(N23="TRIMESTRAL",J23="MENSUAL"),N17/3+H46,IF(AND(N23="MENSUAL",J23="MENSUAL"),N17,"")))) ->  | J46: =IF(AND($N$23="ANUAL",$J$23="MENSUAL"),$N$17/12+I46,IF(AND(N23="SEMESTRAL",J23="MENSUAL"),N17/6,IF(AND(N23="TRIMESTRAL",J23="MENSUAL"),N17/3,IF(AND(N23="MENSUAL",J23="MENSUAL"),N17,"")))) ->  | K46: =IF(AND($N$23="ANUAL",$J$23="MENSUAL"),$N$17/12+J46,IF(AND(N23="SEMESTRAL",J23="MENSUAL"),N17/6+J46,IF(AND(N23="TRIMESTRAL",J23="MENSUAL"),N17/3+J46,IF(AND(N23="MENSUAL",J23="MENSUAL"),N17,"")))) ->  | L46: =IF(AND($N$23="ANUAL",$J$23="MENSUAL"),$N$17/12+K46,IF(AND(N23="SEMESTRAL",J23="MENSUAL"),N17/6+K46,IF(AND(N23="TRIMESTRAL",J23="MENSUAL"),N17/3+K46,IF(AND(N23="MENSUAL",J23="MENSUAL"),N17,"")))) ->  | M46: =IF(AND($N$23="ANUAL",$J$23="MENSUAL"),$N$17/12+L46,IF(AND(N23="SEMESTRAL",J23="MENSUAL"),N17/6+L46,IF(AND(N23="TRIMESTRAL",J23="MENSUAL"),N17/3,IF(AND(N23="MENSUAL",J23="MENSUAL"),N17,"")))) ->  | N46: =IF(AND($N$23="ANUAL",$J$23="MENSUAL"),$N$17/12+M46,IF(AND(N23="SEMESTRAL",J23="MENSUAL"),N17/6+M46,IF(AND(N23="TRIMESTRAL",J23="MENSUAL"),N17/3+M46,IF(AND(N23="MENSUAL",J23="MENSUAL"),N17,"")))) ->  | O46: =IF(AND($N$23="ANUAL",$J$23="MENSUAL"),$N$17/12+N46,IF(AND(N23="SEMESTRAL",J23="MENSUAL"),N17/6+N46,IF(AND(N23="TRIMESTRAL",J23="MENSUAL"),N17/3+N46,IF(AND(N23="MENSUAL",J23="MENSUAL"),N17,"")))) -> 
C48: NIVEL DE SEGREGACIÓN *
C49: UNIDAD SEGREGADA (Ej. Facultad, Programa Académico, Área) | G49: RESULTADO | K49: ANALISIS DE DATOS SEGREGADO
G68: Estratégico | J68: Eficacia
G69: Misional | J69: Eficiencia
G70: Apoyo | J70: Acreditación
G71: Seguimiento, Medición, Análisis y Evaluación | J71: Positiva
G72: Direccionamiento Estratégico | J72: Negativa
G73: Planeación Institucional | J73: Por Unidad Regional
G74: Proyectos Especiales y Relaciones Interinstitucionales | J74: Por Facultad
G75: Sistemas Integrados | J75: Por Programa Académico
G76: Autoevaluación y Acreditación | J76: Por área
G77: Comunicaciones | J77: Por Laboratorio
G78: Formación y Aprendizaje | J78: Otros
G79: Ciencia, Tecnología e Innovación | J79: No Aplica
G80: Interacción Social Universitaria
G81: Bienestar Universitario
G82: Admisiones y Registro
G83: Graduados
G84: Dialogando con el Mundo
G85: Talento Humano
G86: Jurídica
G87: Financiera
G88: Sistemas y Tecnología
G89: Bienes y Servicios
G90: Documental
G91: Apoyo Académico
G92: Control Interno
G93: Control Disciplinario
G94: Servicio de Atención al Ciudadano

Sheet EPI-2
B2: REGRESAR
E5: MACROPROCESO ESTRATÉGICO | M5: CÓDIGO: ESGr027
E6: PROCESO GESTIÓN SISTEMAS INTEGRADOS | M6: VERSIÓN: 7
E7: MATRIZ DE MEDICIÓN Y SEGUIMIENTO A LOS PROCESOS DE GESTIÓN | M7: VIGENCIA: 2020-03-31
M8: PÁGINA: 1 de 1
C10: FICHA DE INDICADOR
C12: MACROPROCESO | E12: Estratégico | I12: NOMBRE DEL INDICADOR | K12: Oportunidad en los Reportes Externos
C13: PROCESO GESTIÓN | E13: Planeación Institucional
C14: RESPONSABLE DE MEDICIÓN | E14: Director de Planeación Institucional
C16: 1. COMPORTAMIENTO DE INDICADOR
C17: CLASIFICACIÓN DE LA MEDICIÓN | E17: 1 | H17: TIPO DE INDICADOR | J17: Eficiencia | L17: META ANUAL | N17: 0.9
C18: FORMULA | E18: NUMERADOR | G18: (# reportes SNIES en la fecha establecida) * 100 | L18: UNIDAD DE MEDIDA | N18: Porcentual
E19: DENOMINADOR | G19: # Total de reportes SNIES
C20: TENDENCIA | E20: Positiva | H20: NIVEL DE SEGREGACIÓN* | J20: No Aplica | L20: ESCALA
L21: Deficiente | M21: Aceptable | N21: Bueno | O21: Excelente
L22: 0 - 59,9% | M22: 60% - 79,9% | N22: 80% - 90% | O22: 90,1% - 100%
C23: ORIGEN DE DATOS NUMERADOR | E23: Reportes SNIES por sistema | H23: FRECUENCIA DE LA MEDICIÓN | J23: SEMESTRAL | L23: FRECUENCIA DE RESULTADO | N23: SEMESTRAL
C24: ORIGEN DE DATOS DENOMINADOR | E24: Reportes SNIES por sistema
C26: RESULTADOS
J27: ANÁLISIS DE DATOS
J28: En el primer semestre de 2020, se realizaron 93 reportes a entes externos, de los cuales, reportaron extemporáneos 6, debido al apoyo que se realizó por parte de la Dirección de Planeación, a las mesas de trabajo para la construcción del nuevo Plan de Desarrollo. Durante el segundo semestre de 2020, se realizaron 93 reportes a entes externos, sin embargo 6 de ellos fueron extemporáneos debio a que el funcionario encargado tuvo incapacidad médica.
J34: ACCIÓN FORMULADA
J35: En la medida de lo posible realizar los reportes al SNIES con mayor anticipación, concertando con las oficinas fuente, así como el uso de las tecnologías de la información, teniendo en cuenta el contexto actual del país en materia sanitaria.
J38: RESPONSABLE
J39: =E14 -> Director de Planeación Institucional
C42: PERIODO DE EVALUACIÓN
C43: MES | D43: =IF(J23="MENSUAL","ENERO",IF(J23="TRIMESTRAL","MARZO",IF(J23="SEMESTRAL","JUNIO",IF(J23="ANUAL",YEAR(TODAY()),"")))) -> JUNIO | E43: =IF(J23="MENSUAL","FEBRERO",IF(J23="TRIMESTRAL","JUNIO",IF(J23="SEMESTRAL","DICIEMBRE",""))) -> DICIEMBRE | F43: =IF(J23="MENSUAL","MARZO",IF(J23="TRIMESTRAL","SEPTIEMBRE","")) ->  | G43: =IF(J23="MENSUAL","ABRIL",IF(J23="TRIMESTRAL","DICIEMBRE","")) ->  | H43: =IF(J23="MENSUAL","MAYO","") ->  | I43: =IF(J23="MENSUAL","JUNIO","") ->  | J43: =IF(J23="MENSUAL","JULIO","") ->  | K43: =IF(J23="MENSUAL","AGOSTO","") ->  | L43: =IF(J23="MENSUAL","SEPTIEMBRE","") ->  | M43: =IF(J23="MENSUAL","OCTUBRE","") ->  | N43: =IF(J23="MENSUAL","NOVIEMBRE","") ->  | O43: =IF(J23="MENSUAL","DICIEMBRE","") -> 
C44: =G18 -> (# reportes SNIES en la fecha establecida) * 100 | D44: 87 | E44: 87
C45: =G19 -> # Total de reportes SNIES | D45: 93 | E45: 93
C46: VALOR | D46: =IFERROR(IF($E$17=1,D44/D45,IF($E$17=2,D44,"")),"") -> 0.935483871 | E46: =IFERROR(IF($E$17=1,E44/E45,IF($E$17=2,E44,"")),"") -> 0.935483871
C47: META PONDERADA | D47: =IF(AND(N23="ANUAL",J23="MENSUAL"),N17/12,IF(AND(N23="ANUAL",J23="TRIMESTRAL"),N17/4,IF(AND(N23="ANUAL",J23="SEMESTRAL"),N17/2,IF(AND(N23="ANUAL",J23="ANUAL"),N17,IF(AND(N23="SEMESTRAL",J23="MENSUAL"),N17/6,IF(AND(N23="SEMESTRAL",J23="TRIMESTRAL"),N17/2,IF(AND(N23="SEMESTRAL",J23="SEMESTRAL"),N17,IF(AND(N23="SEMESTRAL",J23="ANUAL"),"REVISAR FRECUENCIAS",IF(AND(N23="TRIMESTRAL",J23="MENSUAL"),N17/3,IF(AND(N23="TRIMESTRAL",J23="TRIMESTRAL"),N17,IF(AND(N23="TRIMESTRAL",J23="SEMESTRAL"),"REVISAR FRECUENCIAS",IF(AND(N23="TRIMESTRAL",J23="ANUAL"),"REVISAR FRECUENCIAS",IF(AND(N23="MENSUAL",J23="MENSUAL"),N17,IF(AND(N23="MENSUAL",J23="TRIMESTRAL"),"REVISAR FRECUENCIAS",IF(AND(N23="MENSUAL",J23="SEMESTRAL"),"REVISAR FRECUENCIAS",IF(AND(N23="MENSUAL",J23="ANUAL"),"REVISAR FRECUENCIAS","")))))))))))))))) -> 0.9 | E47: =IF(AND(N23="ANUAL",J23="MENSUAL"),N17/12+D47,IF(AND(N23="ANUAL",J23="TRIMESTRAL"),N17/4+D47,IF(AND(N23="ANUAL",J23="SEMESTRAL"),N17/2+D47,IF(AND(N23="SEMESTRAL",J23="MENSUAL"),N17/6+D47,IF(AND(N23="SEMESTRAL",J23="TRIMESTRAL"),N17/2+D47,IF(AND(N23="SEMESTRAL",J23="SEMESTRAL"),N17,IF(AND(N23="TRIMESTRAL",J23="MENSUAL"),N17/3+D47,IF(AND(N23="TRIMESTRAL",J23="TRIMESTRAL"),N17,IF(AND(N23="MENSUAL",J23="MENSUAL"),N17,""))))))))) -> 0.9 | F47: =IF(AND(N23="ANUAL",J23="MENSUAL"),N17/12+E47,IF(AND(N23="ANUAL",J23="TRIMESTRAL"),N17/4+E47,IF(AND(N23="SEMESTRAL",J23="MENSUAL"),N17/6+E47,IF(AND(N23="SEMESTRAL",J23="TRIMESTRAL"),N17/2,IF(AND(N23="TRIMESTRAL",J23="MENSUAL"),N17/3+E47,IF(AND(N23="TRIMESTRAL",J23="TRIMESTRAL"),N17,IF(AND(N23="MENSUAL",J23="MENSUAL"),N17,""))))))) ->  | G47: =IF(AND(N23="ANUAL",J23="MENSUAL"),N17/12+F47,IF(AND(N23="ANUAL",J23="TRIMESTRAL"),N17/4+F47,IF(AND(N23="SEMESTRAL",J23="MENSUAL"),N17/6+F47,IF(AND(N23="SEMESTRAL",J23="TRIMESTRAL"),N17/2+F47,IF(AND(N23="TRIMESTRAL",J23="MENSUAL"),N17/3,IF(AND(N23="TRIMESTRAL",J23="TRIMESTRAL"),N17,IF(AND(N23="MENSUAL",J23="MENSUAL"),N17,""))))))) ->  | H47: =IF(AND($N$23="ANUAL",$J$23="MENSUAL"),$N$17/12+G47,IF(AND(N23="SEMESTRAL",J23="MENSUAL"),N17/6+G47,IF(AND(N23="TRIMESTRAL",J23="MENSUAL"),N17/3+G47,IF(AND(N23="MENSUAL",J23="MENSUAL"),N17,"")))) ->  | I47: =IF(AND($N$23="ANUAL",$J$23="MENSUAL"),$N$17/12+H47,IF(AND(N23="SEMESTRAL",J23="MENSUAL"),N17/6+H47,IF(AND(N23="TRIMESTRAL",J23="MENSUAL"),N17/3+H47,IF(AND(N23="MENSUAL",J23="MENSUAL"),N17,"")))) ->  | J47: =IF(AND($N$23="ANUAL",$J$23="MENSUAL"),$N$17/12+I47,IF(AND(N23="SEMESTRAL",J23="MENSUAL"),N17/6,IF(AND(N23="TRIMESTRAL",J23="MENSUAL"),N17/3,IF(AND(N23="MENSUAL",J23="MENSUAL"),N17,"")))) ->  | K47: =IF(AND($N$23="ANUAL",$J$23="MENSUAL"),$N$17/12+J47,IF(AND(N23="SEMESTRAL",J23="MENSUAL"),N17/6+J47,IF(AND(N23="TRIMESTRAL",J23="MENSUAL"),N17/3+J47,IF(AND(N23="MENSUAL",J23="MENSUAL"),N17,"")))) ->  | L47: =IF(AND($N$23="ANUAL",$J$23="MENSUAL"),$N$17/12+K47,IF(AND(N23="SEMESTRAL",J23="MENSUAL"),N17/6+K47,IF(AND(N23="TRIMESTRAL",J23="MENSUAL"),N17/3+K47,IF(AND(N23="MENSUAL",J23="MENSUAL"),N17,"")))) ->  | M47: =IF(AND($N$23="ANUAL",$J$23="MENSUAL"),$N$17/12+L47,IF(AND(N23="SEMESTRAL",J23="MENSUAL"),N17/6+L47,IF(AND(N23="TRIMESTRAL",J23="MENSUAL"),N17/3,IF(AND(N23="MENSUAL",J23="MENSUAL"),N17,"")))) ->  | N47: =IF(AND($N$23="ANUAL",$J$23="MENSUAL"),$N$17/12+M47,IF(AND(N23="SEMESTRAL",J23="MENSUAL"),N17/6+M47,IF(AND(N23="TRIMESTRAL",J23="MENSUAL"),N17/3+M47,IF(AND(N23="MENSUAL",J23="MENSUAL"),N17,"")))) ->  | O47: =IF(AND($N$23="ANUAL",$J$23="MENSUAL"),$N$17/12+N47,IF(AND(N23="SEMESTRAL",J23="MENSUAL"),N17/6+N47,IF(AND(N23="TRIMESTRAL",J23="MENSUAL"),N17/3+N47,IF(AND(N23="MENSUAL",J23="MENSUAL"),N17,"")))) -> 
C49: NIVEL DE SEGREGACIÓN *
C50: UNIDAD SEGREGADA (Ej. Facultad, Programa Académico, Área) | G50: RESULTADO | K50: ANALISIS DE DATOS SEGREGADO
G69: Estratégico | J69: Eficacia
G70: Misional | J70: Eficiencia
G71: Apoyo | J71: Acreditación
G72: Seguimiento, Medición, Análisis y Evaluación | J72: Positiva
G73: Direccionamiento Estratégico | J73: Negativa
G74: Planeación Institucional | J74: Por Unidad Regional
G75: Proyectos Especiales y Relaciones Interinstitucionales | J75: Por Facultad
G76: Sistemas Integrados | J76: Por Programa Académico
G77: Autoevaluación y Acreditación | J77: Por área
G78: Comunicaciones | J78: Por Laboratorio
G79: Formación y Aprendizaje | J79: Otros
G80: Ciencia, Tecnología e Innovación | J80: No Aplica
G81: Interacción Social Universitaria
G82: Bienestar Universitario
G83: Admisiones y Registro
G84: Graduados
G85: Dialogando con el Mundo
G86: Talento Humano
G87: Jurídica
G88: Financiera
G89: Sistemas y Tecnología
G90: Bienes y Servicios
G91: Documental
G92: Apoyo Académico
G93: Control Interno
G94: Control Disciplinario
G95: Servicio de Atención al Ciudadano

Sheet EPI-3
B2: REGRESAR
E5: MACROPROCESO ESTRATÉGICO | M5: CÓDIGO: ESGr027
E6: PROCESO GESTIÓN SISTEMAS INTEGRADOS | M6: VERSIÓN: 7
E7: MATRIZ DE MEDICIÓN Y SEGUIMIENTO A LOS PROCESOS DE GESTIÓN | M7: VIGENCIA: 2020-03-31
M8: PÁGINA: 1 de 1
C10: FICHA DE INDICADOR
C12: MACROPROCESO | E12: Estratégico | I12: NOMBRE DEL INDICADOR | K12: Cumplimiento del desempeño, evaluación y seguimiento a los documentos estratégicos
C13: PROCESO GESTIÓN | E13: Planeación Institucional
C14: RESPONSABLE DE MEDICIÓN | E14: Director de Planeación Institucional
C16: 1. COMPORTAMIENTO DE INDICADOR
C17: CLASIFICACIÓN DE LA MEDICIÓN | E17: 1 | H17: TIPO DE INDICADOR | J17: Eficacia | L17: META ANUAL | N17: 0.9
C18: FORMULA | E18: NUMERADOR | G18: (% de Cumplimiento acumulado del Plan de Acción) * 100 | L18: UNIDAD DE MEDIDA | N18: Porcentual
E19: DENOMINADOR | G19: % Esperado de Plan de Acción
C20: TENDENCIA | E20: Positiva | H20: NIVEL DE SEGREGACIÓN * | J20: Otros | L20: ESCALA
L21: Deficiente | M21: Aceptable | N21: Bueno | O21: Excelente
L22: 0 - 59,9% | M22: 60% - 79,9% | N22: 80% - 90% | O22: 90,1% - 100%
C23: ORIGEN DE DATOS NUMERADOR | E23: Informe seguimiento Plan de Acción | H23: FRECUENCIA DE LA MEDICIÓN | J23: TRIMESTRAL | L23: FRECUENCIA DE RESULTADO | N23: ANUAL
C24: ORIGEN DE DATOS DENOMINADOR | E24: Documento Plan de acción
C26: RESULTADOS
J27: ANÁLISIS DE DATOS
J28: La Dirección de Planeación Institucional presentó a la Comisión de Desempeño Institucional el avance de la construcción del Plan de Desarrollo en sesión del 24 de abril de 2020, incluido el cronograma con las fechas del seguimiento para el Plan de Acción. En esta sesión se aprobó realizar en la vigencia 2020 tres (03) seguimientos por motivo de la proceso de construcción del Plan de Desarrollo 2020-2023, durante el segundo semestre del año. Se realizó seguimiento en el mes de julio de las metas del plan de acción con un resultado de 36,40% faltando por seguimiento las oficinas de Autoevaluación y Acreditación, Interacción Social Universitaria, Internacionalización, Educación Virtual y a Distancia, Admisiones y registro. Se realizó seguimiento en el mes de octubre con corte a septiembre 30 es decir III Trimestre, en el cual se obtuvo un avance de 66,72%, faltando el seguimiento de las oficinas de Autoevaluación y Acreditación, Interacción Social Universitaria, Escuela de Formación y Aprendizaje Docente, Vicerrectoría Académica, Posgrados, Facultad de Ciencias Administrativas, económicas y contables, fac de educación, posgrados y unidad de apoyo académico. Se realizó seguimiento parcial con corte a 30 de noviembre y actualización con corte a 30 de diciembre en el mes de enero de 2021 dando como resultado un avance del 95,19% de las metas establecidas en el Plan de desarrollo 2020-2023, por medio un archivo en Drive se habilitaron carpetas para cada una de las áreas donde realizaron el cargue de las evidencias las cuales se encontraron habilitadas para la verificación por parte del área de control interno.
J48: ACCIÓN FORMULADA
J49: La Dirección de Planeación tiene establecido realizar seguimientos trimestrales, sin embargo, ante la construcción del Plan de Desarrollo del periodo 2020 - 2023, se solicitó a la Comisión de Desempeño Institucional realizar seguimiento del plan de acción en el mes de Julio, Septiembre y Diciembre de la vigencia 2020. Por tal motivo, al término del mes de julio se procederá a realizar seguimiento del 1 semestre de la vigencia 2020. En vista de la falta de reporte, se comunico a los superiores jerárquicos y al Rector los procesos que faltan por realizar seguimiento. El 4 de diciembre de 2020 se realizo socialización de los resultados con corte a 30 de noviembre, en el encuentro de gestión en el cual asistieron Directivos, Decanos, Directores de Seccionales y Extensión, Directores y Jefes de Oficina. Para la actualización de las metas se realizo socialización de los resultados finales en al sesión de la comisión de desempeño Institcional con fecha de 27 de enero de 2021.
J60: RESPONSABLE
J61: =E14 -> Director de Planeación Institucional
C64: PERIODO DE EVALUACIÓN
C65: MES | D65: =IF(J23="MENSUAL","ENERO",IF(J23="TRIMESTRAL","MARZO",IF(J23="SEMESTRAL","JUNIO",IF(J23="ANUAL",YEAR(TODAY()),"")))) -> MARZO | E65: =IF(J23="MENSUAL","FEBRERO",IF(J23="TRIMESTRAL","JUNIO",IF(J23="SEMESTRAL","DICIEMBRE",""))) -> JUNIO | F65: =IF(J23="MENSUAL","MARZO",IF(J23="TRIMESTRAL","SEPTIEMBRE","")) -> SEPTIEMBRE | G65: =IF(J23="MENSUAL","ABRIL",IF(J23="TRIMESTRAL","DICIEMBRE","")) -> DICIEMBRE | H65: =IF(J23="MENSUAL","MAYO","") ->  | I65: =IF(J23="MENSUAL","JUNIO","") ->  | J65: =IF(J23="MENSUAL","JULIO","") ->  | K65: =IF(J23="MENSUAL","AGOSTO","") ->  | L65: =IF(J23="MENSUAL","SEPTIEMBRE","") ->  | M65: =IF(J23="MENSUAL","OCTUBRE","") ->  | N65: =IF(J23="MENSUAL","NOVIEMBRE","") ->  | O65: =IF(J23="MENSUAL","DICIEMBRE","") -> 
C66: =G18 -> (% de Cumplimiento acumulado del Plan de Acción) * 100 | D66: 0 | E66: 0.364 | F66: 0.6672 | G66: 0.9519
C67: =G19 -> % Esperado de Plan de Acción | D67: 0.25 | E67: 0.5 | F67: 0.75 | G67: 0.9
C68: VALOR | D68: =IFERROR(IF($E$17=1,D66/D67,IF($E$17=2,D66,"")),"") -> 0 | E68: =IFERROR(IF($E$17=1,E66/E67,IF($E$17=2,E66,"")),"") -> 0.728 | F68: 0.8896 | G68: 1
C69: META PONDERADA | D69: =IF(AND(N23="ANUAL",J23="MENSUAL"),N17/12,IF(AND(N23="ANUAL",J23="TRIMESTRAL"),N17/4,IF(AND(N23="ANUAL",J23="SEMESTRAL"),N17/2,IF(AND(N23="ANUAL",J23="ANUAL"),N17,IF(AND(N23="SEMESTRAL",J23="MENSUAL"),N17/6,IF(AND(N23="SEMESTRAL",J23="TRIMESTRAL"),N17/2,IF(AND(N23="SEMESTRAL",J23="SEMESTRAL"),N17,IF(AND(N23="SEMESTRAL",J23="ANUAL"),"REVISAR FRECUENCIAS",IF(AND(N23="TRIMESTRAL",J23="MENSUAL"),N17/3,IF(AND(N23="TRIMESTRAL",J23="TRIMESTRAL"),N17,IF(AND(N23="TRIMESTRAL",J23="SEMESTRAL"),"REVISAR FRECUENCIAS",IF(AND(N23="TRIMESTRAL",J23="ANUAL"),"REVISAR FRECUENCIAS",IF(AND(N23="MENSUAL",J23="MENSUAL"),N17,IF(AND(N23="MENSUAL",J23="TRIMESTRAL"),"REVISAR FRECUENCIAS",IF(AND(N23="MENSUAL",J23="SEMESTRAL"),"REVISAR FRECUENCIAS",IF(AND(N23="MENSUAL",J23="ANUAL"),"REVISAR FRECUENCIAS","")))))))))))))))) -> 0.225 | E69: =IF(AND(N23="ANUAL",J23="MENSUAL"),N17/12+D69,IF(AND(N23="ANUAL",J23="TRIMESTRAL"),N17/4+D69,IF(AND(N23="ANUAL",J23="SEMESTRAL"),N17/2+D69,IF(AND(N23="SEMESTRAL",J23="MENSUAL"),N17/6+D69,IF(AND(N23="SEMESTRAL",J23="TRIMESTRAL"),N17/2+D69,IF(AND(N23="SEMESTRAL",J23="SEMESTRAL"),N17,IF(AND(N23="TRIMESTRAL",J23="MENSUAL"),N17/3+D69,IF(AND(N23="TRIMESTRAL",J23="TRIMESTRAL"),N17,IF(AND(N23="MENSUAL",J23="MENSUAL"),N17,""))))))))) -> 0.45 | F69: =IF(AND(N23="ANUAL",J23="MENSUAL"),N17/12+E69,IF(AND(N23="ANUAL",J23="TRIMESTRAL"),N17/4+E69,IF(AND(N23="SEMESTRAL",J23="MENSUAL"),N17/6+E69,IF(AND(N23="SEMESTRAL",J23="TRIMESTRAL"),N17/2,IF(AND(N23="TRIMESTRAL",J23="MENSUAL"),N17/3+E69,IF(AND(N23="TRIMESTRAL",J23="TRIMESTRAL"),N17,IF(AND(N23="MENSUAL",J23="MENSUAL"),N17,""))))))) -> 0.675 | G69: =IF(AND(N23="ANUAL",J23="MENSUAL"),N17/12+F69,IF(AND(N23="ANUAL",J23="TRIMESTRAL"),N17/4+F69,IF(AND(N23="SEMESTRAL",J23="MENSUAL"),N17/6+F69,IF(AND(N23="SEMESTRAL",J23="TRIMESTRAL"),N17/2+F69,IF(AND(N23="TRIMESTRAL",J23="MENSUAL"),N17/3,IF(AND(N23="TRIMESTRAL",J23="TRIMESTRAL"),N17,IF(AND(N23="MENSUAL",J23="MENSUAL"),N17,""))))))) -> 0.9 | H69: =IF(AND($N$23="ANUAL",$J$23="MENSUAL"),$N$17/12+G69,IF(AND(N23="SEMESTRAL",J23="MENSUAL"),N17/6+G69,IF(AND(N23="TRIMESTRAL",J23="MENSUAL"),N17/3+G69,IF(AND(N23="MENSUAL",J23="MENSUAL"),N17,"")))) ->  | I69: =IF(AND($N$23="ANUAL",$J$23="MENSUAL"),$N$17/12+H69,IF(AND(N23="SEMESTRAL",J23="MENSUAL"),N17/6+H69,IF(AND(N23="TRIMESTRAL",J23="MENSUAL"),N17/3+H69,IF(AND(N23="MENSUAL",J23="MENSUAL"),N17,"")))) ->  | J69: =IF(AND($N$23="ANUAL",$J$23="MENSUAL"),$N$17/12+I69,IF(AND(N23="SEMESTRAL",J23="MENSUAL"),N17/6,IF(AND(N23="TRIMESTRAL",J23="MENSUAL"),N17/3,IF(AND(N23="MENSUAL",J23="MENSUAL"),N17,"")))) ->  | K69: =IF(AND($N$23="ANUAL",$J$23="MENSUAL"),$N$17/12+J69,IF(AND(N23="SEMESTRAL",J23="MENSUAL"),N17/6+J69,IF(AND(N23="TRIMESTRAL",J23="MENSUAL"),N17/3+J69,IF(AND(N23="MENSUAL",J23="MENSUAL"),N17,"")))) ->  | L69: =IF(AND($N$23="ANUAL",$J$23="MENSUAL"),$N$17/12+K69,IF(AND(N23="SEMESTRAL",J23="MENSUAL"),N17/6+K69,IF(AND(N23="TRIMESTRAL",J23="MENSUAL"),N17/3+K69,IF(AND(N23="MENSUAL",J23="MENSUAL"),N17,"")))) ->  | M69: =IF(AND($N$23="ANUAL",$J$23="MENSUAL"),$N$17/12+L69,IF(AND(N23="SEMESTRAL",J23="MENSUAL"),N17/6+L69,IF(AND(N23="TRIMESTRAL",J23="MENSUAL"),N17/3,IF(AND(N23="MENSUAL",J23="MENSUAL"),N17,"")))) ->  | N69: =IF(AND($N$23="ANUAL",$J$23="MENSUAL"),$N$17/12+M69,IF(AND(N23="SEMESTRAL",J23="MENSUAL"),N17/6+M69,IF(AND(N23="TRIMESTRAL",J23="MENSUAL"),N17/3+M69,IF(AND(N23="MENSUAL",J23="MENSUAL"),N17,"")))) ->  | O69: =IF(AND($N$23="ANUAL",$J$23="MENSUAL"),$N$17/12+N69,IF(AND(N23="SEMESTRAL",J23="MENSUAL"),N17/6+N69,IF(AND(N23="TRIMESTRAL",J23="MENSUAL"),N17/3+N69,IF(AND(N23="MENSUAL",J23="MENSUAL"),N17,"")))) -> 
C71: NIVEL DE SEGREGACIÓN *
C72: UNIDAD SEGREGADA (Ej. Facultad, Programa Académico, Área) | G72: RESULTADO | K72: ANALISIS DE DATOS SEGREGADO
G91: Estratégico | J91: Eficacia
G92: Misional | J92: Eficiencia
G93: Apoyo | J93: Acreditación
G94: Seguimiento, Medición, Análisis y Evaluación | J94: Positiva
G95: Direccionamiento Estratégico | J95: Negativa
G96: Planeación Institucional | J96: Por Unidad Regional
G97: Proyectos Especiales y Relaciones Interinstitucionales | J97: Por Facultad
G98: Sistemas Integrados | J98: Por Programa Académico
G99: Autoevaluación y Acreditación | J99: Por área
G100: Comunicaciones | J100: Por Laboratorio
G101: Formación y Aprendizaje | J101: Otros
G102: Ciencia, Tecnología e Innovación | J102: No Aplica
G103: Interacción Social Universitaria
G104: Bienestar Universitario
G105: Admisiones y Registro
G106: Graduados
G107: Dialogando con el Mundo
G108: Talento Humano
G109: Jurídica
G110: Financiera
G111: Sistemas y Tecnología
G112: Bienes y Servicios
G113: Documental
G114: Apoyo Académico
G115: Control Interno
G116: Control Disciplinario
G117: Servicio de Atención al Ciudadano

Sheet ESG-1
B2: REGRESAR
E5: MACROPROCESO ESTRATÉGICO | M5: CÓDIGO: ESGr027
E6: PROCESO GESTIÓN SISTEMAS INTEGRADOS | M6: VERSIÓN: 7
E7: MATRIZ DE MEDICIÓN Y SEGUIMIENTO A LOS PROCESOS DE GESTIÓN | M7: VIGENCIA: 2020-03-31
M8: PÁGINA: 1 de 1
C10: FICHA DE INDICADOR
C12: MACROPROCESO | E12: Estratégico | I12: NOMBRE DEL INDICADOR | K12: Cumplimiento en el cronograma de mantenimiento ISO 9001:2015
C13: PROCESO GESTIÓN | E13: Sistemas Integrados
C14: RESPONSABLE DE MEDICIÓN | E14: Coordinador de Calidad
C16: 1. COMPORTAMIENTO DE INDICADOR
C17: CLASIFICACIÓN DE LA MEDICIÓN | E17: 1 | H17: TIPO DE INDICADOR | J17: Eficacia | L17: META ANUAL | N17: 0.95
C18: FORMULA | E18: NUMERADOR | G18: (# Total actividades ejecutadas) * 100 | L18: UNIDAD DE MEDIDA | N18: Porcentual
E19: DENOMINADOR | G19: # Total de actividades planificadas
C20: TENDENCIA | E20: Positiva | H20: NIVEL DE SEGREGACIÓN * | J20: No Aplica | L20: ESCALA
L21: Deficiente | M21: Aceptable | N21: Bueno | O21: Excelente
L22: 0 - 69,9% | M22: 70% - 84,9% | N22: 85% - 95% | O22: 95,1% - 100%
C23: ORIGEN DE DATOS NUMERADOR | E23: Base de Datos herramienta Planner | H23: FRECUENCIA DE LA MEDICIÓN | J23: TRIMESTRAL | L23: FRECUENCIA DE RESULTADO | N23: SEMESTRAL
C24: ORIGEN DE DATOS DENOMINADOR | E24: Base de Datos herramienta Planner
C26: RESULTADOS
J27: ANÁLISIS DE DATOS
J28: I TRIMESTRE Durante el primer trimestre de 2020 se realizaron actividades como inducciones, actualización de contexto, riesgos, oportunidades, partes interesadas y estructura documental de los procesos. Igualmente, se han realizado actividades como el acompañamiento al reporte de gestión del cambio y salidas no conformes entre otras actividades, esto se ve reflejado en el cumplimiento del indicador con corte a marzo, es de aclarar, que estas actividades responden al alistamiento para auditoria interna y auditoria externa con el ente certificador ICONTEC. II TRIMESTRE Durante el segundo trimestre del año en curso las actividades se enfocaron en los asesoramientos a los procesos para la actualización de matrices de DOFA, indicadores, riesgos y oportunidades, apoyos documentales, entre otros; igualmente, se planificaron acompañamientos en seccionales y extensiones con el fin de fortalecer la gestión del conocimiento del Sistema de Gestión de la Calidad. III TRIMESTRE Para el segundo semestre de la vigencia 2020, desde la oficina de Calidad se adaptó una herramienta mediante TEAMS para llevar el registro de los planes de trabajo de manera mensual, razón por la cual, se evidencia un cumplimiento del 86% frente a la ejecución de las actividades. Igualmente, esto responde a la planificación realizada con los procesos y las actividades por parte del Sistema de Gestión de la Calidad las cuales se verán reflejadas en los planes de trabajo de los meses de octubre, noviembre y diciembre. IV TRIMESTRE Durante el cuarto trimestre de 2020, se llevo a cabo la actualización de matrices de riesgos, actualizaciones documentales, acompañamientos en la identificación y seguimiento de gestión del cambio, consolidación y publicación de indicadores por proceso, auditorías simuladas y acompañamiento en las auditorías externas. Por otra parte, es importante aclarar que la disminución de actividades programadas de un semestre a otro se vio afectada por el cambio de metodología y herramienta para la planificación; en el 2020-1 se realizó uso de la herramienta "Trello" mediante la cual se proyectaban las actividades de todo el semestre con sus respectivas listas de chequeo por actividad y por proceso, posteriormente, se adopto la herramienta "Teams" a través de la cual se planifican las actividades de manera mensual y se ingresan los seguimientos mediante notas en las actividades, es decir, ya no se cuentan con listas de chequeo las cuales incrementaban el número de actividades.
J59: ACCIÓN FORMULADA
J60: I TRIMESTRE No aplica II TRIMESTRE Referente a las actividades pendientes, las mismas se reasignaran para ser ejecutadas durante el IIPA de 2020, lo anterior, teniendo en cuenta la disponibilidad del Talento Humano contratado para la oficina de Calidad. III TRIMESTRE No aplica IV TRIMESTRE Para la vigencia 2021 se modificará la frecuencia de medición a trimestral dado el cambio metodológico en la planificación.
J70: RESPONSABLE
J71: =E14 -> Coordinador de Calidad
C74: PERIODO DE EVALUACIÓN
C75: MES | D75: =IF(J23="MENSUAL","ENERO",IF(J23="TRIMESTRAL","MARZO",IF(J23="SEMESTRAL","JUNIO",IF(J23="ANUAL",YEAR(TODAY()),"")))) -> MARZO | E75: =IF(J23="MENSUAL","FEBRERO",IF(J23="TRIMESTRAL","JUNIO",IF(J23="SEMESTRAL","DICIEMBRE",""))) -> JUNIO | F75: =IF(J23="MENSUAL","MARZO",IF(J23="TRIMESTRAL","SEPTIEMBRE","")) -> SEPTIEMBRE | G75: =IF(J23="MENSUAL","ABRIL",IF(J23="TRIMESTRAL","DICIEMBRE","")) -> DICIEMBRE | H75: =IF(J23="MENSUAL","MAYO","") ->  | I75: =IF(J23="MENSUAL","JUNIO","") ->  | J75: =IF(J23="MENSUAL","JULIO","") ->  | K75: =IF(J23="MENSUAL","AGOSTO","") ->  | L75: =IF(J23="MENSUAL","SEPTIEMBRE","") ->  | M75: =IF(J23="MENSUAL","OCTUBRE","") ->  | N75: =IF(J23="MENSUAL","NOVIEMBRE","") ->  | O75: =IF(J23="MENSUAL","DICIEMBRE","") -> 
C76: =G18 -> (# Total actividades ejecutadas) * 100 | D76: 773 | E76: 1244 | F76: 170 | G76: 542
C77: =G19 -> # Total de actividades planificadas | D77: 1304 | E77: 1304 | F77: 542 | G77: 542
C78: VALOR | D78: =IFERROR(IF($E$17=1,D76/D77,IF($E$17=2,D76,"")),"") -> 0.592791411 | E78: =IFERROR(IF($E$17=1,E76/E77,IF($E$17=2,E76,"")),"") -> 0.9539877301 | F78: 0.3136531365 | G78: 1
C79: META PONDERADA | D79: =IF(AND(N23="ANUAL",J23="MENSUAL"),N17/12,IF(AND(N23="ANUAL",J23="TRIMESTRAL"),N17/4,IF(AND(N23="ANUAL",J23="SEMESTRAL"),N17/2,IF(AND(N23="ANUAL",J23="ANUAL"),N17,IF(AND(N23="SEMESTRAL",J23="MENSUAL"),N17/6,IF(AND(N23="SEMESTRAL",J23="TRIMESTRAL"),N17/2,IF(AND(N23="SEMESTRAL",J23="SEMESTRAL"),N17,IF(AND(N23="SEMESTRAL",J23="ANUAL"),"REVISAR FRECUENCIAS",IF(AND(N23="TRIMESTRAL",J23="MENSUAL"),N17/3,IF(AND(N23="TRIMESTRAL",J23="TRIMESTRAL"),N17,IF(AND(N23="TRIMESTRAL",J23="SEMESTRAL"),"REVISAR FRECUENCIAS",IF(AND(N23="TRIMESTRAL",J23="ANUAL"),"REVISAR FRECUENCIAS",IF(AND(N23="MENSUAL",J23="MENSUAL"),N17,IF(AND(N23="MENSUAL",J23="TRIMESTRAL"),"REVISAR FRECUENCIAS",IF(AND(N23="MENSUAL",J23="SEMESTRAL"),"REVISAR FRECUENCIAS",IF(AND(N23="MENSUAL",J23="ANUAL"),"REVISAR FRECUENCIAS","")))))))))))))))) -> 0.475 | E79: =IF(AND(N23="ANUAL",J23="MENSUAL"),N17/12+D79,IF(AND(N23="ANUAL",J23="TRIMESTRAL"),N17/4+D79,IF(AND(N23="ANUAL",J23="SEMESTRAL"),N17/2+D79,IF(AND(N23="SEMESTRAL",J23="MENSUAL"),N17/6+D79,IF(AND(N23="SEMESTRAL",J23="TRIMESTRAL"),N17/2+D79,IF(AND(N23="SEMESTRAL",J23="SEMESTRAL"),N17,IF(AND(N23="TRIMESTRAL",J23="MENSUAL"),N17/3+D79,IF(AND(N23="TRIMESTRAL",J23="TRIMESTRAL"),N17,IF(AND(N23="MENSUAL",J23="MENSUAL"),N17,""))))))))) -> 0.95 | F79: =IF(AND(N23="ANUAL",J23="MENSUAL"),N17/12+E79,IF(AND(N23="ANUAL",J23="TRIMESTRAL"),N17/4+E79,IF(AND(N23="SEMESTRAL",J23="MENSUAL"),N17/6+E79,IF(AND(N23="SEMESTRAL",J23="TRIMESTRAL"),N17/2,IF(AND(N23="TRIMESTRAL",J23="MENSUAL"),N17/3+E79,IF(AND(N23="TRIMESTRAL",J23="TRIMESTRAL"),N17,IF(AND(N23="MENSUAL",J23="MENSUAL"),N17,""))))))) -> 0.475 | G79: =IF(AND(N23="ANUAL",J23="MENSUAL"),N17/12+F79,IF(AND(N23="ANUAL",J23="TRIMESTRAL"),N17/4+F79,IF(AND(N23="SEMESTRAL",J23="MENSUAL"),N17/6+F79,IF(AND(N23="SEMESTRAL",J23="TRIMESTRAL"),N17/2+F79,IF(AND(N23="TRIMESTRAL",J23="MENSUAL"),N17/3,IF(AND(N23="TRIMESTRAL",J23="TRIMESTRAL"),N17,IF(AND(N23="MENSUAL",J23="MENSUAL"),N17,""))))))) -> 0.95 | H79: =IF(AND($N$23="ANUAL",$J$23="MENSUAL"),$N$17/12+G79,IF(AND(N23="SEMESTRAL",J23="MENSUAL"),N17/6+G79,IF(AND(N23="TRIMESTRAL",J23="MENSUAL"),N17/3+G79,IF(AND(N23="MENSUAL",J23="MENSUAL"),N17,"")))) ->  | I79: =IF(AND($N$23="ANUAL",$J$23="MENSUAL"),$N$17/12+H79,IF(AND(N23="SEMESTRAL",J23="MENSUAL"),N17/6+H79,IF(AND(N23="TRIMESTRAL",J23="MENSUAL"),N17/3+H79,IF(AND(N23="MENSUAL",J23="MENSUAL"),N17,"")))) ->  | J79: =IF(AND($N$23="ANUAL",$J$23="MENSUAL"),$N$17/12+I79,IF(AND(N23="SEMESTRAL",J23="MENSUAL"),N17/6,IF(AND(N23="TRIMESTRAL",J23="MENSUAL"),N17/3,IF(AND(N23="MENSUAL",J23="MENSUAL"),N17,"")))) ->  | K79: =IF(AND($N$23="ANUAL",$J$23="MENSUAL"),$N$17/12+J79,IF(AND(N23="SEMESTRAL",J23="MENSUAL"),N17/6+J79,IF(AND(N23="TRIMESTRAL",J23="MENSUAL"),N17/3+J79,IF(AND(N23="MENSUAL",J23="MENSUAL"),N17,"")))) ->  | L79: =IF(AND($N$23="ANUAL",$J$23="MENSUAL"),$N$17/12+K79,IF(AND(N23="SEMESTRAL",J23="MENSUAL"),N17/6+K79,IF(AND(N23="TRIMESTRAL",J23="MENSUAL"),N17/3+K79,IF(AND(N23="MENSUAL",J23="MENSUAL"),N17,"")))) ->  | M79: =IF(AND($N$23="ANUAL",$J$23="MENSUAL"),$N$17/12+L79,IF(AND(N23="SEMESTRAL",J23="MENSUAL"),N17/6+L79,IF(AND(N23="TRIMESTRAL",J23="MENSUAL"),N17/3,IF(AND(N23="MENSUAL",J23="MENSUAL"),N17,"")))) ->  | N79: =IF(AND($N$23="ANUAL",$J$23="MENSUAL"),$N$17/12+M79,IF(AND(N23="SEMESTRAL",J23="MENSUAL"),N17/6+M79,IF(AND(N23="TRIMESTRAL",J23="MENSUAL"),N17/3+M79,IF(AND(N23="MENSUAL",J23="MENSUAL"),N17,"")))) ->  | O79: =IF(AND($N$23="ANUAL",$J$23="MENSUAL"),$N$17/12+N79,IF(AND(N23="SEMESTRAL",J23="MENSUAL"),N17/6+N79,IF(AND(N23="TRIMESTRAL",J23="MENSUAL"),N17/3+N79,IF(AND(N23="MENSUAL",J23="MENSUAL"),N17,"")))) -> 
C81: NIVEL DE SEGREGACIÓN *
C82: UNIDAD SEGREGADA (Ej. Facultad, Programa Académico, Área) | G82: RESULTADO | K82: ANALISIS DE DATOS SEGREGADO
G101: Estratégico | J101: Eficacia
G102: Misional | J102: Eficiencia
G103: Apoyo | J103: Acreditación
G104: Seguimiento, Medición, Análisis y Evaluación | J104: Positiva
G105: Direccionamiento Estratégico | J105: Negativa
G106: Planeación Institucional | J106: Por Unidad Regional
G107: Proyectos Especiales y Relaciones Interinstitucionales | J107: Por Facultad
G108: Sistemas Integrados | J108: Por Programa Académico
G109: Autoevaluación y Acreditación | J109: Por área
G110: Comunicaciones | J110: Por Laboratorio
G111: Formación y Aprendizaje | J111: Otros
G112: Ciencia, Tecnología e Innovación | J112: No Aplica
G113: Interacción Social Universitaria
G114: Bienestar Universitario
G115: Admisiones y Registro
G116: Graduados
G117: Dialogando con el Mundo
G118: Talento Humano
G119: Jurídica
G120: Financiera
G121: Sistemas y Tecnología
G122: Bienes y Servicios
G123: Documental
G124: Apoyo Académico
G125: Control Interno
G126: Control Disciplinario
G127: Servicio de Atención al Ciudadano

Sheet ESG-2
B2: REGRESAR
E5: MACROPROCESO ESTRATÉGICO | M5: CÓDIGO: ESGr027
E6: PROCESO GESTIÓN SISTEMAS INTEGRADOS | M6: VERSIÓN: 7
E7: MATRIZ DE MEDICIÓN Y SEGUIMIENTO A LOS PROCESOS DE GESTIÓN | M7: VIGENCIA: 2020-03-31
M8: PÁGINA: 1 de 1
C10: FICHA DE INDICADOR
C12: MACROPROCESO | E12: Estratégico | I12: NOMBRE DEL INDICADOR | K12: Acompañamientos por proceso
C13: PROCESO GESTIÓN | E13: Sistemas Integrados
C14: RESPONSABLE DE MEDICIÓN | E14: Coordinador de Calidad
C16: 1. COMPORTAMIENTO DE INDICADOR
C17: CLASIFICACIÓN DE LA MEDICIÓN | E17: 3 | H17: TIPO DE INDICADOR | J17: Eficacia | L17: META ANUAL | N17: 7
C18: FORMULA | E18: NUMERADOR | G18: # Total de Acompañamientos | L18: UNIDAD DE MEDIDA | N18: Número de Acompañamientos por Proceso
E19: DENOMINADOR | G19: # Total de Total de Procesos
C20: TENDENCIA | E20: Positiva | H20: NIVEL DE SEGREGACIÓN * | J20: No Aplica | L20: ESCALA
L21: Deficiente | M21: Aceptable | N21: Bueno | O21: Excelente
L22: 0 - 3,9 | M22: 4 - 4,9 | N22: 5 - 7,0 | O22: 7,1 - En adelante
C23: ORIGEN DE DATOS NUMERADOR | E23: Listados de Asistencia (Plataforma, Teams, Google Forms, etc.) | H23: FRECUENCIA DE LA MEDICIÓN | J23: TRIMESTRAL | L23: FRECUENCIA DE RESULTADO | N23: TRIMESTRAL
C24: ORIGEN DE DATOS DENOMINADOR | E24: Modelo de Operación
C26: RESULTADOS
J27: ANÁLISIS DE DATOS
J28: I TRIMESTRE Entendiendo la actual contingencia (COVID 19), el presente reporte se encuentra justificado con los registros digitales del calendario de Outlook, por lo cual, se estima que la presente medición no cuenta con la información a completitud dado que no se cuenta con el archivo físico y bajo el presente aislamiento obligatorio no se puede acceder al mismo; por ende, los 100 acompañamientos reportados estarán sujetos a modificaciones en cuanto se pueda entregar un dato real. Es importante aclarar, que estos acompañamientos responden a actividades como trámites por medio de INTEGRADOC, acompañamientos y asesoramientos a los 21 procesos de la Universidad de Cundinamarca. II TRIMESTRE Se evidencia la correcta adaptación de estrategias y metodologías en relación al acompañamiento y asesoramiento de los 21 procesos del Sistema de Gestión de Calidad por medio de plataformas tecnológicas (TEAMS, zoom, correos electrónicos, etc.). Durante este periodo de tiempo se realizaron actividades tales como la actualización de matrices DOFA; matrices de riesgos y oportunidades, reportes mediante gestión del cambio, apoyos documentales y optimización de procesos entre otros. III TRIMESTRE Durante el tercer trimestre, se evidenció un alto nivel de acompañamientos debido a la presentación de la auditoria interna del Sistema de Gestión de la Calidad, adicionalmente, se brindaron asesoramientos a cada uno de los procesos frente al cumplimiento de los procedimientos alineados a los requisitos de la NTC ISO 9001: 2015. Por otra parte, se tuvo presente los acompañamientos y asesoramientos solicitados por las seccionales, extensiones y sede en relación a la herramienta Integradoc. IV TRIMESTRE Con base en el histórico de los resultados de la vigencia 2020, es importante aclarar el decrecimiento en acompañamientos durante el tercer y cuarto trimestre, dado que previo al ejercicio de auditoria interna los procesos requieren de mayor acompañamiento para la actualización de temas tales como matrices de riesgos, oportunidades, contexto DOFA, medición de indicadores, gestión del cambio y preparación a la auditoria; seguido de esto, se desarrollan actividades de mantenimiento de conocimientos, perfeccionamiento en debilidades identificadas durante el proceso de auditoria y el acompañamiento en la presentación de la auditoria de renovación con ICONTEC; esto corresponde a los meses de octubre, noviembre y diciembre. Adicionalmente, se orientaron acompañamientos en actividades documentales y optimización y digitalización de trámites a través de la plataforma Integradoc.
J59: ACCIÓN FORMULADA
J60: I TRIMESTRE Dado la actual contingencia, el presente indicador estará sujeto a modificaciones en cuanto se pueda acceder a todas las fuentes de información lo cual permitirá reportar un dato real. II TRIMESTRE No aplica III TRIMESTRE No aplica IV TRIMESTRE Para la vigencia 2021 se realizará la medición del indicador de manera segregada por proceso con el objetivo de analizar el comportamiento de los acompañamientos en las diferentes áreas.
J70: RESPONSABLE
J71: =E14 -> Coordinador de Calidad
C74: PERIODO DE EVALUACIÓN
C75: MES | D75: =IF(J23="MENSUAL","ENERO",IF(J23="TRIMESTRAL","MARZO",IF(J23="SEMESTRAL","JUNIO",IF(J23="ANUAL",YEAR(TODAY()),"")))) -> MARZO | E75: =IF(J23="MENSUAL","FEBRERO",IF(J23="TRIMESTRAL","JUNIO",IF(J23="SEMESTRAL","DICIEMBRE",""))) -> JUNIO | F75: =IF(J23="MENSUAL","MARZO",IF(J23="TRIMESTRAL","SEPTIEMBRE","")) -> SEPTIEMBRE | G75: =IF(J23="MENSUAL","ABRIL",IF(J23="TRIMESTRAL","DICIEMBRE","")) -> DICIEMBRE | H75: =IF(J23="MENSUAL","MAYO","") ->  | I75: =IF(J23="MENSUAL","JUNIO","") ->  | J75: =IF(J23="MENSUAL","JULIO","") ->  | K75: =IF(J23="MENSUAL","AGOSTO","") ->  | L75: =IF(J23="MENSUAL","SEPTIEMBRE","") ->  | M75: =IF(J23="MENSUAL","OCTUBRE","") ->  | N75: =IF(J23="MENSUAL","NOVIEMBRE","") ->  | O75: =IF(J23="MENSUAL","DICIEMBRE","") -> 
C76: =G18 -> # Total de Acompañamientos | D76: 100 | E76: 315 | F76: 220 | G76: 165
C77: =G19 -> # Total de Total de Procesos | D77: 21 | E77: 21 | F77: 23 | G77: 23
C78: VALOR | D78: =IFERROR(IF($E$17=3,D76/D77,IF($E$17=2,D76,"")),"") -> 4.761904762 | E78: =IFERROR(IF($E$17=3,E76/E77,IF($E$17=2,E76,"")),"") -> 15 | F78: =IFERROR(IF($E$17=3,F76/F77,IF($E$17=2,F76,"")),"") -> 9.565217391 | G78: =IFERROR(IF($E$17=3,G76/G77,IF($E$17=2,G76,"")),"") -> 7.173913043 | H78: =IFERROR(IF($E$17=1,H76/H77,IF($E$17=2,H76,"")),"") -> 
C79: META PONDERADA | D79: =IF(AND(N23="ANUAL",J23="MENSUAL"),N17/12,IF(AND(N23="ANUAL",J23="TRIMESTRAL"),N17/4,IF(AND(N23="ANUAL",J23="SEMESTRAL"),N17/2,IF(AND(N23="ANUAL",J23="ANUAL"),N17,IF(AND(N23="SEMESTRAL",J23="MENSUAL"),N17/6,IF(AND(N23="SEMESTRAL",J23="TRIMESTRAL"),N17/2,IF(AND(N23="SEMESTRAL",J23="SEMESTRAL"),N17,IF(AND(N23="SEMESTRAL",J23="ANUAL"),"REVISAR FRECUENCIAS",IF(AND(N23="TRIMESTRAL",J23="MENSUAL"),N17/3,IF(AND(N23="TRIMESTRAL",J23="TRIMESTRAL"),N17,IF(AND(N23="TRIMESTRAL",J23="SEMESTRAL"),"REVISAR FRECUENCIAS",IF(AND(N23="TRIMESTRAL",J23="ANUAL"),"REVISAR FRECUENCIAS",IF(AND(N23="MENSUAL",J23="MENSUAL"),N17,IF(AND(N23="MENSUAL",J23="TRIMESTRAL"),"REVISAR FRECUENCIAS",IF(AND(N23="MENSUAL",J23="SEMESTRAL"),"REVISAR FRECUENCIAS",IF(AND(N23="MENSUAL",J23="ANUAL"),"REVISAR FRECUENCIAS","")))))))))))))))) -> 7 | E79: =IF(AND(N23="ANUAL",J23="MENSUAL"),N17/12+D79,IF(AND(N23="ANUAL",J23="TRIMESTRAL"),N17/4+D79,IF(AND(N23="ANUAL",J23="SEMESTRAL"),N17/2+D79,IF(AND(N23="SEMESTRAL",J23="MENSUAL"),N17/6+D79,IF(AND(N23="SEMESTRAL",J23="TRIMESTRAL"),N17/2+D79,IF(AND(N23="SEMESTRAL",J23="SEMESTRAL"),N17,IF(AND(N23="TRIMESTRAL",J23="MENSUAL"),N17/3+D79,IF(AND(N23="TRIMESTRAL",J23="TRIMESTRAL"),N17,IF(AND(N23="MENSUAL",J23="MENSUAL"),N17,""))))))))) -> 7 | F79: =IF(AND(N23="ANUAL",J23="MENSUAL"),N17/12+E79,IF(AND(N23="ANUAL",J23="TRIMESTRAL"),N17/4+E79,IF(AND(N23="SEMESTRAL",J23="MENSUAL"),N17/6+E79,IF(AND(N23="SEMESTRAL",J23="TRIMESTRAL"),N17/2,IF(AND(N23="TRIMESTRAL",J23="MENSUAL"),N17/3+E79,IF(AND(N23="TRIMESTRAL",J23="TRIMESTRAL"),N17,IF(AND(N23="MENSUAL",J23="MENSUAL"),N17,""))))))) -> 7 | G79: =IF(AND(N23="ANUAL",J23="MENSUAL"),N17/12+F79,IF(AND(N23="ANUAL",J23="TRIMESTRAL"),N17/4+F79,IF(AND(N23="SEMESTRAL",J23="MENSUAL"),N17/6+F79,IF(AND(N23="SEMESTRAL",J23="TRIMESTRAL"),N17/2+F79,IF(AND(N23="TRIMESTRAL",J23="MENSUAL"),N17/3,IF(AND(N23="TRIMESTRAL",J23="TRIMESTRAL"),N17,IF(AND(N23="MENSUAL",J23="MENSUAL"),N17,""))))))) -> 7 | H79: =IF(AND($N$23="ANUAL",$J$23="MENSUAL"),$N$17/12+G79,IF(AND(N23="SEMESTRAL",J23="MENSUAL"),N17/6+G79,IF(AND(N23="TRIMESTRAL",J23="MENSUAL"),N17/3+G79,IF(AND(N23="MENSUAL",J23="MENSUAL"),N17,"")))) ->  | I79: =IF(AND($N$23="ANUAL",$J$23="MENSUAL"),$N$17/12+H79,IF(AND(N23="SEMESTRAL",J23="MENSUAL"),N17/6+H79,IF(AND(N23="TRIMESTRAL",J23="MENSUAL"),N17/3+H79,IF(AND(N23="MENSUAL",J23="MENSUAL"),N17,"")))) ->  | J79: =IF(AND($N$23="ANUAL",$J$23="MENSUAL"),$N$17/12+I79,IF(AND(N23="SEMESTRAL",J23="MENSUAL"),N17/6,IF(AND(N23="TRIMESTRAL",J23="MENSUAL"),N17/3,IF(AND(N23="MENSUAL",J23="MENSUAL"),N17,"")))) ->  | K79: =IF(AND($N$23="ANUAL",$J$23="MENSUAL"),$N$17/12+J79,IF(AND(N23="SEMESTRAL",J23="MENSUAL"),N17/6+J79,IF(AND(N23="TRIMESTRAL",J23="MENSUAL"),N17/3+J79,IF(AND(N23="MENSUAL",J23="MENSUAL"),N17,"")))) ->  | L79: =IF(AND($N$23="ANUAL",$J$23="MENSUAL"),$N$17/12+K79,IF(AND(N23="SEMESTRAL",J23="MENSUAL"),N17/6+K79,IF(AND(N23="TRIMESTRAL",J23="MENSUAL"),N17/3+K79,IF(AND(N23="MENSUAL",J23="MENSUAL"),N17,"")))) ->  | M79: =IF(AND($N$23="ANUAL",$J$23="MENSUAL"),$N$17/12+L79,IF(AND(N23="SEMESTRAL",J23="MENSUAL"),N17/6+L79,IF(AND(N23="TRIMESTRAL",J23="MENSUAL"),N17/3,IF(AND(N23="MENSUAL",J23="MENSUAL"),N17,"")))) ->  | N79: =IF(AND($N$23="ANUAL",$J$23="MENSUAL"),$N$17/12+M79,IF(AND(N23="SEMESTRAL",J23="MENSUAL"),N17/6+M79,IF(AND(N23="TRIMESTRAL",J23="MENSUAL"),N17/3+M79,IF(AND(N23="MENSUAL",J23="MENSUAL"),N17,"")))) ->  | O79: =IF(AND($N$23="ANUAL",$J$23="MENSUAL"),$N$17/12+N79,IF(AND(N23="SEMESTRAL",J23="MENSUAL"),N17/6+N79,IF(AND(N23="TRIMESTRAL",J23="MENSUAL"),N17/3+N79,IF(AND(N23="MENSUAL",J23="MENSUAL"),N17,"")))) -> 
C81: NIVEL DE SEGREGACIÓN *
C82: UNIDAD SEGREGADA (Ej. Facultad, Programa Académico, Área) | G82: RESULTADO | K82: ANALISIS DE DATOS SEGREGADO
G101: Estratégico | J101: Eficacia
G102: Misional | J102: Eficiencia
G103: Apoyo | J103: Acreditación
G104: Seguimiento, Medición, Análisis y Evaluación | J104: Positiva
G105: Direccionamiento Estratégico | J105: Negativa
G106: Planeación Institucional | J106: Por Unidad Regional
G107: Proyectos Especiales y Relaciones Interinstitucionales | J107: Por Facultad
G108: Sistemas Integrados | J108: Por Programa Académico
G109: Autoevaluación y Acreditación | J109: Por área
G110: Comunicaciones | J110: Por Laboratorio
G111: Formación y Aprendizaje | J111: Otros
G112: Ciencia, Tecnología e Innovación | J112: No Aplica
G113: Interacción Social Universitaria
G114: Bienestar Universitario
G115: Admisiones y Registro
G116: Graduados
G117: Dialogando con el Mundo
G118: Talento Humano
G119: Jurídica
G120: Financiera
G121: Sistemas y Tecnología
G122: Bienes y Servicios
G123: Documental
G124: Apoyo Académico
G125: Control Interno
G126: Control Disciplinario
G127: Servicio de Atención al Ciudadano

Sheet EPR-1
B2: REGRESAR
E5: MACROPROCESO ESTRATÉGICO | M5: CÓDIGO: ESGr027
E6: PROCESO GESTIÓN SISTEMAS INTEGRADOS | M6: VERSIÓN: 7
E7: MATRIZ DE MEDICIÓN Y SEGUIMIENTO A LOS PROCESOS DE GESTIÓN | M7: VIGENCIA: 2020-03-20
M8: PÁGINA: 1 de 1
C10: FICHA DE INDICADOR
C12: MACROPROCESO | E12: Estratégico | I12: NOMBRE DEL INDICADOR | K12: Evaluación del No. de alianzas estratégicas mediante convenios empresariales
C13: PROCESO GESTIÓN | E13: Proyectos Especiales y Relaciones Interinstitucionales
C14: RESPONSABLE DE MEDICIÓN | E14: Director(a) Proyectos Especiales y Relaciones Interinstitucionales
C16: 1. COMPORTAMIENTO DE INDICADOR
C17: CLASIFICACIÓN DE LA MEDICIÓN | E17: 1 | H17: TIPO DE INDICADOR | J17: Eficacia | L17: META ANUAL | N17: 1
C18: FÓRMULA | E18: NUMERADOR | G18: No. de alianzas estratégicas mediante convenios empresariales *100 | L18: UNIDAD DE MEDIDA | N18: Porcentual
E19: DENOMINADOR | G19: No. de alianzas estratégicas proyectadas por año
C20: TENDENCIA | E20: Positiva | H20: NIVEL DE SEGREGACIÓN * | J20: No aplica | L20: ESCALA
L21: Deficiente | M21: Aceptable | N21: Bueno | O21: Excelente
L22: 0-33 | M22: 34-66 | N22: 67-100 | O22: Superior a 100
C23: ORIGEN DE DATOS NUMERADOR | E23: Base de datos contratos suscritos | H23: FRECUENCIA DE LA MEDICIÓN | J23: TRIMESTRAL | L23: FRECUENCIA DE RESULTADO | N23: ANUAL
C24: ORIGEN DE DATOS DENOMINADOR | E24: Plan de Acción
C26: RESULTADOS
J27: ANÁLISIS DE DATOS
J28: I TRIMESTRE: Para el primer trimestre del año 2020 no se han suscrito Convenios Empresariales, se espera poder cumplir en los siguientes trimestres con la meta establecida para la vigencia 2020. II TRIMESTRE: Para el segundo trimestre del año 2020 no se han suscrito Convenios Empresariales, se han presentado varias ofertas y se espera poder cumplir con la meta establecida para la vigencia 2020. III TRIMESTRE: Teniendo en cuenta que el resultado obtenido en los dos trimestres anteriores no fue favorable, principalmente por la situación de pandemia que se presentó a nivel mundial, se procedió a evaluar mecanismos que permitieran realizar una gestión comercial efectiva; por lo anterior, se buscó una comunicación directa con los funcionarios responsables de los temas de educación en diferentes entidades públicas, logrando la suscripción de dos Convenios Empresariales, uno con el Municipio de Funza el 31-08-2020 y otro con el Municipio de Soacha el 23-09-2020. IV TRIMESTRE: En el cuarto trimestre se realizó gestión para suscribir alianzas estratégicas pero no se obtuvo una respuesta satisfactoria.
J36: ACCIÓN FORMULADA
J37: I TRIMESTRE: En el primer trimestre del año 2020 se han presentado propuestas a entidades públicas (Alcaldía - Superintendencia), así como también se han realizado consultas en diferentes páginas para licitar. II TRIMESTRE: En el segundo trimestre del año 2020 se han presentado propuestas a entidades públicas (Alcaldías y Gobernaciones), así como también se han realizado consultas en diferentes páginas para licitar. III TRIMESTRE: Para el tercer trimestre del año 2020 se intensificó la gestión comercial de manera virtual a través de correos electrónicos y llamadas telefónicas, tanto a los alcaldes como a los secretarios de educación de diferentes municipios; se presentaron varias propuestas teniendo en cuenta el plan de capacitación de algunas alcaldías para la vigencia 2020, con el fin de ofrecer el portafolio de servicios de la Universidad de Cundinamarca. En el IV trimestre del presente año se continuará realizando una gestión comercial muy fuerte, para alcanzar la meta establecida (3 convenios suscritos) en el plan de acción y si es posible superarla. IV TRIMESTRE: En el cuarto trimestre del año 2020 se realizó la presentación y gestión de propuestas, pero no se logró la suscripción de alianzas estratégicas.
J45: RESPONSABLE
J46: =E14 -> Director(a) Proyectos Especiales y Relaciones Interinstitucionales
C49: PERIODO DE EVALUACIÓN
C50: MES | D50: =IF(J23="MENSUAL","ENERO",IF(J23="TRIMESTRAL","MARZO",IF(J23="SEMESTRAL","JUNIO",IF(J23="ANUAL",YEAR(TODAY()),"")))) -> MARZO | E50: =IF(J23="MENSUAL","FEBRERO",IF(J23="TRIMESTRAL","JUNIO",IF(J23="SEMESTRAL","DICIEMBRE",""))) -> JUNIO | F50: =IF(J23="MENSUAL","MARZO",IF(J23="TRIMESTRAL","SEPTIEMBRE","")) -> SEPTIEMBRE | G50: =IF(J23="MENSUAL","ABRIL",IF(J23="TRIMESTRAL","DICIEMBRE","")) -> DICIEMBRE | H50: =IF(J23="MENSUAL","MAYO","") ->  | I50: =IF(J23="MENSUAL","JUNIO","") ->  | J50: =IF(J23="MENSUAL","JULIO","") ->  | K50: =IF(J23="MENSUAL","AGOSTO","") ->  | L50: =IF(J23="MENSUAL","SEPTIEMBRE","") ->  | M50: =IF(J23="MENSUAL","OCTUBRE","") ->  | N50: =IF(J23="MENSUAL","NOVIEMBRE","") ->  | O50: =IF(J23="MENSUAL","DICIEMBRE","") -> 
C51: =G18 -> No. de alianzas estratégicas mediante convenios empresariales *100 | D51: 0 | E51: 0 | F51: 2 | G51: 2
C52: =G19 -> No. de alianzas estratégicas proyectadas por año | D52: 3 | E52: 3 | F52: 3 | G52: 3
C53: VALOR | D53: =IFERROR(IF($E$17=1,D51/D52,IF($E$17=2,D51,"")),"") -> 0 | E53: =IFERROR(IF($E$17=1,E51/E52,IF($E$17=2,E51,"")),"") -> 0 | F53: =IFERROR(IF($E$17=1,F51/F52,IF($E$17=2,F51,"")),"") -> 0.6666666667 | G53: =IFERROR(IF($E$17=1,G51/G52,IF($E$17=2,G51,"")),"") -> 0.6666666667
C54: META PONDERADA | D54: =IF(AND(N23="ANUAL",J23="MENSUAL"),N17/12,IF(AND(N23="ANUAL",J23="TRIMESTRAL"),N17/4,IF(AND(N23="ANUAL",J23="SEMESTRAL"),N17/2,IF(AND(N23="ANUAL",J23="ANUAL"),N17,IF(AND(N23="SEMESTRAL",J23="MENSUAL"),N17/6,IF(AND(N23="SEMESTRAL",J23="TRIMESTRAL"),N17/2,IF(AND(N23="SEMESTRAL",J23="SEMESTRAL"),N17,IF(AND(N23="SEMESTRAL",J23="ANUAL"),"REVISAR FRECUENCIAS",IF(AND(N23="TRIMESTRAL",J23="MENSUAL"),N17/3,IF(AND(N23="TRIMESTRAL",J23="TRIMESTRAL"),N17,IF(AND(N23="TRIMESTRAL",J23="SEMESTRAL"),"REVISAR FRECUENCIAS",IF(AND(N23="TRIMESTRAL",J23="ANUAL"),"REVISAR FRECUENCIAS",IF(AND(N23="MENSUAL",J23="MENSUAL"),N17,IF(AND(N23="MENSUAL",J23="TRIMESTRAL"),"REVISAR FRECUENCIAS",IF(AND(N23="MENSUAL",J23="SEMESTRAL"),"REVISAR FRECUENCIAS",IF(AND(N23="MENSUAL",J23="ANUAL"),"REVISAR FRECUENCIAS","")))))))))))))))) -> 0.25 | E54: =IF(AND(N23="ANUAL",J23="MENSUAL"),N17/12+D54,IF(AND(N23="ANUAL",J23="TRIMESTRAL"),N17/4+D54,IF(AND(N23="ANUAL",J23="SEMESTRAL"),N17/2+D54,IF(AND(N23="SEMESTRAL",J23="MENSUAL"),N17/6+D54,IF(AND(N23="SEMESTRAL",J23="TRIMESTRAL"),N17/2+D54,IF(AND(N23="SEMESTRAL",J23="SEMESTRAL"),N17,IF(AND(N23="TRIMESTRAL",J23="MENSUAL"),N17/3+D54,IF(AND(N23="TRIMESTRAL",J23="TRIMESTRAL"),N17,IF(AND(N23="MENSUAL",J23="MENSUAL"),N17,""))))))))) -> 0.5 | F54: =IF(AND(N23="ANUAL",J23="MENSUAL"),N17/12+E54,IF(AND(N23="ANUAL",J23="TRIMESTRAL"),N17/4+E54,IF(AND(N23="SEMESTRAL",J23="MENSUAL"),N17/6+E54,IF(AND(N23="SEMESTRAL",J23="TRIMESTRAL"),N17/2,IF(AND(N23="TRIMESTRAL",J23="MENSUAL"),N17/3+E54,IF(AND(N23="TRIMESTRAL",J23="TRIMESTRAL"),N17,IF(AND(N23="MENSUAL",J23="MENSUAL"),N17,""))))))) -> 0.75 | G54: =IF(AND(N23="ANUAL",J23="MENSUAL"),N17/12+F54,IF(AND(N23="ANUAL",J23="TRIMESTRAL"),N17/4+F54,IF(AND(N23="SEMESTRAL",J23="MENSUAL"),N17/6+F54,IF(AND(N23="SEMESTRAL",J23="TRIMESTRAL"),N17/2+F54,IF(AND(N23="TRIMESTRAL",J23="MENSUAL"),N17/3,IF(AND(N23="TRIMESTRAL",J23="TRIMESTRAL"),N17,IF(AND(N23="MENSUAL",J23="MENSUAL"),N17,""))))))) -> 1 | H54: =IF(AND($N$23="ANUAL",$J$23="MENSUAL"),$N$17/12+G54,IF(AND(N23="SEMESTRAL",J23="MENSUAL"),N17/6+G54,IF(AND(N23="TRIMESTRAL",J23="MENSUAL"),N17/3+G54,IF(AND(N23="MENSUAL",J23="MENSUAL"),N17,"")))) ->  | I54: =IF(AND($N$23="ANUAL",$J$23="MENSUAL"),$N$17/12+H54,IF(AND(N23="SEMESTRAL",J23="MENSUAL"),N17/6+H54,IF(AND(N23="TRIMESTRAL",J23="MENSUAL"),N17/3+H54,IF(AND(N23="MENSUAL",J23="MENSUAL"),N17,"")))) ->  | J54: =IF(AND($N$23="ANUAL",$J$23="MENSUAL"),$N$17/12+I54,IF(AND(N23="SEMESTRAL",J23="MENSUAL"),N17/6,IF(AND(N23="TRIMESTRAL",J23="MENSUAL"),N17/3,IF(AND(N23="MENSUAL",J23="MENSUAL"),N17,"")))) ->  | K54: =IF(AND($N$23="ANUAL",$J$23="MENSUAL"),$N$17/12+J54,IF(AND(N23="SEMESTRAL",J23="MENSUAL"),N17/6+J54,IF(AND(N23="TRIMESTRAL",J23="MENSUAL"),N17/3+J54,IF(AND(N23="MENSUAL",J23="MENSUAL"),N17,"")))) ->  | L54: =IF(AND($N$23="ANUAL",$J$23="MENSUAL"),$N$17/12+K54,IF(AND(N23="SEMESTRAL",J23="MENSUAL"),N17/6+K54,IF(AND(N23="TRIMESTRAL",J23="MENSUAL"),N17/3+K54,IF(AND(N23="MENSUAL",J23="MENSUAL"),N17,"")))) ->  | M54: =IF(AND($N$23="ANUAL",$J$23="MENSUAL"),$N$17/12+L54,IF(AND(N23="SEMESTRAL",J23="MENSUAL"),N17/6+L54,IF(AND(N23="TRIMESTRAL",J23="MENSUAL"),N17/3,IF(AND(N23="MENSUAL",J23="MENSUAL"),N17,"")))) ->  | N54: =IF(AND($N$23="ANUAL",$J$23="MENSUAL"),$N$17/12+M54,IF(AND(N23="SEMESTRAL",J23="MENSUAL"),N17/6+M54,IF(AND(N23="TRIMESTRAL",J23="MENSUAL"),N17/3+M54,IF(AND(N23="MENSUAL",J23="MENSUAL"),N17,"")))) ->  | O54: =IF(AND($N$23="ANUAL",$J$23="MENSUAL"),$N$17/12+N54,IF(AND(N23="SEMESTRAL",J23="MENSUAL"),N17/6+N54,IF(AND(N23="TRIMESTRAL",J23="MENSUAL"),N17/3+N54,IF(AND(N23="MENSUAL",J23="MENSUAL"),N17,"")))) -> 
C56: NIVEL DE SEGREGACIÓN *
C57: UNIDAD SEGREGADA (Ej. Facultad, Programa Académico, Área) | G57: RESULTADO | K57: ANALISIS DE DATOS SEGREGADO
G76: Estratégico | J76: Eficacia
G77: Misional | J77: Eficiencia
G78: Apoyo | J78: Acreditación
G79: Seguimiento, Medición, Análisis y Evaluación | J79: Positiva
G80: Direccionamiento Estratégico | J80: Negativa
G81: Planeación Institucional | J81: Por Unidad Regional
G82: Proyectos Especiales y Relaciones Interinstitucionales | J82: Por Facultad
G83: Sistemas Integrados | J83: Por Programa Académico
G84: Autoevaluación y Acreditación | J84: Por área
G85: Comunicaciones | J85: Por Laboratorio
G86: Formación y Aprendizaje | J86: Otros
G87: Ciencia, Tecnología e Innovación | J87: No Aplica
G88: Interacción Social Universitaria
G89: Bienestar Universitario
G90: Admisiones y Registro
G91: Graduados
G92: Dialogando con el Mundo
G93: Talento Humano
G94: Jurídica
G95: Financiera
G96: Sistemas y Tecnología
G97: Bienes y Servicios
G98: Documental
G99: Apoyo Académico
G100: Control Interno
G101: Control Disciplinario
G102: Servicio de Atención al Ciudadano

Sheet EPR-2
B2: REGRESAR
E5: MACROPROCESO ESTRATÉGICO | M5: CÓDIGO: ESGr027
E6: PROCESO GESTIÓN SISTEMAS INTEGRADOS | M6: VERSIÓN: 7
E7: MATRIZ DE MEDICIÓN Y SEGUIMIENTO A LOS PROCESOS DE GESTIÓN | M7: VIGENCIA: 2020-03-20
M8: PÁGINA: 1 de 1
C10: FICHA DE INDICADOR
C12: MACROPROCESO | E12: Estratégico | I12: NOMBRE DEL INDICADOR | K12: Evaluación del No. de actividades desarrolladas de los contratos suscritos
C13: PROCESO GESTIÓN | E13: Proyectos Especiales y Relaciones Interinstitucionales
C14: RESPONSABLE DE MEDICIÓN | E14: Director(a) de Proyectos Especiales y Relaciones Interinstitucionales
C16: 1. COMPORTAMIENTO DE INDICADOR
C17: CLASIFICACIÓN DE LA MEDICIÓN | E17: 1 | H17: TIPO DE INDICADOR | J17: Eficacia | L17: META ANUAL | N17: 1
C18: FÓRMULA | E18: NUMERADOR | G18: No. de actividades desarrolladas de los contratos suscritos * 100 | L18: UNIDAD DE MEDIDA | N18: Porcentual
E19: DENOMINADOR | G19: No. total de actividades planificadas de los contratos suscritos
C20: TENDENCIA | E20: Positiva | H20: NIVEL DE SEGREGACIÓN * | J20: No Aplica | L20: ESCALA
L21: Deficiente | M21: Aceptable | N21: Bueno | O21: Excelente
L22: 0-50 | M22: 51-80 | N22: 81-100 | O22: Superior a 100
C23: ORIGEN DE DATOS NUMERADOR | E23: Cronograma de Actividades | H23: FRECUENCIA DE LA MEDICIÓN | J23: TRIMESTRAL | L23: FRECUENCIA DE RESULTADO | N23: ANUAL
C24: ORIGEN DE DATOS DENOMINADOR | E24: Contrato Suscrito
C26: RESULTADOS
J27: ANÁLISIS DE DATOS Los datos indican un crecimiento en los acompañamientos entre el primer trimestre y el segundo trimestre de mas del 100%, por la contratación del personal de la oficina En el tercer trimestre se muestra un decrecimiento con respecto al periodo anterior por las vacaciones a mitad de año, las personas se reintegraron entre julio y agosto.
J28: I TRIMESTRE: En razón a que no se han suscrito alianzas empresariales durante el primer trimestre no se puede establecer el cronograma de actividades a desarrollar. II TRIMESTRE: En razón a que no se han suscrito alianzas empresariales durante el segundo trimestre no se puede establecer el cronograma de actividades a desarrollar. III TRIMESTRE: Teniendo en cuenta que en los meses de agosto y septiembre se suscribieron alianzas estratégicas con dos (2) Municipios de Cundinamarca, aún no se han suscrito los Convenios de Cooperación; por tal razón, no se pueden establecer los cronogramas de actividades. IV TRIMESTRE: En el mes de octubre se suscribieron dos (2) Convenios de Cooperación y se dió cumplimiento a las actividades programadas en cada uno de los cronogramas para la ejecución.
J35: ACCIÓN FORMULADA Reformular la meta para el próximo año dependiendo de los recursos asignados.
J36: I TRIMESTRE: Una vez se suscriban Convenios de Cooperación y se establezcan las actividades, se hará la verificación de cumplimento de las mismas. II TRIMESTRE: Una vez se suscriban Convenios de Cooperación y se establezcan las actividades, se hará la verificación de cumplimento de las mismas. III TRIMESTRE: Suscritos los Convenios de Cooperación y establecidos los cronogramas, se realizará seguimiento al cumplimiento de los mismos. IV TRIMESTRE: Planeación de actividades en el cronograma y cumplimiento de las mismas en los términos establecidos.
J43: RESPONSABLE
J44: =E14 -> Director(a) de Proyectos Especiales y Relaciones Interinstitucionales
C47: PERIODO DE EVALUACIÓN
C48: MES | D48: =IF(J23="MENSUAL","ENERO",IF(J23="TRIMESTRAL","MARZO",IF(J23="SEMESTRAL","JUNIO",IF(J23="ANUAL",YEAR(TODAY()),"")))) -> MARZO | E48: =IF(J23="MENSUAL","FEBRERO",IF(J23="TRIMESTRAL","JUNIO",IF(J23="SEMESTRAL","DICIEMBRE",""))) -> JUNIO | F48: =IF(J23="MENSUAL","MARZO",IF(J23="TRIMESTRAL","SEPTIEMBRE","")) -> SEPTIEMBRE | G48: =IF(J23="MENSUAL","ABRIL",IF(J23="TRIMESTRAL","DICIEMBRE","")) -> DICIEMBRE | H48: =IF(J23="MENSUAL","MAYO","") ->  | I48: =IF(J23="MENSUAL","JUNIO","") ->  | J48: =IF(J23="MENSUAL","JULIO","") ->  | K48: =IF(J23="MENSUAL","AGOSTO","") ->  | L48: =IF(J23="MENSUAL","SEPTIEMBRE","") ->  | M48: =IF(J23="MENSUAL","OCTUBRE","") ->  | N48: =IF(J23="MENSUAL","NOVIEMBRE","") ->  | O48: =IF(J23="MENSUAL","DICIEMBRE","") -> 
C49: =G18 -> No. de actividades desarrolladas de los contratos suscritos * 100 | D49: 0 | E49: 0 | F49: 0 | G49: 25
C50: =G19 -> No. total de actividades planificadas de los contratos suscritos | D50: 0 | E50: 0 | F50: 0 | G50: 25
C51: VALOR | D51: 0 | E51: 0 | F51: 0 | G51: =IFERROR(IF($E$17=1,G49/G50,IF($E$17=2,G49,"")),"") -> 1
C52: META PONDERADA | D52: =IF(AND(N23="ANUAL",J23="MENSUAL"),N17/12,IF(AND(N23="ANUAL",J23="TRIMESTRAL"),N17/4,IF(AND(N23="ANUAL",J23="SEMESTRAL"),N17/2,IF(AND(N23="ANUAL",J23="ANUAL"),N17,IF(AND(N23="SEMESTRAL",J23="MENSUAL"),N17/6,IF(AND(N23="SEMESTRAL",J23="TRIMESTRAL"),N17/2,IF(AND(N23="SEMESTRAL",J23="SEMESTRAL"),N17,IF(AND(N23="SEMESTRAL",J23="ANUAL"),"REVISAR FRECUENCIAS",IF(AND(N23="TRIMESTRAL",J23="MENSUAL"),N17/3,IF(AND(N23="TRIMESTRAL",J23="TRIMESTRAL"),N17,IF(AND(N23="TRIMESTRAL",J23="SEMESTRAL"),"REVISAR FRECUENCIAS",IF(AND(N23="TRIMESTRAL",J23="ANUAL"),"REVISAR FRECUENCIAS",IF(AND(N23="MENSUAL",J23="MENSUAL"),N17,IF(AND(N23="MENSUAL",J23="TRIMESTRAL"),"REVISAR FRECUENCIAS",IF(AND(N23="MENSUAL",J23="SEMESTRAL"),"REVISAR FRECUENCIAS",IF(AND(N23="MENSUAL",J23="ANUAL"),"REVISAR FRECUENCIAS","")))))))))))))))) -> 0.25 | E52: =IF(AND(N23="ANUAL",J23="MENSUAL"),N17/12+D52,IF(AND(N23="ANUAL",J23="TRIMESTRAL"),N17/4+D52,IF(AND(N23="ANUAL",J23="SEMESTRAL"),N17/2+D52,IF(AND(N23="SEMESTRAL",J23="MENSUAL"),N17/6+D52,IF(AND(N23="SEMESTRAL",J23="TRIMESTRAL"),N17/2+D52,IF(AND(N23="SEMESTRAL",J23="SEMESTRAL"),N17,IF(AND(N23="TRIMESTRAL",J23="MENSUAL"),N17/3+D52,IF(AND(N23="TRIMESTRAL",J23="TRIMESTRAL"),N17,IF(AND(N23="MENSUAL",J23="MENSUAL"),N17,""))))))))) -> 0.5 | F52: =IF(AND(N23="ANUAL",J23="MENSUAL"),N17/12+E52,IF(AND(N23="ANUAL",J23="TRIMESTRAL"),N17/4+E52,IF(AND(N23="SEMESTRAL",J23="MENSUAL"),N17/6+E52,IF(AND(N23="SEMESTRAL",J23="TRIMESTRAL"),N17/2,IF(AND(N23="TRIMESTRAL",J23="MENSUAL"),N17/3+E52,IF(AND(N23="TRIMESTRAL",J23="TRIMESTRAL"),N17,IF(AND(N23="MENSUAL",J23="MENSUAL"),N17,""))))))) -> 0.75 | G52: =IF(AND(N23="ANUAL",J23="MENSUAL"),N17/12+F52,IF(AND(N23="ANUAL",J23="TRIMESTRAL"),N17/4+F52,IF(AND(N23="SEMESTRAL",J23="MENSUAL"),N17/6+F52,IF(AND(N23="SEMESTRAL",J23="TRIMESTRAL"),N17/2+F52,IF(AND(N23="TRIMESTRAL",J23="MENSUAL"),N17/3,IF(AND(N23="TRIMESTRAL",J23="TRIMESTRAL"),N17,IF(AND(N23="MENSUAL",J23="MENSUAL"),N17,""))))))) -> 1 | H52: =IF(AND($N$23="ANUAL",$J$23="MENSUAL"),$N$17/12+G52,IF(AND(N23="SEMESTRAL",J23="MENSUAL"),N17/6+G52,IF(AND(N23="TRIMESTRAL",J23="MENSUAL"),N17/3+G52,IF(AND(N23="MENSUAL",J23="MENSUAL"),N17,"")))) ->  | I52: =IF(AND($N$23="ANUAL",$J$23="MENSUAL"),$N$17/12+H52,IF(AND(N23="SEMESTRAL",J23="MENSUAL"),N17/6+H52,IF(AND(N23="TRIMESTRAL",J23="MENSUAL"),N17/3+H52,IF(AND(N23="MENSUAL",J23="MENSUAL"),N17,"")))) ->  | J52: =IF(AND($N$23="ANUAL",$J$23="MENSUAL"),$N$17/12+I52,IF(AND(N23="SEMESTRAL",J23="MENSUAL"),N17/6,IF(AND(N23="TRIMESTRAL",J23="MENSUAL"),N17/3,IF(AND(N23="MENSUAL",J23="MENSUAL"),N17,"")))) ->  | K52: =IF(AND($N$23="ANUAL",$J$23="MENSUAL"),$N$17/12+J52,IF(AND(N23="SEMESTRAL",J23="MENSUAL"),N17/6+J52,IF(AND(N23="TRIMESTRAL",J23="MENSUAL"),N17/3+J52,IF(AND(N23="MENSUAL",J23="MENSUAL"),N17,"")))) ->  | L52: =IF(AND($N$23="ANUAL",$J$23="MENSUAL"),$N$17/12+K52,IF(AND(N23="SEMESTRAL",J23="MENSUAL"),N17/6+K52,IF(AND(N23="TRIMESTRAL",J23="MENSUAL"),N17/3+K52,IF(AND(N23="MENSUAL",J23="MENSUAL"),N17,"")))) ->  | M52: =IF(AND($N$23="ANUAL",$J$23="MENSUAL"),$N$17/12+L52,IF(AND(N23="SEMESTRAL",J23="MENSUAL"),N17/6+L52,IF(AND(N23="TRIMESTRAL",J23="MENSUAL"),N17/3,IF(AND(N23="MENSUAL",J23="MENSUAL"),N17,"")))) ->  | N52: =IF(AND($N$23="ANUAL",$J$23="MENSUAL"),$N$17/12+M52,IF(AND(N23="SEMESTRAL",J23="MENSUAL"),N17/6+M52,IF(AND(N23="TRIMESTRAL",J23="MENSUAL"),N17/3+M52,IF(AND(N23="MENSUAL",J23="MENSUAL"),N17,"")))) ->  | O52: =IF(AND($N$23="ANUAL",$J$23="MENSUAL"),$N$17/12+N52,IF(AND(N23="SEMESTRAL",J23="MENSUAL"),N17/6+N52,IF(AND(N23="TRIMESTRAL",J23="MENSUAL"),N17/3+N52,IF(AND(N23="MENSUAL",J23="MENSUAL"),N17,"")))) -> 
C54: NIVEL DE SEGREGACIÓN *
C55: UNIDAD SEGREGADA (Ej. Facultad, Programa Académico, Área) | G55: RESULTADO | K55: ANALISIS DE DATOS SEGREGADO
G75: Estratégico | J75: Eficacia
G76: Misional | J76: Eficiencia
G77: Apoyo | J77: Acreditación
G78: Seguimiento, Medición, Análisis y Evaluación | J78: Positiva
G79: Direccionamiento Estratégico | J79: Negativa
G80: Planeación Institucional | J80: Por Unidad Regional
G81: Proyectos Especiales y Relaciones Interinstitucionales | J81: Por Facultad
G82: Sistemas Integrados | J82: Por Programa Académico
G83: Autoevaluación y Acreditación | J83: Por área
G84: Comunicaciones | J84: Por Laboratorio
G85: Formación y Aprendizaje | J85: Otros
G86: Ciencia, Tecnología e Innovación | J86: No Aplica
G87: Interacción Social Universitaria
G88: Bienestar Universitario
G89: Admisiones y Registro
G90: Graduados
G91: Dialogando con el Mundo
G92: Talento Humano
G93: Jurídica
G94: Financiera
G95: Sistemas y Tecnología
G96: Bienes y Servicios
G97: Documental
G98: Apoyo Académico
G99: Control Interno
G100: Control Disciplinario
G101: Servicio de Atención al Ciudadano

Sheet EAA-1
B2: REGRESAR
E5: MACROPROCESO ESTRATÉGICO | M5: CÓDIGO: ESGr027
E6: PROCESO GESTIÓN SISTEMAS INTEGRADOS | M6: VERSIÓN: 7
E7: MATRIZ DE MEDICIÓN Y SEGUIMIENTO A LOS PROCESOS DE GESTIÓN | M7: VIGENCIA: 2020-03-20
M8: PÁGINA: 1 de 1
C10: FICHA DE INDICADOR
C12: MACROPROCESO | E12: Estratégico | I12: NOMBRE DEL INDICADOR | K12: Eficacia en la obtención de registros calificados
C13: PROCESO GESTIÓN | E13: Autoevaluación y Acreditación
C14: RESPONSABLE DE MEDICIÓN | E14: Director de Autoevaluación y Acreditación
C16: 1. COMPORTAMIENTO DE INDICADOR
C17: CLASIFICACIÓN DE LA MEDICIÓN | E17: 1 | H17: TIPO DE INDICADOR | J17: Eficacia | L17: META ANUAL | N17: 1
C18: FORMULA | E18: NUMERADOR | G18: Número de registros calificados otorgados *100 | L18: UNIDAD DE MEDIDA | N18: Porcentual
E19: DENOMINADOR | G19: Número de registros calificados emitidos por el MEN
C20: TENDENCIA | E20: Positiva | H20: NIVEL DE SEGREGACIÓN * | J20: Por Programa Académico | L20: ESCALA
L21: Deficiente | M21: Aceptable | N21: Bueno | O21: Excelente
L22: 0% - 99% | M22: N/A | N22: 1 | O22: N/A
C23: ORIGEN DE DATOS NUMERADOR | E23: Acto administrativo emitido por el MEN | H23: FRECUENCIA DE LA MEDICIÓN | J23: SEMESTRAL | L23: FRECUENCIA DE RESULTADO | N23: ANUAL
C24: ORIGEN DE DATOS DENOMINADOR | E24: Acto administrativo emitido por el MEN
C26: RESULTADOS
J27: ANÁLISIS DE DATOS
J28: I SEMESTRE Durante la vigencia 2020 el Ministerio de Educación Nacional ha emitido 3 (tres) actos administrativos referentes a procesos de Registro Calificado de programas académicos de la Universidad de Cundinamarca; los cuales otorgaron la renovación de Registro Calificado de los 3 (tres) programas Ingeniería de Sistemas y Computación, sede Fusagasugá; Ingeniería de Sistemas y Computación, sede Facatativá e Ingeniería Ambiental, seccional Girardot - ALD extensión Facatativá. II SEMESTRE Se radicarán ante el Ministerio de Educación Nacional por medio de la plataforma SACES el Documento Maestro para obtención de Registro Calificado del programa Ingeniería de Software, sede Soacha y renovación de Registro Calificado de los programas académicos Administración de Empresas, seccional Girardot y Zootecnia, seccional Ubaté; así mismo, se continúa con el seguimiento a procesos de los programas Doctorado en Ciencias de la Educación, Administración de Empresas, sede Chía; Administración de Empresas, sede Facatativá.
J34: ACCIÓN FORMULADA
J35: I SEMESTRE Se consolidarán los Documentos Maestros para renovación de Registro Calificado de los programas académicos Administración de Empresas, sede Chía; Administración de Empresas, sede Facatativá; Zootecnia, seccional Ubaté; para posterior radicación ante el Ministerio de Educación Nacional por medio de la plataforma SACES; así mismo, se continúa con el seguimiento al proceso de obtención de Registro Calificado del programa Doctorado en Ciencias de la Educación. II SEMESTRE No aplica
J41: RESPONSABLE
J42: =E14 -> Director de Autoevaluación y Acreditación
C45: PERIODO DE EVALUACIÓN
C46: MES | D46: =IF(J23="MENSUAL","ENERO",IF(J23="TRIMESTRAL","MARZO",IF(J23="SEMESTRAL","JUNIO",IF(J23="ANUAL",YEAR(TODAY()),"")))) -> JUNIO | E46: =IF(J23="MENSUAL","FEBRERO",IF(J23="TRIMESTRAL","JUNIO",IF(J23="SEMESTRAL","DICIEMBRE",""))) -> DICIEMBRE | F46: =IF(J23="MENSUAL","MARZO",IF(J23="TRIMESTRAL","SEPTIEMBRE","")) ->  | G46: =IF(J23="MENSUAL","ABRIL",IF(J23="TRIMESTRAL","DICIEMBRE","")) ->  | H46: =IF(J23="MENSUAL","MAYO","") ->  | I46: =IF(J23="MENSUAL","JUNIO","") ->  | J46: =IF(J23="MENSUAL","JULIO","") ->  | K46: =IF(J23="MENSUAL","AGOSTO","") ->  | L46: =IF(J23="MENSUAL","SEPTIEMBRE","") ->  | M46: =IF(J23="MENSUAL","OCTUBRE","") ->  | N46: =IF(J23="MENSUAL","NOVIEMBRE","") ->  | O46: =IF(J23="MENSUAL","DICIEMBRE","") -> 
C47: =G18 -> Número de registros calificados otorgados *100 | D47: 3 | E47: 3
C48: =G19 -> Número de registros calificados emitidos por el MEN | D48: 3 | E48: 3
C49: VALOR | D49: =IFERROR(IF($E$17=1,D47/D48,IF($E$17=2,D47,"")),"") -> 1 | E49: =IFERROR(IF($E$17=1,E47/E48,IF($E$17=2,E47,"")),"") -> 1
C50: META PONDERADA | D50: =IF(AND(N23="ANUAL",J23="MENSUAL"),N17/12,IF(AND(N23="ANUAL",J23="TRIMESTRAL"),N17/4,IF(AND(N23="ANUAL",J23="SEMESTRAL"),N17/2,IF(AND(N23="ANUAL",J23="ANUAL"),N17,IF(AND(N23="SEMESTRAL",J23="MENSUAL"),N17/6,IF(AND(N23="SEMESTRAL",J23="TRIMESTRAL"),N17/2,IF(AND(N23="SEMESTRAL",J23="SEMESTRAL"),N17,IF(AND(N23="SEMESTRAL",J23="ANUAL"),"REVISAR FRECUENCIAS",IF(AND(N23="TRIMESTRAL",J23="MENSUAL"),N17/3,IF(AND(N23="TRIMESTRAL",J23="TRIMESTRAL"),N17,IF(AND(N23="TRIMESTRAL",J23="SEMESTRAL"),"REVISAR FRECUENCIAS",IF(AND(N23="TRIMESTRAL",J23="ANUAL"),"REVISAR FRECUENCIAS",IF(AND(N23="MENSUAL",J23="MENSUAL"),N17,IF(AND(N23="MENSUAL",J23="TRIMESTRAL"),"REVISAR FRECUENCIAS",IF(AND(N23="MENSUAL",J23="SEMESTRAL"),"REVISAR FRECUENCIAS",IF(AND(N23="MENSUAL",J23="ANUAL"),"REVISAR FRECUENCIAS","")))))))))))))))) -> 0.5 | E50: =IF(AND(N23="ANUAL",J23="MENSUAL"),N17/12+D50,IF(AND(N23="ANUAL",J23="TRIMESTRAL"),N17/4+D50,IF(AND(N23="ANUAL",J23="SEMESTRAL"),N17/2+D50,IF(AND(N23="SEMESTRAL",J23="MENSUAL"),N17/6+D50,IF(AND(N23="SEMESTRAL",J23="TRIMESTRAL"),N17/2+D50,IF(AND(N23="SEMESTRAL",J23="SEMESTRAL"),N17,IF(AND(N23="TRIMESTRAL",J23="MENSUAL"),N17/3+D50,IF(AND(N23="TRIMESTRAL",J23="TRIMESTRAL"),N17,IF(AND(N23="MENSUAL",J23="MENSUAL"),N17,""))))))))) -> 1 | F50: =IF(AND(N23="ANUAL",J23="MENSUAL"),N17/12+E50,IF(AND(N23="ANUAL",J23="TRIMESTRAL"),N17/4+E50,IF(AND(N23="SEMESTRAL",J23="MENSUAL"),N17/6+E50,IF(AND(N23="SEMESTRAL",J23="TRIMESTRAL"),N17/2,IF(AND(N23="TRIMESTRAL",J23="MENSUAL"),N17/3+E50,IF(AND(N23="TRIMESTRAL",J23="TRIMESTRAL"),N17,IF(AND(N23="MENSUAL",J23="MENSUAL"),N17,""))))))) ->  | G50: =IF(AND(N23="ANUAL",J23="MENSUAL"),N17/12+F50,IF(AND(N23="ANUAL",J23="TRIMESTRAL"),N17/4+F50,IF(AND(N23="SEMESTRAL",J23="MENSUAL"),N17/6+F50,IF(AND(N23="SEMESTRAL",J23="TRIMESTRAL"),N17/2+F50,IF(AND(N23="TRIMESTRAL",J23="MENSUAL"),N17/3,IF(AND(N23="TRIMESTRAL",J23="TRIMESTRAL"),N17,IF(AND(N23="MENSUAL",J23="MENSUAL"),N17,""))))))) ->  | H50: =IF(AND($N$23="ANUAL",$J$23="MENSUAL"),$N$17/12+G50,IF(AND(N23="SEMESTRAL",J23="MENSUAL"),N17/6+G50,IF(AND(N23="TRIMESTRAL",J23="MENSUAL"),N17/3+G50,IF(AND(N23="MENSUAL",J23="MENSUAL"),N17,"")))) ->  | I50: =IF(AND($N$23="ANUAL",$J$23="MENSUAL"),$N$17/12+H50,IF(AND(N23="SEMESTRAL",J23="MENSUAL"),N17/6+H50,IF(AND(N23="TRIMESTRAL",J23="MENSUAL"),N17/3+H50,IF(AND(N23="MENSUAL",J23="MENSUAL"),N17,"")))) ->  | J50: =IF(AND($N$23="ANUAL",$J$23="MENSUAL"),$N$17/12+I50,IF(AND(N23="SEMESTRAL",J23="MENSUAL"),N17/6,IF(AND(N23="TRIMESTRAL",J23="MENSUAL"),N17/3,IF(AND(N23="MENSUAL",J23="MENSUAL"),N17,"")))) ->  | K50: =IF(AND($N$23="ANUAL",$J$23="MENSUAL"),$N$17/12+J50,IF(AND(N23="SEMESTRAL",J23="MENSUAL"),N17/6+J50,IF(AND(N23="TRIMESTRAL",J23="MENSUAL"),N17/3+J50,IF(AND(N23="MENSUAL",J23="MENSUAL"),N17,"")))) ->  | L50: =IF(AND($N$23="ANUAL",$J$23="MENSUAL"),$N$17/12+K50,IF(AND(N23="SEMESTRAL",J23="MENSUAL"),N17/6+K50,IF(AND(N23="TRIMESTRAL",J23="MENSUAL"),N17/3+K50,IF(AND(N23="MENSUAL",J23="MENSUAL"),N17,"")))) ->  | M50: =IF(AND($N$23="ANUAL",$J$23="MENSUAL"),$N$17/12+L50,IF(AND(N23="SEMESTRAL",J23="MENSUAL"),N17/6+L50,IF(AND(N23="TRIMESTRAL",J23="MENSUAL"),N17/3,IF(AND(N23="MENSUAL",J23="MENSUAL"),N17,"")))) ->  | N50: =IF(AND($N$23="ANUAL",$J$23="MENSUAL"),$N$17/12+M50,IF(AND(N23="SEMESTRAL",J23="MENSUAL"),N17/6+M50,IF(AND(N23="TRIMESTRAL",J23="MENSUAL"),N17/3+M50,IF(AND(N23="MENSUAL",J23="MENSUAL"),N17,"")))) ->  | O50: =IF(AND($N$23="ANUAL",$J$23="MENSUAL"),$N$17/12+N50,IF(AND(N23="SEMESTRAL",J23="MENSUAL"),N17/6+N50,IF(AND(N23="TRIMESTRAL",J23="MENSUAL"),N17/3+N50,IF(AND(N23="MENSUAL",J23="MENSUAL"),N17,"")))) -> 
C52: NIVEL DE SEGREGACIÓN *
C53: UNIDAD SEGREGADA (Ej. Facultad, Programa Académico, Área) | G53: RESULTADO | K53: ANÁLISIS DE DATOS SEGREGADO
C54: Ingeniería de Sistemas - Fusagasugá | G54: Registro Calificado Renovado | K54: El Ministerio de Educación Nacional renovó Registro Calificado del programa académico mediante resolución No. 009889 del 17 junio de 2020.
C55: Ingeniería de Sistemas - Facatativá | G55: Registro Calificado Renovado | K55: El Ministerio de Educación Nacional renovó Registro Calificado del programa académico mediante resolución No. 009923 del 17 junio de 2020.
C56: Ingeniería Ambiental - Facatativá | G56: Registro Calificado Renovado | K56: El Ministerio de Educación Nacional renovó Registro Calificado del programa académico mediante resolución No. 009890 del 17 junio de 2020.
C57: Administración de Empresas - Chía | G57: Documento Maestro radicado ante el Ministerio de Educación Nacional para renovación de Registro Calificado | K57: El Documento Maestro para renovación de Registro Calificado fue radicado en el mes de Diciembre de 2020 ante el Ministerio de Educación Nacional por medio de la plataforma SACES, en la actualidad el proceso se encuentra en estado de Completitud de información para selección de Pares Académicos por parte del MEN en sus tiempos de actuación.
C58: Administración de Empresas - Facatativá | G58: Documento Maestro radicado ante el Ministerio de Educación Nacional para renovación de Registro Calificado | K58: El Documento Maestro para obtención de Registro Calificado fue radicado en el mes de Julio de 2020 ante el Ministerio de Educación Nacional por medio de la plataforma SACES, se atendió visita de Pares Académicos por parte del MEN en el mes de Noviembre para verificación de condiciones de calidad y actualmente el proceso se encuentra en proyección de resolución.
C59: Doctorado en Ciencias de la Educación - Fusagasugá | G59: Documento Maestro radicado ante Ministerio de Educación Nacional para obtención de Registro Calificado | K59: El Documento Maestro para obtención de Registro Calificado fue radicado en el mes de febrero de 2020 ante el Ministerio de Educación Nacional por medio de la plataforma SACES, se atendió visita de Pares Académicos por parte del MEN en el mes de Septiembre para verificación de condiciones de calidad y actualmente se encuentra en proyección de resolución.
C60: Enfermería - Girardot | G60: Documento Maestro radicado ante el Ministerio de Educación Nacional para renovación de Registro Calificado | K60: El Documento Maestro para renovación de Registro Calificado fue radicado en el mes de Diciembre de 2020 ante el Ministerio de Educación Nacional por medio de la plataforma SACES, en la actualidad el proceso se encuentra en estado de Completitud de información para selección de Pares Académicos por parte del MEN en sus tiempos de actuación.
C61: Administración de Empresas - Girardot | G61: Consolidación Documento Maestro para renovación de Registro Calificado | K61: Al cierre de la vigencia 2020 se consolidó el Documento Maestro para renovación de Registro Calificado del programa académico, en cumplimiento de los lineamientos establecidos en el Decreto 1330 de 2019, sin embargo, en virtud de los lineamientos establecidos en la resolución MEN No. 021795 del 19 de noviembre de 2020, es necesario continuar con el proceso para posterior radicación ante el Ministerio de Educación por medio de la plataforma SACES en el mes de Febrero de 2021.
C62: Zootecnia - Ubaté | G62: Consolidación Documento Maestro para renovación de Registro Calificado | K62: Al cierre de la vigencia 2020 se consolidó el Documento Maestro para renovación de Registro Calificado del programa académico, en cumplimiento de los lineamientos establecidos en el Decreto 1330 de 2019, sin embargo, en virtud de los lineamientos establecidos en la resolución MEN No. 021795 del 19 de noviembre de 2020, es necesario continuar con el proceso para posterior radicación ante el Ministerio de Educación Nacional por medio de la plataforma SACES en el mes de Febrero de 2021.
C63: Ingeniería de Software - Soacha | G63: Consolidación Documento Maestro para obtención de Registro Calificado | K63: Al cierre de la vigencia 2020 se consolidó el Documento Maestro para obtención de Registro Calificado del programa académico en cumplimiento de los lineamientos establecidos en el Decreto 1330 de 2019 y la resolución MEN No. 021795 del 19 de noviembre de 2020, el cual será radicado ante el Ministerio de Educación Nacional por medio de la plataforma SACES en el mes de Enero de 2021.
G74: Estratégico | J74: Eficacia
G75: Misional | J75: Eficiencia
G76: Apoyo | J76: Acreditación
G77: Seguimiento, Medición, Análisis y Evaluación | J77: Positiva
G78: Direccionamiento Estratégico | J78: Negativa
G79: Planeación Institucional | J79: Por Unidad Regional
G80: Proyectos Especiales y Relaciones Interinstitucionales | J80: Por Facultad
G81: Sistemas Integrados | J81: Por Programa Académico
G82: Autoevaluación y Acreditación | J82: Por área
G83: Comunicaciones | J83: Por Laboratorio
G84: Formación y Aprendizaje | J84: Otros
G85: Ciencia, Tecnología e Innovación | J85: No Aplica
G86: Interacción Social Universitaria
G87: Bienestar Universitario
G88: Admisiones y Registro
G89: Graduados
G90: Dialogando con el Mundo
G91: Talento Humano
G92: Jurídica
G93: Financiera
G94: Sistemas y Tecnología
G95: Bienes y Servicios
G96: Documental
G97: Apoyo Académico
G98: Control Interno
G99: Control Disciplinario
G100: Servicio de Atención al Ciudadano

Sheet EAA-2
B2: REGRESAR
E5: MACROPROCESO ESTRATÉGICO | M5: CÓDIGO: ESGr027
E6: PROCESO GESTIÓN SISTEMAS INTEGRADOS | M6: VERSIÓN: 7
E7: MATRIZ DE MEDICIÓN Y SEGUIMIENTO A LOS PROCESOS DE GESTIÓN | M7: VIGENCIA: 2020-03-20
M8: PÁGINA: 1 de 1
C10: FICHA DE INDICADOR
C12: MACROPROCESO | E12: Estratégico | I12: NOMBRE DEL INDICADOR | K12: Cumplimiento de los planes de mejoramiento producto de la autoevaluación
C13: PROCESO GESTIÓN | E13: Autoevaluación y Acreditación
C14: RESPONSABLE DE MEDICIÓN | E14: Director de Autoevaluación y Acreditación
C16: 1. COMPORTAMIENTO DE INDICADOR
C17: CLASIFICACIÓN DE LA MEDICIÓN | E17: 1 | H17: TIPO DE INDICADOR | J17: Eficacia | L17: META ANUAL | N17: 0.8
C18: FORMULA | E18: NUMERADOR | G18: Total de actividades ejecutadas *100 | L18: UNIDAD DE MEDIDA | N18: Porcentual
E19: DENOMINADOR | G19: Total de actividades establecidas
C20: TENDENCIA | E20: Positiva | H20: NIVEL DE SEGREGACIÓN * | J20: Por Programa Académico | L20: ESCALA
L21: Deficiente | M21: Aceptable | N21: Bueno | O21: Excelente
L22: 0% - 50% | M22: 51% - 75% | N22: 76% - 80% | O22: ≥ 81%
C23: ORIGEN DE DATOS NUMERADOR | E23: Reporte mediante plataforma del modulo de aseguramiento de la calidad educativa del estado de avance de los planes de mejoramiento | H23: FRECUENCIA DE LA MEDICIÓN | J23: SEMESTRAL | L23: FRECUENCIA DE RESULTADO | N23: ANUAL
C24: ORIGEN DE DATOS DENOMINADOR | E24: Reporte mediante plataforma del modulo de aseguramiento de la calidad educativa del estado de avance de los planes de mejoramiento
C26: RESULTADOS
J27: ANÁLISIS DE DATOS
J28: I SEMESTRE Actualmente el proceso de Autoevaluación de la Universidad de Cundinamarca se encuentra en un nivel de avance del 75%; se han formulado ya los planes de Mejoramiento por parte de cada programa académico, sin embargo, su ejecución y seguimiento aún no se da puesto que el ejercicio de Autoevaluación se encuentra vigente faltando por desarrollar las dos últimas fases, Construcción Documentos Informe de Autoevaluación y Socialización de resultados; momento en que se dará cuenta del cumplimiento del indicador durante el tiempo de vigencia de los Planes, establecida hasta el mes de agosto de 2022. II SEMESTRE En cumplimiento del cronograma previsto para el proceso, la Dirección de Autoevaluación y Acreditación realizó el primer seguimiento a la ejecución de actividades de los planes de mejoramiento producto del proceso de autoevaluación de programas académicos. Se evidenció un total 227 actividades con vigencia 2020, de las cuales, luego de realizar los ejercicios de seguimiento y la verificación de evidencias aportadas, se estableció una efectiva ejecución de 125 actividades que traduce en un cumplimiento del 55,07% del indicador. No obstante, de las 102 actividades no ejecutadas en su totalidad, los programas académicos presentaron avances en su cumplimiento, que, al consolidarse junto con las metas efectivamente ejecutadas, se genera un cumplimiento del 78,73% de ejecución de actividades con vigencia a 2020. Es importante aclarar que los planes de mejoramiento se desarrollaran a lo largo de la vigencia 2021 y 2022, por lo cual, las actividades no ejecutadas en la vigencia 2020 culminaran en el 2021.
J34: ACCIÓN FORMULADA
J35: I SEMESTRE Presentar los Planes de Mejoramiento producto del proceso de Autoevaluación ante los Órganos Colegiados de la Universidad para respectiva aprobación; así como desarrollar las fases faltantes del proceso para cerrar el ejercicio e iniciar el seguimiento a cada uno de los Planes posterior al mes de agosto de 2020. II SEMESTRE Continuar con el seguimiento a la ejecución de actividades de los planes de mejoramiento producto del proceso de autoevaluación de cada uno de los programas académicos, durante las vigencias 2021 y 2022.
J39: RESPONSABLE
J40: =E14 -> Director de Autoevaluación y Acreditación
C43: PERIODO DE EVALUACIÓN
C44: MES | D44: =IF(J23="MENSUAL","ENERO",IF(J23="TRIMESTRAL","MARZO",IF(J23="SEMESTRAL","JUNIO",IF(J23="ANUAL",YEAR(TODAY()),"")))) -> JUNIO | E44: =IF(J23="MENSUAL","FEBRERO",IF(J23="TRIMESTRAL","JUNIO",IF(J23="SEMESTRAL","DICIEMBRE",""))) -> DICIEMBRE | F44: =IF(J23="MENSUAL","MARZO",IF(J23="TRIMESTRAL","SEPTIEMBRE","")) ->  | G44: =IF(J23="MENSUAL","ABRIL",IF(J23="TRIMESTRAL","DICIEMBRE","")) ->  | H44: =IF(J23="MENSUAL","MAYO","") ->  | I44: =IF(J23="MENSUAL","JUNIO","") ->  | J44: =IF(J23="MENSUAL","JULIO","") ->  | K44: =IF(J23="MENSUAL","AGOSTO","") ->  | L44: =IF(J23="MENSUAL","SEPTIEMBRE","") ->  | M44: =IF(J23="MENSUAL","OCTUBRE","") ->  | N44: =IF(J23="MENSUAL","NOVIEMBRE","") ->  | O44: =IF(J23="MENSUAL","DICIEMBRE","") -> 
C45: =G18 -> Total de actividades ejecutadas *100 | D45: 0 | E45: 125
C46: =G19 -> Total de actividades establecidas | D46: 0 | E46: 227
C47: VALOR | D47: =IFERROR(IF($E$17=1,D45/D46,IF($E$17=2,D45,"")),"") ->  | E47: =IFERROR(IF($E$17=1,E45/E46,IF($E$17=2,E45,"")),"") -> 0.550660793
C48: META PONDERADA | D48: =IF(AND(N23="ANUAL",J23="MENSUAL"),N17/12,IF(AND(N23="ANUAL",J23="TRIMESTRAL"),N17/4,IF(AND(N23="ANUAL",J23="SEMESTRAL"),N17/2,IF(AND(N23="ANUAL",J23="ANUAL"),N17,IF(AND(N23="SEMESTRAL",J23="MENSUAL"),N17/6,IF(AND(N23="SEMESTRAL",J23="TRIMESTRAL"),N17/2,IF(AND(N23="SEMESTRAL",J23="SEMESTRAL"),N17,IF(AND(N23="SEMESTRAL",J23="ANUAL"),"REVISAR FRECUENCIAS",IF(AND(N23="TRIMESTRAL",J23="MENSUAL"),N17/3,IF(AND(N23="TRIMESTRAL",J23="TRIMESTRAL"),N17,IF(AND(N23="TRIMESTRAL",J23="SEMESTRAL"),"REVISAR FRECUENCIAS",IF(AND(N23="TRIMESTRAL",J23="ANUAL"),"REVISAR FRECUENCIAS",IF(AND(N23="MENSUAL",J23="MENSUAL"),N17,IF(AND(N23="MENSUAL",J23="TRIMESTRAL"),"REVISAR FRECUENCIAS",IF(AND(N23="MENSUAL",J23="SEMESTRAL"),"REVISAR FRECUENCIAS",IF(AND(N23="MENSUAL",J23="ANUAL"),"REVISAR FRECUENCIAS","")))))))))))))))) -> 0.4 | E48: =IF(AND(N23="ANUAL",J23="MENSUAL"),N17/12+D48,IF(AND(N23="ANUAL",J23="TRIMESTRAL"),N17/4+D48,IF(AND(N23="ANUAL",J23="SEMESTRAL"),N17/2+D48,IF(AND(N23="SEMESTRAL",J23="MENSUAL"),N17/6+D48,IF(AND(N23="SEMESTRAL",J23="TRIMESTRAL"),N17/2+D48,IF(AND(N23="SEMESTRAL",J23="SEMESTRAL"),N17,IF(AND(N23="TRIMESTRAL",J23="MENSUAL"),N17/3+D48,IF(AND(N23="TRIMESTRAL",J23="TRIMESTRAL"),N17,IF(AND(N23="MENSUAL",J23="MENSUAL"),N17,""))))))))) -> 0.8 | F48: =IF(AND(N23="ANUAL",J23="MENSUAL"),N17/12+E48,IF(AND(N23="ANUAL",J23="TRIMESTRAL"),N17/4+E48,IF(AND(N23="SEMESTRAL",J23="MENSUAL"),N17/6+E48,IF(AND(N23="SEMESTRAL",J23="TRIMESTRAL"),N17/2,IF(AND(N23="TRIMESTRAL",J23="MENSUAL"),N17/3+E48,IF(AND(N23="TRIMESTRAL",J23="TRIMESTRAL"),N17,IF(AND(N23="MENSUAL",J23="MENSUAL"),N17,""))))))) ->  | G48: =IF(AND(N23="ANUAL",J23="MENSUAL"),N17/12+F48,IF(AND(N23="ANUAL",J23="TRIMESTRAL"),N17/4+F48,IF(AND(N23="SEMESTRAL",J23="MENSUAL"),N17/6+F48,IF(AND(N23="SEMESTRAL",J23="TRIMESTRAL"),N17/2+F48,IF(AND(N23="TRIMESTRAL",J23="MENSUAL"),N17/3,IF(AND(N23="TRIMESTRAL",J23="TRIMESTRAL"),N17,IF(AND(N23="MENSUAL",J23="MENSUAL"),N17,""))))))) ->  | H48: =IF(AND($N$23="ANUAL",$J$23="MENSUAL"),$N$17/12+G48,IF(AND(N23="SEMESTRAL",J23="MENSUAL"),N17/6+G48,IF(AND(N23="TRIMESTRAL",J23="MENSUAL"),N17/3+G48,IF(AND(N23="MENSUAL",J23="MENSUAL"),N17,"")))) ->  | I48: =IF(AND($N$23="ANUAL",$J$23="MENSUAL"),$N$17/12+H48,IF(AND(N23="SEMESTRAL",J23="MENSUAL"),N17/6+H48,IF(AND(N23="TRIMESTRAL",J23="MENSUAL"),N17/3+H48,IF(AND(N23="MENSUAL",J23="MENSUAL"),N17,"")))) ->  | J48: =IF(AND($N$23="ANUAL",$J$23="MENSUAL"),$N$17/12+I48,IF(AND(N23="SEMESTRAL",J23="MENSUAL"),N17/6,IF(AND(N23="TRIMESTRAL",J23="MENSUAL"),N17/3,IF(AND(N23="MENSUAL",J23="MENSUAL"),N17,"")))) ->  | K48: =IF(AND($N$23="ANUAL",$J$23="MENSUAL"),$N$17/12+J48,IF(AND(N23="SEMESTRAL",J23="MENSUAL"),N17/6+J48,IF(AND(N23="TRIMESTRAL",J23="MENSUAL"),N17/3+J48,IF(AND(N23="MENSUAL",J23="MENSUAL"),N17,"")))) ->  | L48: =IF(AND($N$23="ANUAL",$J$23="MENSUAL"),$N$17/12+K48,IF(AND(N23="SEMESTRAL",J23="MENSUAL"),N17/6+K48,IF(AND(N23="TRIMESTRAL",J23="MENSUAL"),N17/3+K48,IF(AND(N23="MENSUAL",J23="MENSUAL"),N17,"")))) ->  | M48: =IF(AND($N$23="ANUAL",$J$23="MENSUAL"),$N$17/12+L48,IF(AND(N23="SEMESTRAL",J23="MENSUAL"),N17/6+L48,IF(AND(N23="TRIMESTRAL",J23="MENSUAL"),N17/3,IF(AND(N23="MENSUAL",J23="MENSUAL"),N17,"")))) ->  | N48: =IF(AND($N$23="ANUAL",$J$23="MENSUAL"),$N$17/12+M48,IF(AND(N23="SEMESTRAL",J23="MENSUAL"),N17/6+M48,IF(AND(N23="TRIMESTRAL",J23="MENSUAL"),N17/3+M48,IF(AND(N23="MENSUAL",J23="MENSUAL"),N17,"")))) ->  | O48: =IF(AND($N$23="ANUAL",$J$23="MENSUAL"),$N$17/12+N48,IF(AND(N23="SEMESTRAL",J23="MENSUAL"),N17/6+N48,IF(AND(N23="TRIMESTRAL",J23="MENSUAL"),N17/3+N48,IF(AND(N23="MENSUAL",J23="MENSUAL"),N17,"")))) -> 
C50: NIVEL DE SEGREGACIÓN *
C51: UNIDAD SEGREGADA (Ej. Facultad, Programa Académico, Área) | G51: RESULTADO | K51: ANÁLISIS DE DATOS SEGREGADO
C52: Administración de empresas - Fusagasugá | K52: El programa académico evidenció un cumplimiento en la ejecución de actividades del plan de mejoramiento con corte a la vigencia 2020 del 50%.
C53: Administración de empresas - Girardot | G53: N/A | K53: El programa académico no definió en su plan de mejoramiento actividades con corte a la vigencia 2020 dado que por la naturaleza del proceso se requiere de mayor tiempo para su ejecución; lo anterior, entendiendo que la definición de los planes se dio durante el mes de agosto.
C54: Administración de empresas - Ubaté | K54: El programa académico evidenció un cumplimiento en la ejecución de actividades del plan de mejoramiento con corte a la vigencia 2020 del 50%.
C55: Administración de empresas - Chía | G55: N/A | K55: El programa académico no definió en su plan de mejoramiento actividades con corte a la vigencia 2020 dado que por la naturaleza del proceso se requiere de mayor tiempo para su ejecución; lo anterior, entendiendo que la definición de los planes se dio durante el mes de agosto.
C56: Administración de empresas - Facatativá | G56: N/A | K56: El programa académico no definió en su plan de mejoramiento actividades con corte a la vigencia 2020 dado que por la naturaleza del proceso se requiere de mayor tiempo para su ejecución; lo anterior, entendiendo que la definición de los planes se dio durante el mes de agosto.
C57: Contaduría Pública- Fusagasugá | G57: N/A | K57: El programa académico no definió en su plan de mejoramiento actividades con corte a la vigencia 2020 dado que por la naturaleza del proceso se requiere de mayor tiempo para su ejecución; lo anterior, entendiendo que la definición de los planes se dio durante el mes de agosto.
C58: Contaduría Pública - Facatativá | K58: El programa académico evidenció un cumplimiento en la ejecución de actividades del plan de mejoramiento con corte a la vigencia 2020 del 100%.
C59: Contaduría Pública Ubaté | K59: El programa académico evidenció un cumplimiento en la ejecución de actividades del plan de mejoramiento con corte a la vigencia 2020 del 31,67%.
C60: Contaduría Pública - Chía | G60: N/A | K60: El programa académico no definió en su plan de mejoramiento actividades con corte a la vigencia 2020 dado que por la naturaleza del proceso se requiere de mayor tiempo para su ejecución; lo anterior, entendiendo que la definición de los planes se dio durante el mes de agosto.
C61: Tecnología en gestión Turística y Hotelera | K61: El programa académico evidenció un cumplimiento en la ejecución de actividades del plan de mejoramiento con corte a la vigencia 2020 del 25%.
C62: Ingeniería Agronómica - Fusagasugá | G62: N/A | K62: El programa académico no definió en su plan de mejoramiento actividades con corte a la vigencia 2020 dado que por la naturaleza del proceso se requiere de mayor tiempo para su ejecución; lo anterior, entendiendo que la definición de los planes se dio durante el mes de agosto.
C63: Ingeniería Agronómica - Facatativá | G63: N/A | K63: El programa académico no definió en su plan de mejoramiento actividades con corte a la vigencia 2020 dado que por la naturaleza del proceso se requiere de mayor tiempo para su ejecución; lo anterior, entendiendo que la definición de los planes se dio durante el mes de agosto.
C64: Ingeniería Ambiental - Girardot | G64: N/A | K64: El programa académico no definió en su plan de mejoramiento actividades con corte a la vigencia 2020 dado que por la naturaleza del proceso se requiere de mayor tiempo para su ejecución; lo anterior, entendiendo que la definición de los planes se dio durante el mes de agosto.
C65: Ingeniería Ambiental - Facatativá | G65: N/A | K65: El programa académico no definió en su plan de mejoramiento actividades con corte a la vigencia 2020 dado que por la naturaleza del proceso se requiere de mayor tiempo para su ejecución; lo anterior, entendiendo que la definición de los planes se dio durante el mes de agosto.
C66: Zootecnia - Fusagasugá | K66: El programa académico evidenció un cumplimiento en la ejecución de actividades del plan de mejoramiento con corte a la vigencia 2020 del 84,62%.
C67: Zootecnia - Ubaté | K67: El programa académico evidenció un cumplimiento en la ejecución de actividades del plan de mejoramiento con corte a la vigencia 2020 del 40%.
C68: Tecnología en Cartografía - Fusagasugá | G68: N/A | K68: El programa académico no definió en su plan de mejoramiento actividades con corte a la vigencia 2020 dado que por la naturaleza del proceso se requiere de mayor tiempo para su ejecución; lo anterior, entendiendo que la definición de los planes se dio durante el mes de agosto.
C69: Profesional en Ciencias del Deporte y la Educación Física - Soacha | K69: El programa académico evidenció un cumplimiento en la ejecución de actividades del plan de mejoramiento con corte a la vigencia 2020 del 84,62%.
C70: Lic. en Ciencias Sociales - Fusagasugá | G70: N/A | K70: El programa académico no definió en su plan de mejoramiento actividades con corte a la vigencia 2020 dado que por la naturaleza del proceso se requiere de mayor tiempo para su ejecución; lo anterior, entendiendo que la definición de los planes se dio durante el mes de agosto.
C71: Ingeniería Electrónica - Fusagasugá | G71: N/A | K71: El programa académico no definió en su plan de mejoramiento actividades con corte a la vigencia 2020 dado que por la naturaleza del proceso se requiere de mayor tiempo para su ejecución; lo anterior, entendiendo que la definición de los planes se dio durante el mes de agosto.
C72: Ingeniería Industrial - Soacha | K72: El programa académico evidenció un cumplimiento en la ejecución de actividades del plan de mejoramiento con corte a la vigencia 2020 del 77,78%.
C73: Ingeniería de Sistemas - Fusagasugá | K73: El programa académico evidenció un cumplimiento en la ejecución de actividades del plan de mejoramiento con corte a la vigencia 2020 del 100%.
C74: Ingeniería de Sistemas - Ubaté | K74: El programa académico evidenció un cumplimiento en la ejecución de actividades del plan de mejoramiento con corte a la vigencia 2020 del 33,33%.
C75: Ingeniería de Sistemas - Chía | K75: El programa académico evidenció un cumplimiento en la ejecución de actividades del plan de mejoramiento con corte a la vigencia 2020 del 0%.
C76: Ingeniería de Sistemas - Facatativá | G76: N/A | K76: El programa académico no definió en su plan de mejoramiento actividades con corte a la vigencia 2020 dado que por la naturaleza del proceso se requiere de mayor tiempo para su ejecución; lo anterior, entendiendo que la definición de los planes se dio durante el mes de agosto.
C77: Tecnología en Desarrollo de Software - Soacha | K77: El programa académico evidenció un cumplimiento en la ejecución de actividades del plan de mejoramiento con corte a la vigencia 2020 del 26,09%.
C78: Enfermería - Girardot | G78: N/A | K78: El programa académico no definió en su plan de mejoramiento actividades con corte a la vigencia 2020 dado que por la naturaleza del proceso se requiere de mayor tiempo para su ejecución; lo anterior, entendiendo que la definición de los planes se dio durante el mes de agosto.
C79: Música - Zipaquirá | K79: El programa académico evidenció un cumplimiento en la ejecución de actividades del plan de mejoramiento con corte a la vigencia 2020 del 61,54%.
C80: Psicología - Facatativá | K80: El programa académico evidenció un cumplimiento en la ejecución de actividades del plan de mejoramiento con corte a la vigencia 2020 del 0%.
C81: Esp. en Gerencia para el Desarrollo Organizacional | G81: N/A | K81: El programa académico no definió en su plan de mejoramiento actividades con corte a la vigencia 2020 dado que por la naturaleza del proceso se requiere de mayor tiempo para su ejecución; lo anterior, entendiendo que la definición de los planes se dio durante el mes de agosto.
C82: Esp. en Procesos Pedagógicos del Entrenamiento Deportivo | K82: El programa académico evidenció un cumplimiento en la ejecución de actividades del plan de mejoramiento con corte a la vigencia 2020 del 85,71%.
C83: Esp. en Educación Ambiental y Desarrollo de la Comunidad | G83: N/A | K83: El programa académico no definió en su plan de mejoramiento actividades con corte a la vigencia 2020 dado que por la naturaleza del proceso se requiere de mayor tiempo para su ejecución; lo anterior, entendiendo que la definición de los planes se dio durante el mes de agosto.
C84: Esp. Negocios y Comercio Electrónico | G84: N/A | K84: El programa académico no definió en su plan de mejoramiento actividades con corte a la vigencia 2020 dado que por la naturaleza del proceso se requiere de mayor tiempo para su ejecución; lo anterior, entendiendo que la definición de los planes se dio durante el mes de agosto.
C85: Esp. Gestión de Sistemas de Información Gerencial (Virtual) | K85: El programa académico evidenció un cumplimiento en la ejecución de actividades del plan de mejoramiento con corte a la vigencia 2020 del 100%.
C86: Maestría en Educación | K86: El programa académico evidenció un cumplimiento en la ejecución de actividades del plan de mejoramiento con corte a la vigencia 2020 del 78%.
C87: Maestría en Ciencias Ambientales | G87: N/A | K87: El programa académico no definió en su plan de mejoramiento actividades con corte a la vigencia 2020 dado que por la naturaleza del proceso se requiere de mayor tiempo para su ejecución; lo anterior, entendiendo que la definición de los planes se dio durante el mes de agosto.
G98: Estratégico | J98: Eficacia
G99: Misional | J99: Eficiencia
G100: Apoyo | J100: Acreditación
G101: Seguimiento, Medición, Análisis y Evaluación | J101: Positiva
G102: Direccionamiento Estratégico | J102: Negativa
G103: Planeación Institucional | J103: Por Unidad Regional
G104: Proyectos Especiales y Relaciones Interinstitucionales | J104: Por Facultad
G105: Sistemas Integrados | J105: Por Programa Académico
G106: Autoevaluación y Acreditación | J106: Por área
G107: Comunicaciones | J107: Por Laboratorio
G108: Formación y Aprendizaje | J108: Otros
G109: Ciencia, Tecnología e Innovación | J109: No Aplica
G110: Interacción Social Universitaria
G111: Bienestar Universitario
G112: Admisiones y Registro
G113: Graduados
G114: Dialogando con el Mundo
G115: Talento Humano
G116: Jurídica
G117: Financiera
G118: Sistemas y Tecnología
G119: Bienes y Servicios
G120: Documental
G121: Apoyo Académico
G122: Control Interno
G123: Control Disciplinario
G124: Servicio de Atención al Ciudadano

Sheet EAA-3
B2: REGRESAR
E5: MACROPROCESO ESTRATÉGICO | M5: CÓDIGO: ESGr027
E6: PROCESO GESTIÓN SISTEMAS INTEGRADOS | M6: VERSIÓN: 7
E7: MATRIZ DE MEDICIÓN Y SEGUIMIENTO A LOS PROCESOS DE GESTIÓN | M7: VIGENCIA: 2020-03-20
M8: PÁGINA: 1 de 1
C10: FICHA DE INDICADOR
C12: MACROPROCESO | E12: Estratégico | I12: NOMBRE DEL INDICADOR | K12: Acreditación de programas en alta calidad
C13: PROCESO GESTIÓN | E13: Autoevaluación y Acreditación
C14: RESPONSABLE DE MEDICIÓN | E14: Director de Autoevaluación y Acreditación
C16: 1. COMPORTAMIENTO DE INDICADOR
C17: CLASIFICACIÓN DE LA MEDICIÓN | E17: 1 | H17: TIPO DE INDICADOR | J17: Eficacia | L17: META ANUAL | N17: 1
C18: FORMULA | E18: NUMERADOR | G18: Número de acreditaciones otorgadas *100 | L18: UNIDAD DE MEDIDA | N18: Porcentual
E19: DENOMINADOR | G19: Total de resoluciones emitidas por el MEN
C20: TENDENCIA | E20: Positiva | H20: NIVEL DE SEGREGACIÓN * | J20: Por Programa Académico | L20: ESCALA
L21: Deficiente | M21: Aceptable | N21: Bueno | O21: Excelente
L22: 0% - 20% | M22: 21% - 30% | N22: 31% - 100% | O22: N/A
C23: ORIGEN DE DATOS NUMERADOR | E23: Resoluciones expedidas por el MEN | H23: FRECUENCIA DE LA MEDICIÓN | J23: SEMESTRAL | L23: FRECUENCIA DE RESULTADO | N23: ANUAL
C24: ORIGEN DE DATOS DENOMINADOR | E24: Resoluciones expedidas por el MEN
C26: RESULTADOS
J27: ANÁLISIS DE DATOS
J28: I SEMESTRE A la fecha se desarrolla el ejercicio de Autoevaluación con fines de Acreditación en los programas académicos de Música, Ingeniería Electrónica y Zootecnia, sede Fusagasugá con un nivel de avance del 75% y con fines de Reacreditación en la Licenciatura en Ciencias Sociales, con 90% de ejecución. Producto de este ejercicio se consolidan los Documentos Informe de Autoevaluación los cuales serán presentados ante el Consejo Nacional de Acreditación - CNA para solicitud de Acreditación en Alta Calidad de los programas académicos en mención. II SEMESTRE Durante la vigencia 2020 los programas académicos Ingeniería Electrónica, Zootecnia sede Fusagasugá y Música culminaron el proceso de autoevaluación con fines de acreditación en alta calidad, informes que fueron radicados ante el Consejo Nacional de Acreditación en el mes de Diciembre de 2020. Al cierre de la vigencia el proceso se encuentra en revisión por parte del CNA. El programa Licenciatura en Ciencias Sociales, finalizó el proceso de autoevaluación con fines de renovación de acreditación en alta calidad en el mes de Julio de 2020; se atendió visita de Pares Académicos CNA para la verificación de Condiciones de Calidad en el mes de Octubre de 2020. Al cierre de la vigencia el proceso se encuentra en revisión por parte del CNA.
J34: ACCIÓN FORMULADA
J35: I SEMESTRE Consolidar los Documentos Informe de Autoevaluación de los programas académicos Ingeniería Electrónica, Música, Zootecnia, sede Fusagasugá y Licenciatura en Ciencias Sociales; radicar los Documentos ante el Consejo Nacional de Acreditación - CNA y hacer seguimiento al proceso. II SEMESTRE Por estructura del indicador no se evidencia su cumplimiento toda vez que al cierre de la vigencia no se cuenta con resoluciones de acreditación en alta calidad para los programas académicos, por motivo que el Consejo Nacional de Acreditación no ha emitido notificación sobre los procesos. Se debe continuar con el seguimiento a espera de actuación del CNA.
J39: RESPONSABLE
J40: =E14 -> Director de Autoevaluación y Acreditación
C43: PERIODO DE EVALUACIÓN
C44: MES | D44: =IF(J23="MENSUAL","ENERO",IF(J23="TRIMESTRAL","MARZO",IF(J23="SEMESTRAL","JUNIO",IF(J23="ANUAL",YEAR(TODAY()),"")))) -> JUNIO | E44: =IF(J23="MENSUAL","FEBRERO",IF(J23="TRIMESTRAL","JUNIO",IF(J23="SEMESTRAL","DICIEMBRE",""))) -> DICIEMBRE | F44: =IF(J23="MENSUAL","MARZO",IF(J23="TRIMESTRAL","SEPTIEMBRE","")) ->  | G44: =IF(J23="MENSUAL","ABRIL",IF(J23="TRIMESTRAL","DICIEMBRE","")) ->  | H44: =IF(J23="MENSUAL","MAYO","") ->  | I44: =IF(J23="MENSUAL","JUNIO","") ->  | J44: =IF(J23="MENSUAL","JULIO","") ->  | K44: =IF(J23="MENSUAL","AGOSTO","") ->  | L44: =IF(J23="MENSUAL","SEPTIEMBRE","") ->  | M44: =IF(J23="MENSUAL","OCTUBRE","") ->  | N44: =IF(J23="MENSUAL","NOVIEMBRE","") ->  | O44: =IF(J23="MENSUAL","DICIEMBRE","") -> 
C45: =G18 -> Número de acreditaciones otorgadas *100 | D45: 0 | E45: 0
C46: =G19 -> Total de resoluciones emitidas por el MEN | D46: 0 | E46: 0
C47: VALOR | D47: =IFERROR(IF($E$17=1,D45/D46,IF($E$17=2,D45,"")),"") ->  | E47: =IFERROR(IF($E$17=1,E45/E46,IF($E$17=2,E45,"")),"") -> 
C48: META PONDERADA | D48: =IF(AND(N23="ANUAL",J23="MENSUAL"),N17/12,IF(AND(N23="ANUAL",J23="TRIMESTRAL"),N17/4,IF(AND(N23="ANUAL",J23="SEMESTRAL"),N17/2,IF(AND(N23="ANUAL",J23="ANUAL"),N17,IF(AND(N23="SEMESTRAL",J23="MENSUAL"),N17/6,IF(AND(N23="SEMESTRAL",J23="TRIMESTRAL"),N17/2,IF(AND(N23="SEMESTRAL",J23="SEMESTRAL"),N17,IF(AND(N23="SEMESTRAL",J23="ANUAL"),"REVISAR FRECUENCIAS",IF(AND(N23="TRIMESTRAL",J23="MENSUAL"),N17/3,IF(AND(N23="TRIMESTRAL",J23="TRIMESTRAL"),N17,IF(AND(N23="TRIMESTRAL",J23="SEMESTRAL"),"REVISAR FRECUENCIAS",IF(AND(N23="TRIMESTRAL",J23="ANUAL"),"REVISAR FRECUENCIAS",IF(AND(N23="MENSUAL",J23="MENSUAL"),N17,IF(AND(N23="MENSUAL",J23="TRIMESTRAL"),"REVISAR FRECUENCIAS",IF(AND(N23="MENSUAL",J23="SEMESTRAL"),"REVISAR FRECUENCIAS",IF(AND(N23="MENSUAL",J23="ANUAL"),"REVISAR FRECUENCIAS","")))))))))))))))) -> 0.5 | E48: =IF(AND(N23="ANUAL",J23="MENSUAL"),N17/12+D48,IF(AND(N23="ANUAL",J23="TRIMESTRAL"),N17/4+D48,IF(AND(N23="ANUAL",J23="SEMESTRAL"),N17/2+D48,IF(AND(N23="SEMESTRAL",J23="MENSUAL"),N17/6+D48,IF(AND(N23="SEMESTRAL",J23="TRIMESTRAL"),N17/2+D48,IF(AND(N23="SEMESTRAL",J23="SEMESTRAL"),N17,IF(AND(N23="TRIMESTRAL",J23="MENSUAL"),N17/3+D48,IF(AND(N23="TRIMESTRAL",J23="TRIMESTRAL"),N17,IF(AND(N23="MENSUAL",J23="MENSUAL"),N17,""))))))))) -> 1 | F48: =IF(AND(N23="ANUAL",J23="MENSUAL"),N17/12+E48,IF(AND(N23="ANUAL",J23="TRIMESTRAL"),N17/4+E48,IF(AND(N23="SEMESTRAL",J23="MENSUAL"),N17/6+E48,IF(AND(N23="SEMESTRAL",J23="TRIMESTRAL"),N17/2,IF(AND(N23="TRIMESTRAL",J23="MENSUAL"),N17/3+E48,IF(AND(N23="TRIMESTRAL",J23="TRIMESTRAL"),N17,IF(AND(N23="MENSUAL",J23="MENSUAL"),N17,""))))))) ->  | G48: =IF(AND(N23="ANUAL",J23="MENSUAL"),N17/12+F48,IF(AND(N23="ANUAL",J23="TRIMESTRAL"),N17/4+F48,IF(AND(N23="SEMESTRAL",J23="MENSUAL"),N17/6+F48,IF(AND(N23="SEMESTRAL",J23="TRIMESTRAL"),N17/2+F48,IF(AND(N23="TRIMESTRAL",J23="MENSUAL"),N17/3,IF(AND(N23="TRIMESTRAL",J23="TRIMESTRAL"),N17,IF(AND(N23="MENSUAL",J23="MENSUAL"),N17,""))))))) ->  | H48: =IF(AND($N$23="ANUAL",$J$23="MENSUAL"),$N$17/12+G48,IF(AND(N23="SEMESTRAL",J23="MENSUAL"),N17/6+G48,IF(AND(N23="TRIMESTRAL",J23="MENSUAL"),N17/3+G48,IF(AND(N23="MENSUAL",J23="MENSUAL"),N17,"")))) ->  | I48: =IF(AND($N$23="ANUAL",$J$23="MENSUAL"),$N$17/12+H48,IF(AND(N23="SEMESTRAL",J23="MENSUAL"),N17/6+H48,IF(AND(N23="TRIMESTRAL",J23="MENSUAL"),N17/3+H48,IF(AND(N23="MENSUAL",J23="MENSUAL"),N17,"")))) ->  | J48: =IF(AND($N$23="ANUAL",$J$23="MENSUAL"),$N$17/12+I48,IF(AND(N23="SEMESTRAL",J23="MENSUAL"),N17/6,IF(AND(N23="TRIMESTRAL",J23="MENSUAL"),N17/3,IF(AND(N23="MENSUAL",J23="MENSUAL"),N17,"")))) ->  | K48: =IF(AND($N$23="ANUAL",$J$23="MENSUAL"),$N$17/12+J48,IF(AND(N23="SEMESTRAL",J23="MENSUAL"),N17/6+J48,IF(AND(N23="TRIMESTRAL",J23="MENSUAL"),N17/3+J48,IF(AND(N23="MENSUAL",J23="MENSUAL"),N17,"")))) ->  | L48: =IF(AND($N$23="ANUAL",$J$23="MENSUAL"),$N$17/12+K48,IF(AND(N23="SEMESTRAL",J23="MENSUAL"),N17/6+K48,IF(AND(N23="TRIMESTRAL",J23="MENSUAL"),N17/3+K48,IF(AND(N23="MENSUAL",J23="MENSUAL"),N17,"")))) ->  | M48: =IF(AND($N$23="ANUAL",$J$23="MENSUAL"),$N$17/12+L48,IF(AND(N23="SEMESTRAL",J23="MENSUAL"),N17/6+L48,IF(AND(N23="TRIMESTRAL",J23="MENSUAL"),N17/3,IF(AND(N23="MENSUAL",J23="MENSUAL"),N17,"")))) ->  | N48: =IF(AND($N$23="ANUAL",$J$23="MENSUAL"),$N$17/12+M48,IF(AND(N23="SEMESTRAL",J23="MENSUAL"),N17/6+M48,IF(AND(N23="TRIMESTRAL",J23="MENSUAL"),N17/3+M48,IF(AND(N23="MENSUAL",J23="MENSUAL"),N17,"")))) ->  | O48: =IF(AND($N$23="ANUAL",$J$23="MENSUAL"),$N$17/12+N48,IF(AND(N23="SEMESTRAL",J23="MENSUAL"),N17/6+N48,IF(AND(N23="TRIMESTRAL",J23="MENSUAL"),N17/3+N48,IF(AND(N23="MENSUAL",J23="MENSUAL"),N17,"")))) -> 
C50: NIVEL DE SEGREGACIÓN *
C51: UNIDAD SEGREGADA (Ej. Facultad, Programa Académico, Área) | G51: RESULTADO | K51: ANÁLISIS DE DATOS SEGREGADO
C52: Ingeniería Electrónica - Fusagasugá | G52: Radicado informe de Autoevaluación con fines de Acreditación en Alta Calidad ante CNA | K52: El programa académico consolidó el Documento Informe de Autoevaluación, fue radicado ante el CNA y se espera notificación del proceso.
C53: Música - Zipaquirá | G53: Radicado informe de Autoevaluación con fines de Acreditación en Alta Calidad ante CNA | K53: El programa académico consolidó el Documento Informe de Autoevaluación, fue radicado ante el CNA y se espera notificación del proceso.
C54: Zootecnia - Fusagasugá | G54: Radicado informe de Autoevaluación con fines de Acreditación en Alta Calidad ante CNA | K54: El programa académico consolidó el Documento Informe de Autoevaluación, fue radicado ante el CNA y se espera notificación del proceso.
C55: Licenciatura en Ciencias Sociales - Fusagasugá | G55: Radicado informe de Autoevaluación con fines de Renovación Acreditación en Alta Calidad ante CNA | K55: El programa académico consolidó el Documento Informe de Autoevaluación, fue radicado ante el CNA, se atendió visita de Pares Académicos y se espera notificación del proceso.
G66: Estratégico | J66: Eficacia
G67: Misional | J67: Eficiencia
G68: Apoyo | J68: Acreditación
G69: Seguimiento, Medición, Análisis y Evaluación | J69: Positiva
G70: Direccionamiento Estratégico | J70: Negativa
G71: Planeación Institucional | J71: Por Unidad Regional
G72: Proyectos Especiales y Relaciones Interinstitucionales | J72: Por Facultad
G73: Sistemas Integrados | J73: Por Programa Académico
G74: Autoevaluación y Acreditación | J74: Por área
G75: Comunicaciones | J75: Por Laboratorio
G76: Formación y Aprendizaje | J76: Otros
G77: Ciencia, Tecnología e Innovación | J77: No Aplica
G78: Interacción Social Universitaria
G79: Bienestar Universitario
G80: Admisiones y Registro
G81: Graduados
G82: Dialogando con el Mundo
G83: Talento Humano
G84: Jurídica
G85: Financiera
G86: Sistemas y Tecnología
G87: Bienes y Servicios
G88: Documental
G89: Apoyo Académico
G90: Control Interno
G91: Control Disciplinario
G92: Servicio de Atención al Ciudadano

Sheet EAA-4
B2: REGRESAR
E5: MACROPROCESO ESTRATÉGICO | M5: CÓDIGO: ESGr027
E6: PROCESO GESTIÓN SISTEMAS INTEGRADOS | M6: VERSIÓN: 7
E7: MATRIZ DE MEDICIÓN Y SEGUIMIENTO A LOS PROCESOS DE GESTIÓN | M7: VIGENCIA: 2020-03-20
M8: PÁGINA: 1 de 1
C10: FICHA DE INDICADOR
C12: MACROPROCESO | E12: Estratégico | I12: NOMBRE DEL INDICADOR | K12: Participación de estudiantes en la autoevaluación de los programas académicos
C13: PROCESO GESTIÓN | E13: Autoevaluación y Acreditación
C14: RESPONSABLE DE MEDICIÓN | E14: Director de Autoevaluación y Acreditación
C16: 1. COMPORTAMIENTO DE INDICADOR
C17: CLASIFICACIÓN DE LA MEDICIÓN | E17: 1 | H17: TIPO DE INDICADOR | J17: Acreditación | L17: META ANUAL | N17: 0.4
C18: FORMULA | E18: NUMERADOR | G18: N° de estudiantes que participaron en la autoevaluación *100 | L18: UNIDAD DE MEDIDA | N18: Porcentual
E19: DENOMINADOR | G19: Total de estudiantes del programa (Aplica solo para programas que presenten autoevaluación durante el desarrollo de la vigencia)
C20: TENDENCIA | E20: Positiva | H20: NIVEL DE SEGREGACIÓN * | J20: Por Programa Académico | L20: ESCALA
L21: Deficiente | M21: Aceptable | N21: Bueno | O21: Excelente
L22: 0% - 20% | M22: 21% - 30% | N22: 31% - 40% | O22: 41% - 100%
C23: ORIGEN DE DATOS NUMERADOR | E23: Modulo de aseguramiento de la calidad educativa | H23: FRECUENCIA DE LA MEDICIÓN | J23: ANUAL | L23: FRECUENCIA DE RESULTADO | N23: ANUAL
C24: ORIGEN DE DATOS DENOMINADOR | E24: Base de datos de admisiones y registro
C26: RESULTADOS
J27: ANÁLISIS DE DATOS
J28: Durante el desarrollo del ejercicio de Autoevaluación en todos los programas académicos de la Universidad de Cundinamarca, se ha contado con la participación de 6.464 estudiantes de las siete sedes de la institución; participación que se dio mayoritariamente durante la fase aplicación instrumentos de percepción en la cual los estamentos valoraron el cumplimiento de las condiciones de calidad en los programas académicos; lo cual representa un cumplimiento del indicador del 56% que traduce en un proceso abierto y participativo para la Institución.
J34: ACCIÓN FORMULADA
J35: N/A
J41: RESPONSABLE
J42: =E14 -> Director de Autoevaluación y Acreditación
C45: PERIODO DE EVALUACIÓN
C46: MES | D46: =IF(J23="MENSUAL","ENERO",IF(J23="TRIMESTRAL","MARZO",IF(J23="SEMESTRAL","JUNIO",IF(J23="ANUAL",YEAR(TODAY()),"")))) -> 2021 | E46: =IF(J23="MENSUAL","FEBRERO",IF(J23="TRIMESTRAL","JUNIO",IF(J23="SEMESTRAL","DICIEMBRE",""))) ->  | F46: =IF(J23="MENSUAL","MARZO",IF(J23="TRIMESTRAL","SEPTIEMBRE","")) ->  | G46: =IF(J23="MENSUAL","ABRIL",IF(J23="TRIMESTRAL","DICIEMBRE","")) ->  | H46: =IF(J23="MENSUAL","MAYO","") ->  | I46: =IF(J23="MENSUAL","JUNIO","") ->  | J46: =IF(J23="MENSUAL","JULIO","") ->  | K46: =IF(J23="MENSUAL","AGOSTO","") ->  | L46: =IF(J23="MENSUAL","SEPTIEMBRE","") ->  | M46: =IF(J23="MENSUAL","OCTUBRE","") ->  | N46: =IF(J23="MENSUAL","NOVIEMBRE","") ->  | O46: =IF(J23="MENSUAL","DICIEMBRE","") -> 
C47: =G18 -> N° de estudiantes que participaron en la autoevaluación *100 | D47: 6464
C48: =G19 -> Total de estudiantes del programa (Aplica solo para programas que presenten autoevaluación durante el desarrollo de la vigencia) | D48: 11572
C49: VALOR | D49: =IFERROR(IF($E$17=1,D47/D48,IF($E$17=2,D47,"")),"") -> 0.5585896993 | E49: =IFERROR(IF($E$17=1,E47/E48,IF($E$17=2,E47,"")),"") -> 
C50: META PONDERADA | D50: =IF(AND(N23="ANUAL",J23="MENSUAL"),N17/12,IF(AND(N23="ANUAL",J23="TRIMESTRAL"),N17/4,IF(AND(N23="ANUAL",J23="SEMESTRAL"),N17/2,IF(AND(N23="ANUAL",J23="ANUAL"),N17,IF(AND(N23="SEMESTRAL",J23="MENSUAL"),N17/6,IF(AND(N23="SEMESTRAL",J23="TRIMESTRAL"),N17/2,IF(AND(N23="SEMESTRAL",J23="SEMESTRAL"),N17,IF(AND(N23="SEMESTRAL",J23="ANUAL"),"REVISAR FRECUENCIAS",IF(AND(N23="TRIMESTRAL",J23="MENSUAL"),N17/3,IF(AND(N23="TRIMESTRAL",J23="TRIMESTRAL"),N17,IF(AND(N23="TRIMESTRAL",J23="SEMESTRAL"),"REVISAR FRECUENCIAS",IF(AND(N23="TRIMESTRAL",J23="ANUAL"),"REVISAR FRECUENCIAS",IF(AND(N23="MENSUAL",J23="MENSUAL"),N17,IF(AND(N23="MENSUAL",J23="TRIMESTRAL"),"REVISAR FRECUENCIAS",IF(AND(N23="MENSUAL",J23="SEMESTRAL"),"REVISAR FRECUENCIAS",IF(AND(N23="MENSUAL",J23="ANUAL"),"REVISAR FRECUENCIAS","")))))))))))))))) -> 0.4 | E50: =IF(AND(N23="ANUAL",J23="MENSUAL"),N17/12+D50,IF(AND(N23="ANUAL",J23="TRIMESTRAL"),N17/4+D50,IF(AND(N23="ANUAL",J23="SEMESTRAL"),N17/2+D50,IF(AND(N23="SEMESTRAL",J23="MENSUAL"),N17/6+D50,IF(AND(N23="SEMESTRAL",J23="TRIMESTRAL"),N17/2+D50,IF(AND(N23="SEMESTRAL",J23="SEMESTRAL"),N17,IF(AND(N23="TRIMESTRAL",J23="MENSUAL"),N17/3+D50,IF(AND(N23="TRIMESTRAL",J23="TRIMESTRAL"),N17,IF(AND(N23="MENSUAL",J23="MENSUAL"),N17,""))))))))) ->  | F50: =IF(AND(N23="ANUAL",J23="MENSUAL"),N17/12+E50,IF(AND(N23="ANUAL",J23="TRIMESTRAL"),N17/4+E50,IF(AND(N23="SEMESTRAL",J23="MENSUAL"),N17/6+E50,IF(AND(N23="SEMESTRAL",J23="TRIMESTRAL"),N17/2,IF(AND(N23="TRIMESTRAL",J23="MENSUAL"),N17/3+E50,IF(AND(N23="TRIMESTRAL",J23="TRIMESTRAL"),N17,IF(AND(N23="MENSUAL",J23="MENSUAL"),N17,""))))))) ->  | G50: =IF(AND(N23="ANUAL",J23="MENSUAL"),N17/12+F50,IF(AND(N23="ANUAL",J23="TRIMESTRAL"),N17/4+F50,IF(AND(N23="SEMESTRAL",J23="MENSUAL"),N17/6+F50,IF(AND(N23="SEMESTRAL",J23="TRIMESTRAL"),N17/2+F50,IF(AND(N23="TRIMESTRAL",J23="MENSUAL"),N17/3,IF(AND(N23="TRIMESTRAL",J23="TRIMESTRAL"),N17,IF(AND(N23="MENSUAL",J23="MENSUAL"),N17,""))))))) ->  | H50: =IF(AND($N$23="ANUAL",$J$23="MENSUAL"),$N$17/12+G50,IF(AND(N23="SEMESTRAL",J23="MENSUAL"),N17/6+G50,IF(AND(N23="TRIMESTRAL",J23="MENSUAL"),N17/3+G50,IF(AND(N23="MENSUAL",J23="MENSUAL"),N17,"")))) ->  | I50: =IF(AND($N$23="ANUAL",$J$23="MENSUAL"),$N$17/12+H50,IF(AND(N23="SEMESTRAL",J23="MENSUAL"),N17/6+H50,IF(AND(N23="TRIMESTRAL",J23="MENSUAL"),N17/3+H50,IF(AND(N23="MENSUAL",J23="MENSUAL"),N17,"")))) ->  | J50: =IF(AND($N$23="ANUAL",$J$23="MENSUAL"),$N$17/12+I50,IF(AND(N23="SEMESTRAL",J23="MENSUAL"),N17/6,IF(AND(N23="TRIMESTRAL",J23="MENSUAL"),N17/3,IF(AND(N23="MENSUAL",J23="MENSUAL"),N17,"")))) ->  | K50: =IF(AND($N$23="ANUAL",$J$23="MENSUAL"),$N$17/12+J50,IF(AND(N23="SEMESTRAL",J23="MENSUAL"),N17/6+J50,IF(AND(N23="TRIMESTRAL",J23="MENSUAL"),N17/3+J50,IF(AND(N23="MENSUAL",J23="MENSUAL"),N17,"")))) ->  | L50: =IF(AND($N$23="ANUAL",$J$23="MENSUAL"),$N$17/12+K50,IF(AND(N23="SEMESTRAL",J23="MENSUAL"),N17/6+K50,IF(AND(N23="TRIMESTRAL",J23="MENSUAL"),N17/3+K50,IF(AND(N23="MENSUAL",J23="MENSUAL"),N17,"")))) ->  | M50: =IF(AND($N$23="ANUAL",$J$23="MENSUAL"),$N$17/12+L50,IF(AND(N23="SEMESTRAL",J23="MENSUAL"),N17/6+L50,IF(AND(N23="TRIMESTRAL",J23="MENSUAL"),N17/3,IF(AND(N23="MENSUAL",J23="MENSUAL"),N17,"")))) ->  | N50: =IF(AND($N$23="ANUAL",$J$23="MENSUAL"),$N$17/12+M50,IF(AND(N23="SEMESTRAL",J23="MENSUAL"),N17/6+M50,IF(AND(N23="TRIMESTRAL",J23="MENSUAL"),N17/3+M50,IF(AND(N23="MENSUAL",J23="MENSUAL"),N17,"")))) ->  | O50: =IF(AND($N$23="ANUAL",$J$23="MENSUAL"),$N$17/12+N50,IF(AND(N23="SEMESTRAL",J23="MENSUAL"),N17/6+N50,IF(AND(N23="TRIMESTRAL",J23="MENSUAL"),N17/3+N50,IF(AND(N23="MENSUAL",J23="MENSUAL"),N17,"")))) -> 
C52: NIVEL DE SEGREGACIÓN *
C53: UNIDAD SEGREGADA (Ej. Facultad, Programa Académico, Área) | G53: RESULTADO | K53: ANÁLISIS DE DATOS SEGREGADO
C54: Administración de empresas - Fusagasugá | G54: 0.4877300613 | K54: Durante el desarrollo del ejercicio de Autoevaluación el programa académico ha contado con la participación de 318 estudiantes que representan el 48,77% de la comunidad.
C55: Administración de empresas - Girardot | G55: 0.5102803738 | K55: Durante el desarrollo del ejercicio de Autoevaluación el programa académico ha contado con la participación de 273 estudiantes que representan el 51,03% de la comunidad.
C56: Administración de empresas - Ubaté | G56: 0.6151079137 | K56: Durante el desarrollo del ejercicio de Autoevaluación el programa académico ha contado con la participación de 171 estudiantes que representan el 61,51% de la comunidad.
C57: Administración de empresas - Chía | G57: 0.4444444444 | K57: Durante el desarrollo del ejercicio de Autoevaluación el programa académico ha contado con la participación de 300 estudiantes que representan el 44,44% de la comunidad.
C58: Administración de empresas - Facatativá | G58: 0.4856361149 | K58: Durante el desarrollo del ejercicio de Autoevaluación el programa académico ha contado con la participación de 355 estudiantes que representan el 48,56% de la comunidad.
C59: Contaduría Pública- Fusagasugá | G59: 0.4362204724 | K59: Durante el desarrollo del ejercicio de Autoevaluación el programa académico ha contado con la participación de 277 estudiantes que representan el 43,63% de la comunidad.
C60: Contaduría Pública - Facatativá | G60: 0.5868613139 | K60: Durante el desarrollo del ejercicio de Autoevaluación el programa académico ha contado con la participación de 402 estudiantes que representan el 58,69% de la comunidad.
C61: Contaduría Pública Ubaté | G61: 0.6380952381 | K61: Durante el desarrollo del ejercicio de Autoevaluación el programa académico ha contado con la participación de 268 estudiantes que representan el 63,81% de la comunidad.
C62: Contaduría Pública - Chía | G62: 0.6022408964 | K62: Durante el desarrollo del ejercicio de Autoevaluación el programa académico ha contado con la participación de 215 estudiantes que representan el 60,22% de la comunidad.
C63: Tecnología en gestión Turística y Hotelera | G63: 0.6666666667 | K63: Durante el desarrollo del ejercicio de Autoevaluación el programa académico ha contado con la participación de 74 estudiantes que representan el 66,67% de la comunidad.
C64: Ingeniería Agronómica - Fusagasugá | G64: 0.3398328691 | K64: Durante el desarrollo del ejercicio de Autoevaluación el programa académico ha contado con la participación de 122 estudiantes que representan el 33,98% de la comunidad.
C65: Ingeniería Agronómica - Facatativá | G65: 0.6977491961 | K65: Durante el desarrollo del ejercicio de Autoevaluación el programa académico ha contado con la participación de 217 estudiantes que representan el 69,77% de la comunidad.
C66: Ingeniería Ambiental - Girardot | G66: 0.5485961123 | K66: Durante el desarrollo del ejercicio de Autoevaluación el programa académico ha contado con la participación de 254 estudiantes que representan el 54,86% de la comunidad.
C67: Ingeniería Ambiental - Facatativá | G67: 0.5643153527 | K67: Durante el desarrollo del ejercicio de Autoevaluación el programa académico ha contado con la participación de 272 estudiantes que representan el 56,43% de la comunidad.
C68: Zootecnia - Fusagasugá | G68: 0.546835443 | K68: Durante el desarrollo del ejercicio de Autoevaluación el programa académico ha contado con la participación de 216 estudiantes que representan el 54,68% de la comunidad.
C69: Zootecnia - Ubaté | G69: 0.5353535354 | K69: Durante el desarrollo del ejercicio de Autoevaluación el programa académico ha contado con la participación de 106 estudiantes que representan el 53,54% de la comunidad.
C70: Tecnología en Cartografía - Fusagasugá | G70: 0.3076923077 | K70: Durante el desarrollo del ejercicio de Autoevaluación el programa académico ha contado con la participación de 20 estudiantes que representan el 30,77% de la comunidad.
C71: Profesional en Ciencias del Deporte y la Educación Física - Soacha | G71: 1 | K71: Durante el desarrollo del ejercicio de Autoevaluación el programa académico ha contado con la participación de 240 estudiantes que representan el 100,00% de la comunidad.
C72: Lic. en Ciencias Sociales - Fusagasugá | G72: 0.6923076923 | K72: Durante el desarrollo del ejercicio de Autoevaluación el programa académico ha contado con la participación de 90 estudiantes que representan el 69,23% de la comunidad.
C73: Ingeniería Electrónica - Fusagasugá | G73: 0.5126582278 | K73: Durante el desarrollo del ejercicio de Autoevaluación el programa académico ha contado con la participación de 162 estudiantes que representan el 51,27% de la comunidad.
C74: Ingeniería Industrial - Soacha | G74: 0.5853080569 | K74: Durante el desarrollo del ejercicio de Autoevaluación el programa académico ha contado con la participación de 494 estudiantes que representan el 58,53% de la comunidad.
C75: Ingeniería de Sistemas - Fusagasugá | G75: 0.6576576577 | K75: Durante el desarrollo del ejercicio de Autoevaluación el programa académico ha contado con la participación de 292 estudiantes que representan el 65,77% de la comunidad.
C76: Ingeniería de Sistemas - Ubaté | G76: 0.6927374302 | K76: Durante el desarrollo del ejercicio de Autoevaluación el programa académico ha contado con la participación de 124 estudiantes que representan el 69,27% de la comunidad.
C77: Ingeniería de Sistemas - Chía | G77: 0.4603773585 | K77: Durante el desarrollo del ejercicio de Autoevaluación el programa académico ha contado con la participación de 244 estudiantes que representan el 46,04% de la comunidad.
C78: Ingeniería de Sistemas - Facatativá | G78: 0.4510250569 | K78: Durante el desarrollo del ejercicio de Autoevaluación el programa académico ha contado con la participación de 198 estudiantes que representan el 45,10% de la comunidad.
C79: Tecnología en Desarrollo de Software - Soacha | G79: 0.6355140187 | K79: Durante el desarrollo del ejercicio de Autoevaluación el programa académico ha contado con la participación de 68 estudiantes que representan el 63,55% de la comunidad.
C80: Enfermería - Girardot | G80: 0.7127071823 | K80: Durante el desarrollo del ejercicio de Autoevaluación el programa académico ha contado con la participación de 258 estudiantes que representan el 71,27% de la comunidad.
C81: Música - Zipaquirá | G81: 0.6518218623 | K81: Durante el desarrollo del ejercicio de Autoevaluación el programa académico ha contado con la participación de 161 estudiantes que representan el 65,18% de la comunidad.
C82: Psicología - Facatativá | G82: 1 | K82: Durante el desarrollo del ejercicio de Autoevaluación el programa académico ha contado con la participación de 121 estudiantes que representan el 100,00% de la comunidad.
C83: Esp. en Gerencia para el Desarrollo Organizacional | G83: 0.8787878788 | K83: Durante el desarrollo del ejercicio de Autoevaluación el programa académico ha contado con la participación de 29 estudiantes que representan el 87,88% de la comunidad.
C84: Esp. en Procesos Pedagógicos del Entrenamiento Deportivo | G84: 0.1388888889 | K84: Durante el desarrollo del ejercicio de Autoevaluación el programa académico ha contado con la participación de 5 estudiantes que representan el 13,89% de la comunidad.
C85: Esp. en Educación Ambiental y Desarrollo de la Comunidad | G85: 0.6 | K85: Durante el desarrollo del ejercicio de Autoevaluación el programa académico ha contado con la participación de 21 estudiantes que representan el 60,00% de la comunidad.
C86: Esp. Negocios y Comercio Electrónico | G86: 1 | K86: Durante el desarrollo del ejercicio de Autoevaluación el programa académico ha contado con la participación de 10 estudiantes que representan el 100,0% de la comunidad.
C87: Esp. Gestión de Sistemas de Información Gerencial (Virtual) | G87: 0.8043478261 | K87: Durante el desarrollo del ejercicio de Autoevaluación el programa académico ha contado con la participación de 37 estudiantes que representan el 80,43% de la comunidad.
C88: Maestría en Educación | G88: 0.3561643836 | K88: Durante el desarrollo del ejercicio de Autoevaluación el programa académico ha contado con la participación de 26 estudiantes que representan el 35,62% de la comunidad.
C89: Maestría en Ciencias Ambientales | G89: 0.8571428571 | K89: Durante el desarrollo del ejercicio de Autoevaluación el programa académico ha contado con la participación de 24 estudiantes que representan el 85,71% de la comunidad.
G100: Estratégico | J100: Eficacia
G101: Misional | J101: Eficiencia
G102: Apoyo | J102: Acreditación
G103: Seguimiento, Medición, Análisis y Evaluación | J103: Positiva
G104: Direccionamiento Estratégico | J104: Negativa
G105: Planeación Institucional | J105: Por Unidad Regional
G106: Proyectos Especiales y Relaciones Interinstitucionales | J106: Por Facultad
G107: Sistemas Integrados | J107: Por Programa Académico
G108: Autoevaluación y Acreditación | J108: Por área
G109: Comunicaciones | J109: Por Laboratorio
G110: Formación y Aprendizaje | J110: Otros
G111: Ciencia, Tecnología e Innovación | J111: No Aplica
G112: Interacción Social Universitaria
G113: Bienestar Universitario
G114: Admisiones y Registro
G115: Graduados
G116: Dialogando con el Mundo
G117: Talento Humano
G118: Jurídica
G119: Financiera
G120: Sistemas y Tecnología
G121: Bienes y Servicios
G122: Documental
G123: Apoyo Académico
G124: Control Interno
G125: Control Disciplinario
G126: Servicio de Atención al Ciudadano

Sheet EAA-5
B2: REGRESAR
E5: MACROPROCESO ESTRATÉGICO | M5: CÓDIGO: ESGr027
E6: PROCESO GESTIÓN SISTEMAS INTEGRADOS | M6: VERSIÓN: 7
E7: MATRIZ DE MEDICIÓN Y SEGUIMIENTO A LOS PROCESOS DE GESTIÓN | M7: VIGENCIA: 2020-03-20
M8: PÁGINA: 1 de 1
C10: FICHA DE INDICADOR
C12: MACROPROCESO | E12: Estratégico | I12: NOMBRE DEL INDICADOR | K12: Participación de docentes en la autoevaluación de los programas académicos
C13: PROCESO GESTIÓN | E13: Autoevaluación y Acreditación
C14: RESPONSABLE DE MEDICIÓN | E14: Director de Autoevaluación y Acreditación
C16: 1. COMPORTAMIENTO DE INDICADOR
C17: CLASIFICACIÓN DE LA MEDICIÓN | E17: 1 | H17: TIPO DE INDICADOR | J17: Acreditación | L17: META ANUAL | N17: 0.4
C18: FORMULA | E18: NUMERADOR | G18: N° de docentes que participaron en la autoevaluación *100 | L18: UNIDAD DE MEDIDA | N18: Porcentual
E19: DENOMINADOR | G19: Total de docentes vinculados en el programa (Aplica solo para programas que presenten autoevaluación durante el desarrollo de la vigencia)
C20: TENDENCIA | E20: Positiva | H20: NIVEL DE SEGREGACIÓN * | J20: Por Programa Académico | L20: ESCALA
L21: Deficiente | M21: Aceptable | N21: Bueno | O21: Excelente
L22: 0% - 20% | M22: 21% - 30% | N22: 31% - 40% | O22: 41% - 100%
C23: ORIGEN DE DATOS NUMERADOR | E23: Modulo de aseguramiento de la calidad educativa | H23: FRECUENCIA DE LA MEDICIÓN | J23: ANUAL | L23: FRECUENCIA DE RESULTADO | N23: ANUAL
C24: ORIGEN DE DATOS DENOMINADOR | E24: Base de datos de Talento Humano
C26: RESULTADOS
J27: ANÁLISIS DE DATOS
J28: Durante el desarrollo de las fases del proceso de Autoevaluación en la Universidad de Cundinamarca, el 65% de los profesores de todos los programas académicos de la institución aportaron al ejercicio de evaluación de Condiciones de Calidad y dieron cuenta de su percepción respecto al cumplimiento de estos criterios especialmente en la fase aplicación instrumentos de percepción; indicador que da cuenta de la rigurosidad del ejercicio y garantías de participación para la comunidad Universitaria.
J34: ACCIÓN FORMULADA
J35: N/A
J41: RESPONSABLE
J42: =E14 -> Director de Autoevaluación y Acreditación
C45: PERIODO DE EVALUACIÓN
C46: MES | D46: =IF(J23="MENSUAL","ENERO",IF(J23="TRIMESTRAL","MARZO",IF(J23="SEMESTRAL","JUNIO",IF(J23="ANUAL",YEAR(TODAY()),"")))) -> 2021 | E46: =IF(J23="MENSUAL","FEBRERO",IF(J23="TRIMESTRAL","JUNIO",IF(J23="SEMESTRAL","DICIEMBRE",""))) ->  | F46: =IF(J23="MENSUAL","MARZO",IF(J23="TRIMESTRAL","SEPTIEMBRE","")) ->  | G46: =IF(J23="MENSUAL","ABRIL",IF(J23="TRIMESTRAL","DICIEMBRE","")) ->  | H46: =IF(J23="MENSUAL","MAYO","") ->  | I46: =IF(J23="MENSUAL","JUNIO","") ->  | J46: =IF(J23="MENSUAL","JULIO","") ->  | K46: =IF(J23="MENSUAL","AGOSTO","") ->  | L46: =IF(J23="MENSUAL","SEPTIEMBRE","") ->  | M46: =IF(J23="MENSUAL","OCTUBRE","") ->  | N46: =IF(J23="MENSUAL","NOVIEMBRE","") ->  | O46: =IF(J23="MENSUAL","DICIEMBRE","") -> 
C47: =G18 -> N° de docentes que participaron en la autoevaluación *100 | D47: 853
C48: =G19 -> Total de docentes vinculados en el programa (Aplica solo para programas que presenten autoevaluación durante el desarrollo de la vigencia) | D48: 1316
C49: VALOR | D49: =IFERROR(IF($E$17=1,D47/D48,IF($E$17=2,D47,"")),"") -> 0.6481762918 | E49: =IFERROR(IF($E$17=1,E47/E48,IF($E$17=2,E47,"")),"") -> 
C50: META PONDERADA | D50: =IF(AND(N23="ANUAL",J23="MENSUAL"),N17/12,IF(AND(N23="ANUAL",J23="TRIMESTRAL"),N17/4,IF(AND(N23="ANUAL",J23="SEMESTRAL"),N17/2,IF(AND(N23="ANUAL",J23="ANUAL"),N17,IF(AND(N23="SEMESTRAL",J23="MENSUAL"),N17/6,IF(AND(N23="SEMESTRAL",J23="TRIMESTRAL"),N17/2,IF(AND(N23="SEMESTRAL",J23="SEMESTRAL"),N17,IF(AND(N23="SEMESTRAL",J23="ANUAL"),"REVISAR FRECUENCIAS",IF(AND(N23="TRIMESTRAL",J23="MENSUAL"),N17/3,IF(AND(N23="TRIMESTRAL",J23="TRIMESTRAL"),N17,IF(AND(N23="TRIMESTRAL",J23="SEMESTRAL"),"REVISAR FRECUENCIAS",IF(AND(N23="TRIMESTRAL",J23="ANUAL"),"REVISAR FRECUENCIAS",IF(AND(N23="MENSUAL",J23="MENSUAL"),N17,IF(AND(N23="MENSUAL",J23="TRIMESTRAL"),"REVISAR FRECUENCIAS",IF(AND(N23="MENSUAL",J23="SEMESTRAL"),"REVISAR FRECUENCIAS",IF(AND(N23="MENSUAL",J23="ANUAL"),"REVISAR FRECUENCIAS","")))))))))))))))) -> 0.4 | E50: =IF(AND(N23="ANUAL",J23="MENSUAL"),N17/12+D50,IF(AND(N23="ANUAL",J23="TRIMESTRAL"),N17/4+D50,IF(AND(N23="ANUAL",J23="SEMESTRAL"),N17/2+D50,IF(AND(N23="SEMESTRAL",J23="MENSUAL"),N17/6+D50,IF(AND(N23="SEMESTRAL",J23="TRIMESTRAL"),N17/2+D50,IF(AND(N23="SEMESTRAL",J23="SEMESTRAL"),N17,IF(AND(N23="TRIMESTRAL",J23="MENSUAL"),N17/3+D50,IF(AND(N23="TRIMESTRAL",J23="TRIMESTRAL"),N17,IF(AND(N23="MENSUAL",J23="MENSUAL"),N17,""))))))))) ->  | F50: =IF(AND(N23="ANUAL",J23="MENSUAL"),N17/12+E50,IF(AND(N23="ANUAL",J23="TRIMESTRAL"),N17/4+E50,IF(AND(N23="SEMESTRAL",J23="MENSUAL"),N17/6+E50,IF(AND(N23="SEMESTRAL",J23="TRIMESTRAL"),N17/2,IF(AND(N23="TRIMESTRAL",J23="MENSUAL"),N17/3+E50,IF(AND(N23="TRIMESTRAL",J23="TRIMESTRAL"),N17,IF(AND(N23="MENSUAL",J23="MENSUAL"),N17,""))))))) ->  | G50: =IF(AND(N23="ANUAL",J23="MENSUAL"),N17/12+F50,IF(AND(N23="ANUAL",J23="TRIMESTRAL"),N17/4+F50,IF(AND(N23="SEMESTRAL",J23="MENSUAL"),N17/6+F50,IF(AND(N23="SEMESTRAL",J23="TRIMESTRAL"),N17/2+F50,IF(AND(N23="TRIMESTRAL",J23="MENSUAL"),N17/3,IF(AND(N23="TRIMESTRAL",J23="TRIMESTRAL"),N17,IF(AND(N23="MENSUAL",J23="MENSUAL"),N17,""))))))) ->  | H50: =IF(AND($N$23="ANUAL",$J$23="MENSUAL"),$N$17/12+G50,IF(AND(N23="SEMESTRAL",J23="MENSUAL"),N17/6+G50,IF(AND(N23="TRIMESTRAL",J23="MENSUAL"),N17/3+G50,IF(AND(N23="MENSUAL",J23="MENSUAL"),N17,"")))) ->  | I50: =IF(AND($N$23="ANUAL",$J$23="MENSUAL"),$N$17/12+H50,IF(AND(N23="SEMESTRAL",J23="MENSUAL"),N17/6+H50,IF(AND(N23="TRIMESTRAL",J23="MENSUAL"),N17/3+H50,IF(AND(N23="MENSUAL",J23="MENSUAL"),N17,"")))) ->  | J50: =IF(AND($N$23="ANUAL",$J$23="MENSUAL"),$N$17/12+I50,IF(AND(N23="SEMESTRAL",J23="MENSUAL"),N17/6,IF(AND(N23="TRIMESTRAL",J23="MENSUAL"),N17/3,IF(AND(N23="MENSUAL",J23="MENSUAL"),N17,"")))) ->  | K50: =IF(AND($N$23="ANUAL",$J$23="MENSUAL"),$N$17/12+J50,IF(AND(N23="SEMESTRAL",J23="MENSUAL"),N17/6+J50,IF(AND(N23="TRIMESTRAL",J23="MENSUAL"),N17/3+J50,IF(AND(N23="MENSUAL",J23="MENSUAL"),N17,"")))) ->  | L50: =IF(AND($N$23="ANUAL",$J$23="MENSUAL"),$N$17/12+K50,IF(AND(N23="SEMESTRAL",J23="MENSUAL"),N17/6+K50,IF(AND(N23="TRIMESTRAL",J23="MENSUAL"),N17/3+K50,IF(AND(N23="MENSUAL",J23="MENSUAL"),N17,"")))) ->  | M50: =IF(AND($N$23="ANUAL",$J$23="MENSUAL"),$N$17/12+L50,IF(AND(N23="SEMESTRAL",J23="MENSUAL"),N17/6+L50,IF(AND(N23="TRIMESTRAL",J23="MENSUAL"),N17/3,IF(AND(N23="MENSUAL",J23="MENSUAL"),N17,"")))) ->  | N50: =IF(AND($N$23="ANUAL",$J$23="MENSUAL"),$N$17/12+M50,IF(AND(N23="SEMESTRAL",J23="MENSUAL"),N17/6+M50,IF(AND(N23="TRIMESTRAL",J23="MENSUAL"),N17/3+M50,IF(AND(N23="MENSUAL",J23="MENSUAL"),N17,"")))) ->  | O50: =IF(AND($N$23="ANUAL",$J$23="MENSUAL"),$N$17/12+N50,IF(AND(N23="SEMESTRAL",J23="MENSUAL"),N17/6+N50,IF(AND(N23="TRIMESTRAL",J23="MENSUAL"),N17/3+N50,IF(AND(N23="MENSUAL",J23="MENSUAL"),N17,"")))) -> 
C52: NIVEL DE SEGREGACIÓN *
C53: UNIDAD SEGREGADA (Ej. Facultad, Programa Académico, Área) | G53: RESULTADO | K53: ANÁLISIS DE DATOS SEGREGADO
C54: Administración de empresas - Fusagasugá | G54: 0.6666666667 | K54: Durante el desarrollo del ejercicio de Autoevaluación el programa académico ha contado con la participación de 42 profesores que representan el 66,67% de la comunidad.
C55: Administración de empresas - Girardot | G55: 0.8048780488 | K55: Durante el desarrollo del ejercicio de Autoevaluación el programa académico ha contado con la participación de 33 profesores que representan el 80,49% de la comunidad.
C56: Administración de empresas - Ubaté | G56: 0.4615384615 | K56: Durante el desarrollo del ejercicio de Autoevaluación el programa académico ha contado con la participación de 12 profesores que representan el 46,15% de la comunidad.
C57: Administración de empresas - Chía | G57: 0.6304347826 | K57: Durante el desarrollo del ejercicio de Autoevaluación el programa académico ha contado con la participación de 29 profesores que representan el 63,04% de la comunidad.
C58: Administración de empresas - Facatativá | G58: 0.6785714286 | K58: Durante el desarrollo del ejercicio de Autoevaluación el programa académico ha contado con la participación de 38 profesores que representan el 67,86% de la comunidad.
C59: Contaduría Pública- Fusagasugá | G59: 0.5272727273 | K59: Durante el desarrollo del ejercicio de Autoevaluación el programa académico ha contado con la participación de 29 profesores que representan el 52,73% de la comunidad.
C60: Contaduría Pública - Facatativá | G60: 0.5490196078 | K60: Durante el desarrollo del ejercicio de Autoevaluación el programa académico ha contado con la participación de 28 profesores que representan el 54,90% de la comunidad.
C61: Contaduría Pública Ubaté | G61: 0.8064516129 | K61: Durante el desarrollo del ejercicio de Autoevaluación el programa académico ha contado con la participación de 25 profesores que representan el 80,65% de la comunidad.
C62: Contaduría Pública - Chía | G62: 0.625 | K62: Durante el desarrollo del ejercicio de Autoevaluación el programa académico ha contado con la participación de 20 profesores que representan el 62,50% de la comunidad.
C63: Tecnología en gestión Turística y Hotelera | G63: 0.4545454545 | K63: Durante el desarrollo del ejercicio de Autoevaluación el programa académico ha contado con la participación de 10 profesores que representan el 45,45% de la comunidad.
C64: Ingeniería Agronómica - Fusagasugá | G64: 0.3787878788 | K64: Durante el desarrollo del ejercicio de Autoevaluación el programa académico ha contado con la participación de 25 profesores que representan el 37,88% de la comunidad.
C65: Ingeniería Agronómica - Facatativá | G65: 0.5263157895 | K65: Durante el desarrollo del ejercicio de Autoevaluación el programa académico ha contado con la participación de 20 profesores que representan el 52,63% de la comunidad.
C66: Ingeniería Ambiental - Girardot | G66: 0.4680851064 | K66: Durante el desarrollo del ejercicio de Autoevaluación el programa académico ha contado con la participación de 22 profesores que representan el 46,81% de la comunidad.
C67: Ingeniería Ambiental - Facatativá | G67: 0.6862745098 | K67: Durante el desarrollo del ejercicio de Autoevaluación el programa académico ha contado con la participación de 35 profesores que representan el 68,63% de la comunidad.
C68: Zootecnia - Fusagasugá | G68: 0.640625 | K68: Durante el desarrollo del ejercicio de Autoevaluación el programa académico ha contado con la participación de 41 profesores que representan el 64,06% de la comunidad.
C69: Zootecnia - Ubaté | G69: 0.76 | K69: Durante el desarrollo del ejercicio de Autoevaluación el programa académico ha contado con la participación de 19 profesores que representan el 76,00% de la comunidad.
C70: Tecnología en Cartografía - Fusagasugá | G70: 0.55 | K70: Durante el desarrollo del ejercicio de Autoevaluación el programa académico ha contado con la participación de 11 profesores que representan el 55,00% de la comunidad.
C71: Profesional en Ciencias del Deporte y la Educación Física - Soacha | G71: 1 | K71: Durante el desarrollo del ejercicio de Autoevaluación el programa académico ha contado con la participación de 38 profesores que representan el 100,00% de la comunidad.
C72: Lic. en Ciencias Sociales - Fusagasugá | G72: 0.8620689655 | K72: Durante el desarrollo del ejercicio de Autoevaluación el programa académico ha contado con la participación de 25 profesores que representan el 86,21% de la comunidad.
C73: Ingeniería Electrónica - Fusagasugá | G73: 0.5348837209 | K73: Durante el desarrollo del ejercicio de Autoevaluación el programa académico ha contado con la participación de 23 profesores que representan el 53,49% de la comunidad.
C74: Ingeniería Industrial - Soacha | G74: 0.4545454545 | K74: Durante el desarrollo del ejercicio de Autoevaluación el programa académico ha contado con la participación de 20 profesores que representan el 45,45% de la comunidad.
C75: Ingeniería de Sistemas - Fusagasugá | G75: 0.5106382979 | K75: Durante el desarrollo del ejercicio de Autoevaluación el programa académico ha contado con la participación de 24 profesores que representan el 51,06% de la comunidad.
C76: Ingeniería de Sistemas - Ubaté | G76: 0.8 | K76: Durante el desarrollo del ejercicio de Autoevaluación el programa académico ha contado con la participación de 12 profesores que representan el 80,00% de la comunidad.
C77: Ingeniería de Sistemas - Chía | G77: 0.8301886792 | K77: Durante el desarrollo del ejercicio de Autoevaluación el programa académico ha contado con la participación de 44 profesores que representan el 83,02% de la comunidad.
C78: Ingeniería de Sistemas - Facatativá | G78: 0.4423076923 | K78: Durante el desarrollo del ejercicio de Autoevaluación el programa académico ha contado con la participación de 23 profesores que representan el 44,23% de la comunidad.
C79: Tecnología en Desarrollo de Software - Soacha | G79: 0.6 | K79: Durante el desarrollo del ejercicio de Autoevaluación el programa académico ha contado con la participación de 12 profesores que representan el 60,00% de la comunidad.
C80: Enfermería - Girardot | G80: 0.8082191781 | K80: Durante el desarrollo del ejercicio de Autoevaluación el programa académico ha contado con la participación de 59 profesores que representan el 80,82% de la comunidad.
C81: Música - Zipaquirá | G81: 0.816091954 | K81: Durante el desarrollo del ejercicio de Autoevaluación el programa académico ha contado con la participación de 71 profesores que representan el 81,61% de la comunidad.
C82: Psicología - Facatativá | G82: 1 | K82: Durante el desarrollo del ejercicio de Autoevaluación el programa académico ha contado con la participación de 26 profesores que representan el 100.00% de la comunidad.
C83: Esp. en Gerencia para el Desarrollo Organizacional | G83: 1 | K83: Durante el desarrollo del ejercicio de Autoevaluación el programa académico ha contado con la participación de 8 profesores que representan el 100,00% de la comunidad.
C84: Esp. en Procesos Pedagógicos del Entrenamiento Deportivo | G84: 1 | K84: Durante el desarrollo del ejercicio de Autoevaluación el programa académico ha contado con la participación de 5 profesores que representan el 100,00% de la comunidad.
C85: Esp. en Educación Ambiental y Desarrollo de la Comunidad | G85: 0.6666666667 | K85: Durante el desarrollo del ejercicio de Autoevaluación el programa académico ha contado con la participación de 8 profesores que representan el 66,67% de la comunidad.
C86: Esp. Negocios y Comercio Electrónico | G86: 0.6666666667 | K86: Durante el desarrollo del ejercicio de Autoevaluación el programa académico ha contado con la participación de 4 profesores que representan el 66,67% de la comunidad.
C87: Esp. Gestión de Sistemas de Información Gerencial (Virtual) | G87: 1 | K87: Durante el desarrollo del ejercicio de Autoevaluación el programa académico ha contado con la participación de 8 profesores que representan el 100,00% de la comunidad.
C88: Maestría en Educación | G88: 0.1818181818 | K88: Durante el desarrollo del ejercicio de Autoevaluación el programa académico ha contado con la participación de 2 profesores que representan el 18,18% de la comunidad.
C89: Maestría en Ciencias Ambientales | G89: 0.4 | K89: Durante el desarrollo del ejercicio de Autoevaluación el programa académico ha contado con la participación de 2 profesores que representan el 40,00% de la comunidad.
G100: Estratégico | J100: Eficacia
G101: Misional | J101: Eficiencia
G102: Apoyo | J102: Acreditación
G103: Seguimiento, Medición, Análisis y Evaluación | J103: Positiva
G104: Direccionamiento Estratégico | J104: Negativa
G105: Planeación Institucional | J105: Por Unidad Regional
G106: Proyectos Especiales y Relaciones Interinstitucionales | J106: Por Facultad
G107: Sistemas Integrados | J107: Por Programa Académico
G108: Autoevaluación y Acreditación | J108: Por área
G109: Comunicaciones | J109: Por Laboratorio
G110: Formación y Aprendizaje | J110: Otros
G111: Ciencia, Tecnología e Innovación | J111: No Aplica
G112: Interacción Social Universitaria
G113: Bienestar Universitario
G114: Admisiones y Registro
G115: Graduados
G116: Dialogando con el Mundo
G117: Talento Humano
G118: Jurídica
G119: Financiera
G120: Sistemas y Tecnología
G121: Bienes y Servicios
G122: Documental
G123: Apoyo Académico
G124: Control Interno
G125: Control Disciplinario
G126: Servicio de Atención al Ciudadano

Sheet EAA-6
B2: REGRESAR
E5: MACROPROCESO ESTRATÉGICO | M5: CÓDIGO: ESGr027
E6: PROCESO GESTIÓN SISTEMAS INTEGRADOS | M6: VERSIÓN: 7
E7: MATRIZ DE MEDICIÓN Y SEGUIMIENTO A LOS PROCESOS DE GESTIÓN | M7: VIGENCIA: 2020-03-20
M8: PÁGINA: 1 de 1
C10: FICHA DE INDICADOR
C12: MACROPROCESO | E12: Estratégico | I12: NOMBRE DEL INDICADOR | K12: Participación de graduados en la autoevaluación de los programas académicos
C13: PROCESO GESTIÓN | E13: Autoevaluación y Acreditación
C14: RESPONSABLE DE MEDICIÓN | E14: Director de Autoevaluación y Acreditación
C16: 1. COMPORTAMIENTO DE INDICADOR
C17: CLASIFICACIÓN DE LA MEDICIÓN | E17: 1 | H17: TIPO DE INDICADOR | J17: Acreditación | L17: META ANUAL | N17: 0.2
C18: FORMULA | E18: NUMERADOR | G18: N° de graduados que participaron en la autoevaluación *100 | L18: UNIDAD DE MEDIDA | N18: Porcentual
E19: DENOMINADOR | G19: Total de graduados del programa (Aplica solo para programas que presenten autoevaluación durante el desarrollo de la vigencia)
C20: TENDENCIA | E20: Positiva | H20: NIVEL DE SEGREGACIÓN * | J20: Por Programa Académico | L20: ESCALA
L21: Deficiente | M21: Aceptable | N21: Bueno | O21: Excelente
L22: 0% - 5% | M22: 6% - 10% | N22: 11% - 20% | O22: 21% - 100%
C23: ORIGEN DE DATOS NUMERADOR | E23: Modulo de aseguramiento de la calidad educativa | H23: FRECUENCIA DE LA MEDICIÓN | J23: ANUAL | L23: FRECUENCIA DE RESULTADO | N23: ANUAL
C24: ORIGEN DE DATOS DENOMINADOR | E24: Base de datos de la oficina de Graduados
C26: RESULTADOS
J27: ANÁLISIS DE DATOS
J28: El ejercicio de Autoevaluación tuvo una participación del 11% de los graduados de programas académicos de la Universidad de Cundinamarca; indicador que a la fecha no a alcanzado su cumplimiento; sin embargo, es importante mencionar que durante el desarrollo de la fase aplicación instrumentos de percepción se alcanzaron las muestras mínimas requeridas para la valoración de calidad de los factos asociados a esta población.
J34: ACCIÓN FORMULADA
J35: Durante el desarrollo de las fases faltantes del proceso de Autoevaluación; especialmente durante la socialización de resultados del ejercicio, se tiene previsto la realización de actividades orientadas a brindar participación de graduados de los diferentes programas académicos, con el propósito de garantizar un proceso abierto y participativo para la comunidad universitaria.
J41: RESPONSABLE
J42: =E14 -> Director de Autoevaluación y Acreditación
C45: PERIODO DE EVALUACIÓN
C46: MES | D46: =IF(J23="MENSUAL","ENERO",IF(J23="TRIMESTRAL","MARZO",IF(J23="SEMESTRAL","JUNIO",IF(J23="ANUAL",YEAR(TODAY()),"")))) -> 2021 | E46: =IF(J23="MENSUAL","FEBRERO",IF(J23="TRIMESTRAL","JUNIO",IF(J23="SEMESTRAL","DICIEMBRE",""))) ->  | F46: =IF(J23="MENSUAL","MARZO",IF(J23="TRIMESTRAL","SEPTIEMBRE","")) ->  | G46: =IF(J23="MENSUAL","ABRIL",IF(J23="TRIMESTRAL","DICIEMBRE","")) ->  | H46: =IF(J23="MENSUAL","MAYO","") ->  | I46: =IF(J23="MENSUAL","JUNIO","") ->  | J46: =IF(J23="MENSUAL","JULIO","") ->  | K46: =IF(J23="MENSUAL","AGOSTO","") ->  | L46: =IF(J23="MENSUAL","SEPTIEMBRE","") ->  | M46: =IF(J23="MENSUAL","OCTUBRE","") ->  | N46: =IF(J23="MENSUAL","NOVIEMBRE","") ->  | O46: =IF(J23="MENSUAL","DICIEMBRE","") -> 
C47: =G18 -> N° de graduados que participaron en la autoevaluación *100 | D47: 1322
C48: =G19 -> Total de graduados del programa (Aplica solo para programas que presenten autoevaluación durante el desarrollo de la vigencia) | D48: 11877
C49: VALOR | D49: =IFERROR(IF($E$17=1,D47/D48,IF($E$17=2,D47,"")),"") -> 0.1113075693 | E49: =IFERROR(IF($E$17=1,E47/E48,IF($E$17=2,E47,"")),"") -> 
C50: META PONDERADA | D50: =IF(AND(N23="ANUAL",J23="MENSUAL"),N17/12,IF(AND(N23="ANUAL",J23="TRIMESTRAL"),N17/4,IF(AND(N23="ANUAL",J23="SEMESTRAL"),N17/2,IF(AND(N23="ANUAL",J23="ANUAL"),N17,IF(AND(N23="SEMESTRAL",J23="MENSUAL"),N17/6,IF(AND(N23="SEMESTRAL",J23="TRIMESTRAL"),N17/2,IF(AND(N23="SEMESTRAL",J23="SEMESTRAL"),N17,IF(AND(N23="SEMESTRAL",J23="ANUAL"),"REVISAR FRECUENCIAS",IF(AND(N23="TRIMESTRAL",J23="MENSUAL"),N17/3,IF(AND(N23="TRIMESTRAL",J23="TRIMESTRAL"),N17,IF(AND(N23="TRIMESTRAL",J23="SEMESTRAL"),"REVISAR FRECUENCIAS",IF(AND(N23="TRIMESTRAL",J23="ANUAL"),"REVISAR FRECUENCIAS",IF(AND(N23="MENSUAL",J23="MENSUAL"),N17,IF(AND(N23="MENSUAL",J23="TRIMESTRAL"),"REVISAR FRECUENCIAS",IF(AND(N23="MENSUAL",J23="SEMESTRAL"),"REVISAR FRECUENCIAS",IF(AND(N23="MENSUAL",J23="ANUAL"),"REVISAR FRECUENCIAS","")))))))))))))))) -> 0.2 | E50: =IF(AND(N23="ANUAL",J23="MENSUAL"),N17/12+D50,IF(AND(N23="ANUAL",J23="TRIMESTRAL"),N17/4+D50,IF(AND(N23="ANUAL",J23="SEMESTRAL"),N17/2+D50,IF(AND(N23="SEMESTRAL",J23="MENSUAL"),N17/6+D50,IF(AND(N23="SEMESTRAL",J23="TRIMESTRAL"),N17/2+D50,IF(AND(N23="SEMESTRAL",J23="SEMESTRAL"),N17,IF(AND(N23="TRIMESTRAL",J23="MENSUAL"),N17/3+D50,IF(AND(N23="TRIMESTRAL",J23="TRIMESTRAL"),N17,IF(AND(N23="MENSUAL",J23="MENSUAL"),N17,""))))))))) ->  | F50: =IF(AND(N23="ANUAL",J23="MENSUAL"),N17/12+E50,IF(AND(N23="ANUAL",J23="TRIMESTRAL"),N17/4+E50,IF(AND(N23="SEMESTRAL",J23="MENSUAL"),N17/6+E50,IF(AND(N23="SEMESTRAL",J23="TRIMESTRAL"),N17/2,IF(AND(N23="TRIMESTRAL",J23="MENSUAL"),N17/3+E50,IF(AND(N23="TRIMESTRAL",J23="TRIMESTRAL"),N17,IF(AND(N23="MENSUAL",J23="MENSUAL"),N17,""))))))) ->  | G50: =IF(AND(N23="ANUAL",J23="MENSUAL"),N17/12+F50,IF(AND(N23="ANUAL",J23="TRIMESTRAL"),N17/4+F50,IF(AND(N23="SEMESTRAL",J23="MENSUAL"),N17/6+F50,IF(AND(N23="SEMESTRAL",J23="TRIMESTRAL"),N17/2+F50,IF(AND(N23="TRIMESTRAL",J23="MENSUAL"),N17/3,IF(AND(N23="TRIMESTRAL",J23="TRIMESTRAL"),N17,IF(AND(N23="MENSUAL",J23="MENSUAL"),N17,""))))))) ->  | H50: =IF(AND($N$23="ANUAL",$J$23="MENSUAL"),$N$17/12+G50,IF(AND(N23="SEMESTRAL",J23="MENSUAL"),N17/6+G50,IF(AND(N23="TRIMESTRAL",J23="MENSUAL"),N17/3+G50,IF(AND(N23="MENSUAL",J23="MENSUAL"),N17,"")))) ->  | I50: =IF(AND($N$23="ANUAL",$J$23="MENSUAL"),$N$17/12+H50,IF(AND(N23="SEMESTRAL",J23="MENSUAL"),N17/6+H50,IF(AND(N23="TRIMESTRAL",J23="MENSUAL"),N17/3+H50,IF(AND(N23="MENSUAL",J23="MENSUAL"),N17,"")))) ->  | J50: =IF(AND($N$23="ANUAL",$J$23="MENSUAL"),$N$17/12+I50,IF(AND(N23="SEMESTRAL",J23="MENSUAL"),N17/6,IF(AND(N23="TRIMESTRAL",J23="MENSUAL"),N17/3,IF(AND(N23="MENSUAL",J23="MENSUAL"),N17,"")))) ->  | K50: =IF(AND($N$23="ANUAL",$J$23="MENSUAL"),$N$17/12+J50,IF(AND(N23="SEMESTRAL",J23="MENSUAL"),N17/6+J50,IF(AND(N23="TRIMESTRAL",J23="MENSUAL"),N17/3+J50,IF(AND(N23="MENSUAL",J23="MENSUAL"),N17,"")))) ->  | L50: =IF(AND($N$23="ANUAL",$J$23="MENSUAL"),$N$17/12+K50,IF(AND(N23="SEMESTRAL",J23="MENSUAL"),N17/6+K50,IF(AND(N23="TRIMESTRAL",J23="MENSUAL"),N17/3+K50,IF(AND(N23="MENSUAL",J23="MENSUAL"),N17,"")))) ->  | M50: =IF(AND($N$23="ANUAL",$J$23="MENSUAL"),$N$17/12+L50,IF(AND(N23="SEMESTRAL",J23="MENSUAL"),N17/6+L50,IF(AND(N23="TRIMESTRAL",J23="MENSUAL"),N17/3,IF(AND(N23="MENSUAL",J23="MENSUAL"),N17,"")))) ->  | N50: =IF(AND($N$23="ANUAL",$J$23="MENSUAL"),$N$17/12+M50,IF(AND(N23="SEMESTRAL",J23="MENSUAL"),N17/6+M50,IF(AND(N23="TRIMESTRAL",J23="MENSUAL"),N17/3+M50,IF(AND(N23="MENSUAL",J23="MENSUAL"),N17,"")))) ->  | O50: =IF(AND($N$23="ANUAL",$J$23="MENSUAL"),$N$17/12+N50,IF(AND(N23="SEMESTRAL",J23="MENSUAL"),N17/6+N50,IF(AND(N23="TRIMESTRAL",J23="MENSUAL"),N17/3+N50,IF(AND(N23="MENSUAL",J23="MENSUAL"),N17,"")))) -> 
C52: NIVEL DE SEGREGACIÓN *
C53: UNIDAD SEGREGADA (Ej. Facultad, Programa Académico, Área) | G53: RESULTADO | K53: ANÁLISIS DE DATOS SEGREGADO
C54: Administración de empresas - Fusagasugá | G54: 0.04400440044 | K54: Durante el desarrollo del ejercicio de Autoevaluación el programa académico ha contado con la participación de 40 graduados que representan el 4,40% de la comunidad.
C55: Administración de empresas - Girardot | G55: 0.1324354658 | K55: Durante el desarrollo del ejercicio de Autoevaluación el programa académico ha contado con la participación de 118 graduados que representan el 13,24% de la comunidad.
C56: Administración de empresas - Ubaté | G56: 0.375 | K56: Durante el desarrollo del ejercicio de Autoevaluación el programa académico ha contado con la participación de 156 graduados que representan el 37,50% de la comunidad.
C57: Administración de empresas - Chía | G57: 0.1205250597 | K57: Durante el desarrollo del ejercicio de Autoevaluación el programa académico ha contado con la participación de 101 graduados que representan el 12,05% de la comunidad.
C58: Administración de empresas - Facatativá | G58: 0.04086738949 | K58: Durante el desarrollo del ejercicio de Autoevaluación el programa académico ha contado con la participación de 49 graduados que representan el 4,09% de la comunidad.
C59: Contaduría Pública- Fusagasugá | G59: 0.01184210526 | K59: Durante el desarrollo del ejercicio de Autoevaluación el programa académico ha contado con la participación de 9 graduados que representan el 1,18% de la comunidad.
C60: Contaduría Pública - Facatativá | G60: 0.1582089552 | K60: Durante el desarrollo del ejercicio de Autoevaluación el programa académico ha contado con la participación de 106 graduados que representan el 15,82% de la comunidad.
C61: Contaduría Pública Ubaté | G61: 0.5724637681 | K61: Durante el desarrollo del ejercicio de Autoevaluación el programa académico ha contado con la participación de 76 graduados que representan el 57,25% de la comunidad.
C62: Tecnología en gestión Turística y Hotelera | G62: 0.4871794872 | K62: Durante el desarrollo del ejercicio de Autoevaluación el programa académico ha contado con la participación de 95 graduados que representan el 48,72% de la comunidad.
C63: Ingeniería Agronómica - Fusagasugá | G63: 0.7727272727 | K63: Durante el desarrollo del ejercicio de Autoevaluación el programa académico ha contado con la participación de 17 graduados que representan el 77,27% de la comunidad.
C64: Ingeniería Agronómica - Facatativá | G64: 0.08 | K64: Durante el desarrollo del ejercicio de Autoevaluación el programa académico ha contado con la participación de 2 graduados que representan el 8,00% de la comunidad.
C65: Ingeniería Ambiental - Girardot | G65: 0.02872062663 | K65: Durante el desarrollo del ejercicio de Autoevaluación el programa académico ha contado con la participación de 11 graduados que representan el 2,87% de la comunidad.
C66: Ingeniería Ambiental - Facatativá | G66: 0.02556818182 | K66: Durante el desarrollo del ejercicio de Autoevaluación el programa académico ha contado con la participación de 9 graduados que representan el 2,56% de la comunidad.
C67: Zootecnia - Fusagasugá | G67: 0.3869731801 | K67: Durante el desarrollo del ejercicio de Autoevaluación el programa académico ha contado con la participación de 202 graduados que representan el 38,70% de la comunidad.
C68: Zootecnia - Ubaté | G68: 0.5 | K68: Durante el desarrollo del ejercicio de Autoevaluación el programa académico ha contado con la participación de 1 graduados que representan el 50,00% de la comunidad.
C69: Tecnología en Cartografía - Fusagasugá | G69: 0.05701754386 | K69: Durante el desarrollo del ejercicio de Autoevaluación el programa académico ha contado con la participación de 13 graduados que representan el 5,70% de la comunidad.
C70: Profesional en Ciencias del Deporte y la Educación Física - Soacha | G70: 0.02097902098 | K70: Durante el desarrollo del ejercicio de Autoevaluación el programa académico ha contado con la participación de 24 graduados que representan el 2,10% de la comunidad.
C71: Lic. en Ciencias Sociales - Fusagasugá | G71: 0.1325301205 | K71: Durante el desarrollo del ejercicio de Autoevaluación el programa académico ha contado con la participación de 11 graduados que representan el 13,25% de la comunidad.
C72: Ingeniería Electrónica - Fusagasugá | G72: 0.1815789474 | K72: Durante el desarrollo del ejercicio de Autoevaluación el programa académico ha contado con la participación de 69 graduados que representan el 18,16% de la comunidad.
C73: Ingeniería Industrial - Soacha | G73: 0.03076923077 | K73: Durante el desarrollo del ejercicio de Autoevaluación el programa académico ha contado con la participación de 10 graduados que representan el 3,08% de la comunidad.
C74: Ingeniería de Sistemas - Fusagasugá | G74: 0.1568627451 | K74: Durante el desarrollo del ejercicio de Autoevaluación el programa académico ha contado con la participación de 8 graduados que representan el 15,69% de la comunidad.
C75: Ingeniería de Sistemas - Ubaté | G75: 1 | K75: Durante el desarrollo del ejercicio de Autoevaluación el programa académico ha contado con la participación de 1 graduados que representan el 100,00% de la comunidad.
C76: Ingeniería de Sistemas - Chía | G76: 0.01401869159 | K76: Durante el desarrollo del ejercicio de Autoevaluación el programa académico ha contado con la participación de 6 graduados que representan el 1,40% de la comunidad.
C77: Ingeniería de Sistemas - Facatativá | G77: 0.119047619 | K77: Durante el desarrollo del ejercicio de Autoevaluación el programa académico ha contado con la participación de 5 graduados que representan el 11,90% de la comunidad.
C78: Tecnología en Desarrollo de Software - Soacha | G78: 0.1111111111 | K78: Durante el desarrollo del ejercicio de Autoevaluación el programa académico ha contado con la participación de 4 graduados que representan el 11,11% de la comunidad.
C79: Enfermería - Girardot | G79: 0.09210526316 | K79: Durante el desarrollo del ejercicio de Autoevaluación el programa académico ha contado con la participación de 63 graduados que representan el 9.21% de la comunidad.
C80: Música - Zipaquirá | G80: 0.2692307692 | K80: Durante el desarrollo del ejercicio de Autoevaluación el programa académico ha contado con la participación de 28 graduados que representan el 26,92% de la comunidad.
C81: Psicología - Facatativá | G81: 0.009900990099 | K81: Durante el desarrollo del ejercicio de Autoevaluación el programa académico ha contado con la participación de 4 graduados que representan el 0,99% de la comunidad.
C82: Esp. en Gerencia para el Desarrollo Organizacional | G82: 0.5909090909 | K82: Durante el desarrollo del ejercicio de Autoevaluación el programa académico ha contado con la participación de 26 graduados que representan el 59,09% de la comunidad.
C83: Esp. en Procesos Pedagógicos del Entrenamiento Deportivo | G83: 0.06081081081 | K83: Durante el desarrollo del ejercicio de Autoevaluación el programa académico ha contado con la participación de 9 graduados que representan el 6,08% de la comunidad.
C84: Esp. en Educación Ambiental y Desarrollo de la Comunidad | G84: 0.01623376623 | K84: Durante el desarrollo del ejercicio de Autoevaluación el programa académico ha contado con la participación de 5 graduados que representan el 1,62% de la comunidad.
C85: Esp. Negocios y Comercio Electrónico | G85: 0.03636363636 | K85: Durante el desarrollo del ejercicio de Autoevaluación el programa académico ha contado con la participación de 2 graduados que representan el 3,64% de la comunidad.
C86: Esp. Gestión de Sistemas de Información Gerencial (Virtual) | G86: 0.1176470588 | K86: Durante el desarrollo del ejercicio de Autoevaluación el programa académico ha contado con la participación de 4 graduados que representan el 11,76% de la comunidad.
C87: Maestría en Educación | G87: 0.03921568627 | K87: Durante el desarrollo del ejercicio de Autoevaluación el programa académico ha contado con la participación de 2 graduados que representan el 3,92% de la comunidad.
C88: Maestría en Ciencias Ambientales | G88: 0.8 | K88: Durante el desarrollo del ejercicio de Autoevaluación el programa académico ha contado con la participación de 4 graduados que representan el 80,00% de la comunidad.
G99: Estratégico | J99: Eficacia
G100: Misional | J100: Eficiencia
G101: Apoyo | J101: Acreditación
G102: Seguimiento, Medición, Análisis y Evaluación | J102: Positiva
G103: Direccionamiento Estratégico | J103: Negativa
G104: Planeación Institucional | J104: Por Unidad Regional
G105: Proyectos Especiales y Relaciones Interinstitucionales | J105: Por Facultad
G106: Sistemas Integrados | J106: Por Programa Académico
G107: Autoevaluación y Acreditación | J107: Por área
G108: Comunicaciones | J108: Por Laboratorio
G109: Formación y Aprendizaje | J109: Otros
G110: Ciencia, Tecnología e Innovación | J110: No Aplica
G111: Interacción Social Universitaria
G112: Bienestar Universitario
G113: Admisiones y Registro
G114: Graduados
G115: Dialogando con el Mundo
G116: Talento Humano
G117: Jurídica
G118: Financiera
G119: Sistemas y Tecnología
G120: Bienes y Servicios
G121: Documental
G122: Apoyo Académico
G123: Control Interno
G124: Control Disciplinario
G125: Servicio de Atención al Ciudadano

Sheet EAA-7
B2: REGRESAR
E5: MACROPROCESO ESTRATÉGICO | M5: CÓDIGO: ESGr027
E6: PROCESO GESTIÓN SISTEMAS INTEGRADOS | M6: VERSIÓN: 7
E7: MATRIZ DE MEDICIÓN Y SEGUIMIENTO A LOS PROCESOS DE GESTIÓN | M7: VIGENCIA: 2020-03-20
M8: PÁGINA: 1 de 1
C10: FICHA DE INDICADOR
C12: MACROPROCESO | E12: Estratégico | I12: NOMBRE DEL INDICADOR | K12: Oportunidad en el cumplimiento del cronograma de autoevaluación
C13: PROCESO GESTIÓN | E13: Autoevaluación y Acreditación
C14: RESPONSABLE DE MEDICIÓN | E14: Director de Autoevaluación y Acreditación
C16: 1. COMPORTAMIENTO DE INDICADOR
C17: CLASIFICACIÓN DE LA MEDICIÓN | E17: 1 | H17: TIPO DE INDICADOR | J17: Eficiencia | L17: META ANUAL | N17: 1
C18: FORMULA | E18: NUMERADOR | G18: N° de actividades ejecutadas oportunamente *100 | L18: UNIDAD DE MEDIDA | N18: Porcentual
E19: DENOMINADOR | G19: Total de actividades
C20: TENDENCIA | E20: Positiva | H20: NIVEL DE SEGREGACIÓN * | J20: Por Programa Académico | L20: ESCALA
L21: Deficiente | M21: Aceptable | N21: Bueno | O21: Excelente
L22: 0% - 40% | M22: 41% - 84% | N22: 85% - 100% | O22: N/A
C23: ORIGEN DE DATOS NUMERADOR | E23: Módulo de aseguramiento de la calidad educativa | H23: FRECUENCIA DE LA MEDICIÓN | J23: TRIMESTRAL | L23: FRECUENCIA DE RESULTADO | N23: ANUAL
C24: ORIGEN DE DATOS DENOMINADOR | E24: Módulo de aseguramiento de la calidad educativa
C26: RESULTADOS
J27: ANÁLISIS DE DATOS
J28: I TRIMESTRE Desde la Dirección de Autoevaluación y Acreditación se ha acompañado a todos los programas académicos de pregrado y posgrado de la Universidad de Cundinamarca durante el desarrollo del proceso de Autoevaluación, en el cual se han surtido a cabalidad las siguientes actividades del cronograma previsto: 1. Sensibilización y preparación del Proceso de Autoevaluación con la Comunidad Universitaria; 2. Recolección de Información (Documental); 3. Recolección de Información estadística e informes; Aplicación de instrumentos de percepción. II TRIMESTRE Desde la Dirección de Autoevaluación y Acreditación se ha acompañado a todos los programas académicos de pregrado y posgrado de la Universidad de Cundinamarca durante el desarrollo del proceso de Autoevaluación, en el cual se han surtido a cabalidad las siguientes actividades del cronograma previsto: * Emisión juicios de calidad; * Formulación Planes de Mejoramiento. III TRIMESTRE y IV TRIMESTRE Conforme el cronograma establecido para el desarrollo del proceso de Autoevaluación de programas académicos de la Universidad de Cundinamarca, la Dirección de Autoevaluación y Acreditación ha hecho efectivo acompañamiento al cumplimiento de cada una de las actividades previstas. Para el tercer trimestre de la vigencia 2020 se desarrollaron las fases de: * Construcción Documentos Informes de Autoevaluación; * Socialización de resultados a la comunidad universitaria. Así, se da cuenta del cumplimiento de la totalidad de las actividades establecidas para el proceso.
J35: ACCIÓN FORMULADA
J36: I TRIMESTRE Para el efectivo cumplimiento de todo el cronograma de autoevaluación se llevarán a cabo las actividades faltantes: Emisión de Juicios de Calidad; Emisión de Planes de Mejoramiento; Informe de Autoevaluación y Socialización de resultados a la comunidad universitaria. II TRIMESTRE Para el efectivo cumplimiento de todo el cronograma de autoevaluación se llevarán a cabo las actividades faltantes: Construcción Documentos Informe de Autoevaluación; Socialización de resultados a la comunidad universitaria. III TRIMESTRE No aplica. IV TRIMESTRE No aplica.
J42: RESPONSABLE
J43: =E14 -> Director de Autoevaluación y Acreditación
C46: PERIODO DE EVALUACIÓN
C47: MES | D47: =IF(J23="MENSUAL","ENERO",IF(J23="TRIMESTRAL","MARZO",IF(J23="SEMESTRAL","JUNIO",IF(J23="ANUAL",YEAR(TODAY()),"")))) -> MARZO | E47: =IF(J23="MENSUAL","FEBRERO",IF(J23="TRIMESTRAL","JUNIO",IF(J23="SEMESTRAL","DICIEMBRE",""))) -> JUNIO | F47: =IF(J23="MENSUAL","MARZO",IF(J23="TRIMESTRAL","SEPTIEMBRE","")) -> SEPTIEMBRE | G47: =IF(J23="MENSUAL","ABRIL",IF(J23="TRIMESTRAL","DICIEMBRE","")) -> DICIEMBRE | H47: =IF(J23="MENSUAL","MAYO","") ->  | I47: =IF(J23="MENSUAL","JUNIO","") ->  | J47: =IF(J23="MENSUAL","JULIO","") ->  | K47: =IF(J23="MENSUAL","AGOSTO","") ->  | L47: =IF(J23="MENSUAL","SEPTIEMBRE","") ->  | M47: =IF(J23="MENSUAL","OCTUBRE","") ->  | N47: =IF(J23="MENSUAL","NOVIEMBRE","") ->  | O47: =IF(J23="MENSUAL","DICIEMBRE","") -> 
C48: =G18 -> N° de actividades ejecutadas oportunamente *100 | D48: 144 | E48: 216 | F48: 288 | G48: 288
C49: =G19 -> Total de actividades | D49: 288 | E49: 288 | F49: 288 | G49: 288
C50: VALOR | D50: =IFERROR(IF($E$17=1,D48/D49,IF($E$17=2,D48,"")),"") -> 0.5 | E50: =IFERROR(IF($E$17=1,E48/E49,IF($E$17=2,E48,"")),"") -> 0.75 | F50: 1 | G50: 1
C51: META PONDERADA | D51: =IF(AND(N23="ANUAL",J23="MENSUAL"),N17/12,IF(AND(N23="ANUAL",J23="TRIMESTRAL"),N17/4,IF(AND(N23="ANUAL",J23="SEMESTRAL"),N17/2,IF(AND(N23="ANUAL",J23="ANUAL"),N17,IF(AND(N23="SEMESTRAL",J23="MENSUAL"),N17/6,IF(AND(N23="SEMESTRAL",J23="TRIMESTRAL"),N17/2,IF(AND(N23="SEMESTRAL",J23="SEMESTRAL"),N17,IF(AND(N23="SEMESTRAL",J23="ANUAL"),"REVISAR FRECUENCIAS",IF(AND(N23="TRIMESTRAL",J23="MENSUAL"),N17/3,IF(AND(N23="TRIMESTRAL",J23="TRIMESTRAL"),N17,IF(AND(N23="TRIMESTRAL",J23="SEMESTRAL"),"REVISAR FRECUENCIAS",IF(AND(N23="TRIMESTRAL",J23="ANUAL"),"REVISAR FRECUENCIAS",IF(AND(N23="MENSUAL",J23="MENSUAL"),N17,IF(AND(N23="MENSUAL",J23="TRIMESTRAL"),"REVISAR FRECUENCIAS",IF(AND(N23="MENSUAL",J23="SEMESTRAL"),"REVISAR FRECUENCIAS",IF(AND(N23="MENSUAL",J23="ANUAL"),"REVISAR FRECUENCIAS","")))))))))))))))) -> 0.25 | E51: =IF(AND(N23="ANUAL",J23="MENSUAL"),N17/12+D51,IF(AND(N23="ANUAL",J23="TRIMESTRAL"),N17/4+D51,IF(AND(N23="ANUAL",J23="SEMESTRAL"),N17/2+D51,IF(AND(N23="SEMESTRAL",J23="MENSUAL"),N17/6+D51,IF(AND(N23="SEMESTRAL",J23="TRIMESTRAL"),N17/2+D51,IF(AND(N23="SEMESTRAL",J23="SEMESTRAL"),N17,IF(AND(N23="TRIMESTRAL",J23="MENSUAL"),N17/3+D51,IF(AND(N23="TRIMESTRAL",J23="TRIMESTRAL"),N17,IF(AND(N23="MENSUAL",J23="MENSUAL"),N17,""))))))))) -> 0.5 | F51: =IF(AND(N23="ANUAL",J23="MENSUAL"),N17/12+E51,IF(AND(N23="ANUAL",J23="TRIMESTRAL"),N17/4+E51,IF(AND(N23="SEMESTRAL",J23="MENSUAL"),N17/6+E51,IF(AND(N23="SEMESTRAL",J23="TRIMESTRAL"),N17/2,IF(AND(N23="TRIMESTRAL",J23="MENSUAL"),N17/3+E51,IF(AND(N23="TRIMESTRAL",J23="TRIMESTRAL"),N17,IF(AND(N23="MENSUAL",J23="MENSUAL"),N17,""))))))) -> 0.75 | G51: =IF(AND(N23="ANUAL",J23="MENSUAL"),N17/12+F51,IF(AND(N23="ANUAL",J23="TRIMESTRAL"),N17/4+F51,IF(AND(N23="SEMESTRAL",J23="MENSUAL"),N17/6+F51,IF(AND(N23="SEMESTRAL",J23="TRIMESTRAL"),N17/2+F51,IF(AND(N23="TRIMESTRAL",J23="MENSUAL"),N17/3,IF(AND(N23="TRIMESTRAL",J23="TRIMESTRAL"),N17,IF(AND(N23="MENSUAL",J23="MENSUAL"),N17,""))))))) -> 1 | H51: =IF(AND($N$23="ANUAL",$J$23="MENSUAL"),$N$17/12+G51,IF(AND(N23="SEMESTRAL",J23="MENSUAL"),N17/6+G51,IF(AND(N23="TRIMESTRAL",J23="MENSUAL"),N17/3+G51,IF(AND(N23="MENSUAL",J23="MENSUAL"),N17,"")))) ->  | I51: =IF(AND($N$23="ANUAL",$J$23="MENSUAL"),$N$17/12+H51,IF(AND(N23="SEMESTRAL",J23="MENSUAL"),N17/6+H51,IF(AND(N23="TRIMESTRAL",J23="MENSUAL"),N17/3+H51,IF(AND(N23="MENSUAL",J23="MENSUAL"),N17,"")))) ->  | J51: =IF(AND($N$23="ANUAL",$J$23="MENSUAL"),$N$17/12+I51,IF(AND(N23="SEMESTRAL",J23="MENSUAL"),N17/6,IF(AND(N23="TRIMESTRAL",J23="MENSUAL"),N17/3,IF(AND(N23="MENSUAL",J23="MENSUAL"),N17,"")))) ->  | K51: =IF(AND($N$23="ANUAL",$J$23="MENSUAL"),$N$17/12+J51,IF(AND(N23="SEMESTRAL",J23="MENSUAL"),N17/6+J51,IF(AND(N23="TRIMESTRAL",J23="MENSUAL"),N17/3+J51,IF(AND(N23="MENSUAL",J23="MENSUAL"),N17,"")))) ->  | L51: =IF(AND($N$23="ANUAL",$J$23="MENSUAL"),$N$17/12+K51,IF(AND(N23="SEMESTRAL",J23="MENSUAL"),N17/6+K51,IF(AND(N23="TRIMESTRAL",J23="MENSUAL"),N17/3+K51,IF(AND(N23="MENSUAL",J23="MENSUAL"),N17,"")))) ->  | M51: =IF(AND($N$23="ANUAL",$J$23="MENSUAL"),$N$17/12+L51,IF(AND(N23="SEMESTRAL",J23="MENSUAL"),N17/6+L51,IF(AND(N23="TRIMESTRAL",J23="MENSUAL"),N17/3,IF(AND(N23="MENSUAL",J23="MENSUAL"),N17,"")))) ->  | N51: =IF(AND($N$23="ANUAL",$J$23="MENSUAL"),$N$17/12+M51,IF(AND(N23="SEMESTRAL",J23="MENSUAL"),N17/6+M51,IF(AND(N23="TRIMESTRAL",J23="MENSUAL"),N17/3+M51,IF(AND(N23="MENSUAL",J23="MENSUAL"),N17,"")))) ->  | O51: =IF(AND($N$23="ANUAL",$J$23="MENSUAL"),$N$17/12+N51,IF(AND(N23="SEMESTRAL",J23="MENSUAL"),N17/6+N51,IF(AND(N23="TRIMESTRAL",J23="MENSUAL"),N17/3+N51,IF(AND(N23="MENSUAL",J23="MENSUAL"),N17,"")))) -> 
C53: NIVEL DE SEGREGACIÓN *
C54: UNIDAD SEGREGADA (Ej. Facultad, Programa Académico, Área) | G54: RESULTADO | K54: ANÁLISIS DE DATOS SEGREGADO
C55: Administración de empresas - Fusagasugá | G55: =100% -> 1 | K55: El programa académico ha desarrollado las actividades de: Sensibilización y preparación del Proceso de Autoevaluación con la Comunidad Universitaria; Recolección de Información (Documental); Recolección de Información estadística e informes, Aplicación instrumentos de percepción; Emisión juicios de Calidad; Formulación Planes de Mejoramiento; Construcción Documento Informe de Autoevaluación y Socialización de resultados a la comunidad universitaria. Fases que contaron con el acompañamiento permanente de la Dirección de Autoevaluación y Acreditación para el efectivo cumplimiento de cada una de las actividades previstas.
C56: Administración de empresas - Girardot | G56: 1 | K56: El programa académico ha desarrollado las actividades de: Sensibilización y preparación del Proceso de Autoevaluación con la Comunidad Universitaria; Recolección de Información (Documental); Recolección de Información estadística e informes, Aplicación instrumentos de percepción; Emisión juicios de Calidad; Formulación Planes de Mejoramiento; Construcción Documento Informe de Autoevaluación y Socialización de resultados a la comunidad universitaria. Fases que contaron con el acompañamiento permanente de la Dirección de Autoevaluación y Acreditación para el efectivo cumplimiento de cada una de las actividades previstas.
C57: Administración de empresas - Ubaté | G57: 1 | K57: El programa académico ha desarrollado las actividades de: Sensibilización y preparación del Proceso de Autoevaluación con la Comunidad Universitaria; Recolección de Información (Documental); Recolección de Información estadística e informes, Aplicación instrumentos de percepción; Emisión juicios de Calidad; Formulación Planes de Mejoramiento; Construcción Documento Informe de Autoevaluación y Socialización de resultados a la comunidad universitaria. Fases que contaron con el acompañamiento permanente de la Dirección de Autoevaluación y Acreditación para el efectivo cumplimiento de cada una de las actividades previstas.
C58: Administración de empresas - Chía | G58: 1 | K58: El programa académico ha desarrollado las actividades de: Sensibilización y preparación del Proceso de Autoevaluación con la Comunidad Universitaria; Recolección de Información (Documental); Recolección de Información estadística e informes, Aplicación instrumentos de percepción; Emisión juicios de Calidad; Formulación Planes de Mejoramiento; Construcción Documento Informe de Autoevaluación y Socialización de resultados a la comunidad universitaria. Fases que contaron con el acompañamiento permanente de la Dirección de Autoevaluación y Acreditación para el efectivo cumplimiento de cada una de las actividades previstas.
C59: Administración de empresas - Facatativá | G59: 1 | K59: El programa académico ha desarrollado las actividades de: Sensibilización y preparación del Proceso de Autoevaluación con la Comunidad Universitaria; Recolección de Información (Documental); Recolección de Información estadística e informes, Aplicación instrumentos de percepción; Emisión juicios de Calidad; Formulación Planes de Mejoramiento; Construcción Documento Informe de Autoevaluación y Socialización de resultados a la comunidad universitaria. Fases que contaron con el acompañamiento permanente de la Dirección de Autoevaluación y Acreditación para el efectivo cumplimiento de cada una de las actividades previstas.
C60: Contaduría Pública- Fusagasugá | G60: 1 | K60: El programa académico ha desarrollado las actividades de: Sensibilización y preparación del Proceso de Autoevaluación con la Comunidad Universitaria; Recolección de Información (Documental); Recolección de Información estadística e informes, Aplicación instrumentos de percepción; Emisión juicios de Calidad; Formulación Planes de Mejoramiento; Construcción Documento Informe de Autoevaluación y Socialización de resultados a la comunidad universitaria. Fases que contaron con el acompañamiento permanente de la Dirección de Autoevaluación y Acreditación para el efectivo cumplimiento de cada una de las actividades previstas.
C61: Contaduría Pública - Facatativá | G61: 1 | K61: El programa académico ha desarrollado las actividades de: Sensibilización y preparación del Proceso de Autoevaluación con la Comunidad Universitaria; Recolección de Información (Documental); Recolección de Información estadística e informes, Aplicación instrumentos de percepción; Emisión juicios de Calidad; Formulación Planes de Mejoramiento; Construcción Documento Informe de Autoevaluación y Socialización de resultados a la comunidad universitaria. Fases que contaron con el acompañamiento permanente de la Dirección de Autoevaluación y Acreditación para el efectivo cumplimiento de cada una de las actividades previstas.
C62: Contaduría Pública Ubaté | G62: 1 | K62: El programa académico ha desarrollado las actividades de: Sensibilización y preparación del Proceso de Autoevaluación con la Comunidad Universitaria; Recolección de Información (Documental); Recolección de Información estadística e informes, Aplicación instrumentos de percepción; Emisión juicios de Calidad; Formulación Planes de Mejoramiento; Construcción Documento Informe de Autoevaluación y Socialización de resultados a la comunidad universitaria. Fases que contaron con el acompañamiento permanente de la Dirección de Autoevaluación y Acreditación para el efectivo cumplimiento de cada una de las actividades previstas.
C63: Contaduría Pública - Chía | G63: 1 | K63: El programa académico ha desarrollado las actividades de: Sensibilización y preparación del Proceso de Autoevaluación con la Comunidad Universitaria; Recolección de Información (Documental); Recolección de Información estadística e informes, Aplicación instrumentos de percepción; Emisión juicios de Calidad; Formulación Planes de Mejoramiento; Construcción Documento Informe de Autoevaluación y Socialización de resultados a la comunidad universitaria. Fases que contaron con el acompañamiento permanente de la Dirección de Autoevaluación y Acreditación para el efectivo cumplimiento de cada una de las actividades previstas.
C64: Tecnología en gestión Turística y Hotelera | G64: 1 | K64: El programa académico ha desarrollado las actividades de: Sensibilización y preparación del Proceso de Autoevaluación con la Comunidad Universitaria; Recolección de Información (Documental); Recolección de Información estadística e informes, Aplicación instrumentos de percepción; Emisión juicios de Calidad; Formulación Planes de Mejoramiento; Construcción Documento Informe de Autoevaluación y Socialización de resultados a la comunidad universitaria. Fases que contaron con el acompañamiento permanente de la Dirección de Autoevaluación y Acreditación para el efectivo cumplimiento de cada una de las actividades previstas.
C65: Ingeniería Agronómica - Fusagasugá | G65: 1 | K65: El programa académico ha desarrollado las actividades de: Sensibilización y preparación del Proceso de Autoevaluación con la Comunidad Universitaria; Recolección de Información (Documental); Recolección de Información estadística e informes, Aplicación instrumentos de percepción; Emisión juicios de Calidad; Formulación Planes de Mejoramiento; Construcción Documento Informe de Autoevaluación y Socialización de resultados a la comunidad universitaria. Fases que contaron con el acompañamiento permanente de la Dirección de Autoevaluación y Acreditación para el efectivo cumplimiento de cada una de las actividades previstas.
C66: Ingeniería Agronómica - Facatativá | G66: 1 | K66: El programa académico ha desarrollado las actividades de: Sensibilización y preparación del Proceso de Autoevaluación con la Comunidad Universitaria; Recolección de Información (Documental); Recolección de Información estadística e informes, Aplicación instrumentos de percepción; Emisión juicios de Calidad; Formulación Planes de Mejoramiento; Construcción Documento Informe de Autoevaluación y Socialización de resultados a la comunidad universitaria. Fases que contaron con el acompañamiento permanente de la Dirección de Autoevaluación y Acreditación para el efectivo cumplimiento de cada una de las actividades previstas.
C67: Ingeniería Ambiental - Girardot | G67: 1 | K67: El programa académico ha desarrollado las actividades de: Sensibilización y preparación del Proceso de Autoevaluación con la Comunidad Universitaria; Recolección de Información (Documental); Recolección de Información estadística e informes, Aplicación instrumentos de percepción; Emisión juicios de Calidad; Formulación Planes de Mejoramiento; Construcción Documento Informe de Autoevaluación y Socialización de resultados a la comunidad universitaria. Fases que contaron con el acompañamiento permanente de la Dirección de Autoevaluación y Acreditación para el efectivo cumplimiento de cada una de las actividades previstas.
C68: Ingeniería Ambiental - Facatativá | G68: 1 | K68: El programa académico ha desarrollado las actividades de: Sensibilización y preparación del Proceso de Autoevaluación con la Comunidad Universitaria; Recolección de Información (Documental); Recolección de Información estadística e informes, Aplicación instrumentos de percepción; Emisión juicios de Calidad; Formulación Planes de Mejoramiento; Construcción Documento Informe de Autoevaluación y Socialización de resultados a la comunidad universitaria. Fases que contaron con el acompañamiento permanente de la Dirección de Autoevaluación y Acreditación para el efectivo cumplimiento de cada una de las actividades previstas.
C69: Zootecnia - Fusagasugá | G69: 1 | K69: El programa académico ha desarrollado las actividades de: Sensibilización y preparación del Proceso de Autoevaluación con la Comunidad Universitaria; Recolección de Información (Documental); Recolección de Información estadística e informes, Aplicación instrumentos de percepción; Emisión juicios de Calidad; Formulación Planes de Mejoramiento; Construcción Documento Informe de Autoevaluación y Socialización de resultados a la comunidad universitaria. Fases que contaron con el acompañamiento permanente de la Dirección de Autoevaluación y Acreditación para el efectivo cumplimiento de cada una de las actividades previstas.
C70: Zootecnia - Ubaté | G70: 1 | K70: El programa académico ha desarrollado las actividades de: Sensibilización y preparación del Proceso de Autoevaluación con la Comunidad Universitaria; Recolección de Información (Documental); Recolección de Información estadística e informes, Aplicación instrumentos de percepción; Emisión juicios de Calidad; Formulación Planes de Mejoramiento; Construcción Documento Informe de Autoevaluación y Socialización de resultados a la comunidad universitaria. Fases que contaron con el acompañamiento permanente de la Dirección de Autoevaluación y Acreditación para el efectivo cumplimiento de cada una de las actividades previstas.
C71: Tecnología en Cartografía - Fusagasugá | G71: 1 | K71: El programa académico ha desarrollado las actividades de: Sensibilización y preparación del Proceso de Autoevaluación con la Comunidad Universitaria; Recolección de Información (Documental); Recolección de Información estadística e informes, Aplicación instrumentos de percepción; Emisión juicios de Calidad; Formulación Planes de Mejoramiento; Construcción Documento Informe de Autoevaluación y Socialización de resultados a la comunidad universitaria. Fases que contaron con el acompañamiento permanente de la Dirección de Autoevaluación y Acreditación para el efectivo cumplimiento de cada una de las actividades previstas.
C72: Profesional en Ciencias del Deporte y la Educación Física - Soacha | G72: 1 | K72: El programa académico ha desarrollado las actividades de: Sensibilización y preparación del Proceso de Autoevaluación con la Comunidad Universitaria; Recolección de Información (Documental); Recolección de Información estadística e informes, Aplicación instrumentos de percepción; Emisión juicios de Calidad; Formulación Planes de Mejoramiento; Construcción Documento Informe de Autoevaluación y Socialización de resultados a la comunidad universitaria. Fases que contaron con el acompañamiento permanente de la Dirección de Autoevaluación y Acreditación para el efectivo cumplimiento de cada una de las actividades previstas.
C73: Lic. en Ciencias Sociales - Fusagasugá | G73: 1 | K73: El programa académico ha desarrollado las actividades de: Sensibilización y preparación del Proceso de Autoevaluación con la Comunidad Universitaria; Recolección de Información (Documental); Recolección de Información estadística e informes, Aplicación instrumentos de percepción; Emisión juicios de Calidad; Formulación Planes de Mejoramiento; Construcción Documento Informe de Autoevaluación y Socialización de resultados a la comunidad universitaria. Fases que contaron con el acompañamiento permanente de la Dirección de Autoevaluación y Acreditación para el efectivo cumplimiento de cada una de las actividades previstas.
C74: Ingeniería Electrónica - Fusagasugá | G74: 1 | K74: El programa académico ha desarrollado las actividades de: Sensibilización y preparación del Proceso de Autoevaluación con la Comunidad Universitaria; Recolección de Información (Documental); Recolección de Información estadística e informes, Aplicación instrumentos de percepción; Emisión juicios de Calidad; Formulación Planes de Mejoramiento; Construcción Documento Informe de Autoevaluación y Socialización de resultados a la comunidad universitaria. Fases que contaron con el acompañamiento permanente de la Dirección de Autoevaluación y Acreditación para el efectivo cumplimiento de cada una de las actividades previstas.
C75: Ingeniería Industrial - Soacha | G75: 1 | K75: El programa académico ha desarrollado las actividades de: Sensibilización y preparación del Proceso de Autoevaluación con la Comunidad Universitaria; Recolección de Información (Documental); Recolección de Información estadística e informes, Aplicación instrumentos de percepción; Emisión juicios de Calidad; Formulación Planes de Mejoramiento; Construcción Documento Informe de Autoevaluación y Socialización de resultados a la comunidad universitaria. Fases que contaron con el acompañamiento permanente de la Dirección de Autoevaluación y Acreditación para el efectivo cumplimiento de cada una de las actividades previstas.
C76: Ingeniería de Sistemas - Fusagasugá | G76: 1 | K76: El programa académico ha desarrollado las actividades de: Sensibilización y preparación del Proceso de Autoevaluación con la Comunidad Universitaria; Recolección de Información (Documental); Recolección de Información estadística e informes, Aplicación instrumentos de percepción; Emisión juicios de Calidad; Formulación Planes de Mejoramiento; Construcción Documento Informe de Autoevaluación y Socialización de resultados a la comunidad universitaria. Fases que contaron con el acompañamiento permanente de la Dirección de Autoevaluación y Acreditación para el efectivo cumplimiento de cada una de las actividades previstas.
C77: Ingeniería de Sistemas - Ubaté | G77: 1 | K77: El programa académico ha desarrollado las actividades de: Sensibilización y preparación del Proceso de Autoevaluación con la Comunidad Universitaria; Recolección de Información (Documental); Recolección de Información estadística e informes, Aplicación instrumentos de percepción; Emisión juicios de Calidad; Formulación Planes de Mejoramiento; Construcción Documento Informe de Autoevaluación y Socialización de resultados a la comunidad universitaria. Fases que contaron con el acompañamiento permanente de la Dirección de Autoevaluación y Acreditación para el efectivo cumplimiento de cada una de las actividades previstas.
C78: Ingeniería de Sistemas - Chía | G78: 1 | K78: El programa académico ha desarrollado las actividades de: Sensibilización y preparación del Proceso de Autoevaluación con la Comunidad Universitaria; Recolección de Información (Documental); Recolección de Información estadística e informes, Aplicación instrumentos de percepción; Emisión juicios de Calidad; Formulación Planes de Mejoramiento; Construcción Documento Informe de Autoevaluación y Socialización de resultados a la comunidad universitaria. Fases que contaron con el acompañamiento permanente de la Dirección de Autoevaluación y Acreditación para el efectivo cumplimiento de cada una de las actividades previstas.
C79: Ingeniería de Sistemas - Facatativá | G79: 1 | K79: El programa académico ha desarrollado las actividades de: Sensibilización y preparación del Proceso de Autoevaluación con la Comunidad Universitaria; Recolección de Información (Documental); Recolección de Información estadística e informes, Aplicación instrumentos de percepción; Emisión juicios de Calidad; Formulación Planes de Mejoramiento; Construcción Documento Informe de Autoevaluación y Socialización de resultados a la comunidad universitaria. Fases que contaron con el acompañamiento permanente de la Dirección de Autoevaluación y Acreditación para el efectivo cumplimiento de cada una de las actividades previstas.
C80: Tecnología en Desarrollo de Software - Soacha | G80: 1 | K80: El programa académico ha desarrollado las actividades de: Sensibilización y preparación del Proceso de Autoevaluación con la Comunidad Universitaria; Recolección de Información (Documental); Recolección de Información estadística e informes, Aplicación instrumentos de percepción; Emisión juicios de Calidad; Formulación Planes de Mejoramiento; Construcción Documento Informe de Autoevaluación y Socialización de resultados a la comunidad universitaria. Fases que contaron con el acompañamiento permanente de la Dirección de Autoevaluación y Acreditación para el efectivo cumplimiento de cada una de las actividades previstas.
C81: Enfermería - Girardot | G81: 1 | K81: El programa académico ha desarrollado las actividades de: Sensibilización y preparación del Proceso de Autoevaluación con la Comunidad Universitaria; Recolección de Información (Documental); Recolección de Información estadística e informes, Aplicación instrumentos de percepción; Emisión juicios de Calidad; Formulación Planes de Mejoramiento; Construcción Documento Informe de Autoevaluación y Socialización de resultados a la comunidad universitaria. Fases que contaron con el acompañamiento permanente de la Dirección de Autoevaluación y Acreditación para el efectivo cumplimiento de cada una de las actividades previstas.
C82: Música - Zipaquirá | G82: 1 | K82: El programa académico ha desarrollado las actividades de: Sensibilización y preparación del Proceso de Autoevaluación con la Comunidad Universitaria; Recolección de Información (Documental); Recolección de Información estadística e informes, Aplicación instrumentos de percepción; Emisión juicios de Calidad; Formulación Planes de Mejoramiento; Construcción Documento Informe de Autoevaluación y Socialización de resultados a la comunidad universitaria. Fases que contaron con el acompañamiento permanente de la Dirección de Autoevaluación y Acreditación para el efectivo cumplimiento de cada una de las actividades previstas.
C83: Psicología - Facatativá | G83: 1 | K83: El programa académico ha desarrollado las actividades de: Sensibilización y preparación del Proceso de Autoevaluación con la Comunidad Universitaria; Recolección de Información (Documental); Recolección de Información estadística e informes, Aplicación instrumentos de percepción; Emisión juicios de Calidad; Formulación Planes de Mejoramiento; Construcción Documento Informe de Autoevaluación y Socialización de resultados a la comunidad universitaria. Fases que contaron con el acompañamiento permanente de la Dirección de Autoevaluación y Acreditación para el efectivo cumplimiento de cada una de las actividades previstas.
C84: Esp. en Gerencia para el Desarrollo Organizacional | G84: 1 | K84: El programa académico ha desarrollado las actividades de: Sensibilización y preparación del Proceso de Autoevaluación con la Comunidad Universitaria; Recolección de Información (Documental); Recolección de Información estadística e informes, Aplicación instrumentos de percepción; Emisión juicios de Calidad; Formulación Planes de Mejoramiento; Construcción Documento Informe de Autoevaluación y Socialización de resultados a la comunidad universitaria. Fases que contaron con el acompañamiento permanente de la Dirección de Autoevaluación y Acreditación para el efectivo cumplimiento de cada una de las actividades previstas.
C85: Esp. en Procesos Pedagógicos del Entrenamiento Deportivo | G85: 1 | K85: El programa académico ha desarrollado las actividades de: Sensibilización y preparación del Proceso de Autoevaluación con la Comunidad Universitaria; Recolección de Información (Documental); Recolección de Información estadística e informes, Aplicación instrumentos de percepción; Emisión juicios de Calidad; Formulación Planes de Mejoramiento; Construcción Documento Informe de Autoevaluación y Socialización de resultados a la comunidad universitaria. Fases que contaron con el acompañamiento permanente de la Dirección de Autoevaluación y Acreditación para el efectivo cumplimiento de cada una de las actividades previstas.
C86: Esp. en Educación Ambiental y Desarrollo de la Comunidad | G86: 1 | K86: El programa académico ha desarrollado las actividades de: Sensibilización y preparación del Proceso de Autoevaluación con la Comunidad Universitaria; Recolección de Información (Documental); Recolección de Información estadística e informes, Aplicación instrumentos de percepción; Emisión juicios de Calidad; Formulación Planes de Mejoramiento; Construcción Documento Informe de Autoevaluación y Socialización de resultados a la comunidad universitaria. Fases que contaron con el acompañamiento permanente de la Dirección de Autoevaluación y Acreditación para el efectivo cumplimiento de cada una de las actividades previstas.
C87: Esp. Negocios y Comercio Electrónico | G87: 1 | K87: El programa académico ha desarrollado las actividades de: Sensibilización y preparación del Proceso de Autoevaluación con la Comunidad Universitaria; Recolección de Información (Documental); Recolección de Información estadística e informes, Aplicación instrumentos de percepción; Emisión juicios de Calidad; Formulación Planes de Mejoramiento; Construcción Documento Informe de Autoevaluación y Socialización de resultados a la comunidad universitaria. Fases que contaron con el acompañamiento permanente de la Dirección de Autoevaluación y Acreditación para el efectivo cumplimiento de cada una de las actividades previstas.
C88: Esp. Gestión de Sistemas de Información Gerencial (Virtual) | G88: 1 | K88: El programa académico ha desarrollado las actividades de: Sensibilización y preparación del Proceso de Autoevaluación con la Comunidad Universitaria; Recolección de Información (Documental); Recolección de Información estadística e informes, Aplicación instrumentos de percepción; Emisión juicios de Calidad; Formulación Planes de Mejoramiento; Construcción Documento Informe de Autoevaluación y Socialización de resultados a la comunidad universitaria. Fases que contaron con el acompañamiento permanente de la Dirección de Autoevaluación y Acreditación para el efectivo cumplimiento de cada una de las actividades previstas.
C89: Maestría en Educación | G89: 1 | K89: El programa académico ha desarrollado las actividades de: Sensibilización y preparación del Proceso de Autoevaluación con la Comunidad Universitaria; Recolección de Información (Documental); Recolección de Información estadística e informes, Aplicación instrumentos de percepción; Emisión juicios de Calidad; Formulación Planes de Mejoramiento; Construcción Documento Informe de Autoevaluación y Socialización de resultados a la comunidad universitaria. Fases que contaron con el acompañamiento permanente de la Dirección de Autoevaluación y Acreditación para el efectivo cumplimiento de cada una de las actividades previstas.
C90: Maestría en Ciencias Ambientales | G90: 1 | K90: El programa académico ha desarrollado las actividades de: Sensibilización y preparación del Proceso de Autoevaluación con la Comunidad Universitaria; Recolección de Información (Documental); Recolección de Información estadística e informes, Aplicación instrumentos de percepción; Emisión juicios de Calidad; Formulación Planes de Mejoramiento; Construcción Documento Informe de Autoevaluación y Socialización de resultados a la comunidad universitaria. Fases que contaron con el acompañamiento permanente de la Dirección de Autoevaluación y Acreditación para el efectivo cumplimiento de cada una de las actividades previstas.
G102: Estratégico | J102: Eficacia
G103: Misional | J103: Eficiencia
G104: Apoyo | J104: Acreditación
G105: Seguimiento, Medición, Análisis y Evaluación | J105: Positiva
G106: Direccionamiento Estratégico | J106: Negativa
G107: Planeación Institucional | J107: Por Unidad Regional
G108: Proyectos Especiales y Relaciones Interinstitucionales | J108: Por Facultad
G109: Sistemas Integrados | J109: Por Programa Académico
G110: Autoevaluación y Acreditación | J110: Por área
G111: Comunicaciones | J111: Por Laboratorio
G112: Formación y Aprendizaje | J112: Otros
G113: Ciencia, Tecnología e Innovación | J113: No Aplica
G114: Interacción Social Universitaria
G115: Bienestar Universitario
G116: Admisiones y Registro
G117: Graduados
G118: Dialogando con el Mundo
G119: Talento Humano
G120: Jurídica
G121: Financiera
G122: Sistemas y Tecnología
G123: Bienes y Servicios
G124: Documental
G125: Apoyo Académico
G126: Control Interno
G127: Control Disciplinario
G128: Servicio de Atención al Ciudadano

Sheet EAA-8
B2: REGRESAR
E5: MACROPROCESO ESTRATÉGICO | M5: CÓDIGO: ESGr027
E6: PROCESO GESTIÓN SISTEMAS INTEGRADOS | M6: VERSIÓN: 7
E7: MATRIZ DE MEDICIÓN Y SEGUIMIENTO A LOS PROCESOS DE GESTIÓN | M7: VIGENCIA: 2020-03-20
M8: PÁGINA: 1 de 1
C10: FICHA DE INDICADOR
C12: MACROPROCESO | E12: Estratégico | I12: NOMBRE DEL INDICADOR | K12: Cumplimiento de los planes de contingencia
C13: PROCESO GESTIÓN | E13: Autoevaluación y Acreditación
C14: RESPONSABLE DE MEDICIÓN | E14: Director de Autoevaluación y Acreditación
C16: 1. COMPORTAMIENTO DE INDICADOR
C17: CLASIFICACIÓN DE LA MEDICIÓN | E17: 1 | H17: TIPO DE INDICADOR | J17: Eficiencia | L17: META ANUAL | N17: 1
C18: FORMULA | E18: NUMERADOR | G18: Total de actividades ejecutadas oportunamente *100 | L18: UNIDAD DE MEDIDA | N18: Porcentual
E19: DENOMINADOR | G19: Total de actividades programadas
C20: TENDENCIA | E20: Positiva | H20: NIVEL DE SEGREGACIÓN * | J20: Por Programa Académico | L20: ESCALA
L21: Deficiente | M21: Aceptable | N21: Bueno | O21: Excelente
L22: 0% - 49% | M22: 50% - 75% | N22: 76% - 100% | O22: N/A
C23: ORIGEN DE DATOS NUMERADOR | E23: Documento en ONE DRIVE | H23: FRECUENCIA DE LA MEDICIÓN | J23: TRIMESTRAL | L23: FRECUENCIA DE RESULTADO | N23: ANUAL
C24: ORIGEN DE DATOS DENOMINADOR | E24: Documento en ONE DRIVE
C26: RESULTADOS
J27: ANÁLISIS DE DATOS
J28: I, II Y III TRIMESTRE Los programas académicos en cumplimiento del cronograma planteado en cada uno de los tres (3) Planes de Contingencia han desarrollado oportunamente 28 de las 46 actividades formuladas, las cuales se distribuyen así: La Lic. En Educación Básica con énfasis en Educación Física, Recreación y Deportes ha cumplido con 12 de las 21 actividades previstas, la Lic. en educación básica con énfasis en lengua castellana e Ingles ha desarrollado oportunamente 10 de las 15 actividades plateadas y la Lic. en Matemáticas 6 de 10 actividades. Desde la Dirección de Autoevaluación y Acreditación se ha hecho seguimiento a la entrega de soportes por parte de los programas académicos que evidencian el cumplimiento de las actividades, lo cual ha permitido a la fecha un cumplimiento oportuno del 61% de las actividades formuladas en los cronogramas de los Planes de Contingencia. IV TRIMESTRE Los programas académicos en cumplimiento del cronograma planteado en cada uno de los tres (3) Planes de Contingencia desarrollaron oportunamente 36 de las 46 actividades formuladas, las cuales se distribuyen así: La Lic. En Educación Básica con énfasis en Educación Física, Recreación y Deportes ha cumplido con 18 de las 21 actividades previstas, la Lic. en educación básica con énfasis en lengua castellana e Ingles ha desarrollado oportunamente 10 de las 15 actividades plateadas y la Lic. en Matemáticas 8 de 10 actividades. Desde la Dirección de Autoevaluación y Acreditación se ha hecho seguimiento a la entrega de soportes por parte de los programas académicos que evidencian el cumplimiento de las actividades, lo cual ha permitido a la fecha un cumplimiento oportuno del 61% de las actividades formuladas en los cronogramas de los Planes de Contingencia.
J34: ACCIÓN FORMULADA
J35: I Y II TRIMESTRE Continuar con el seguimiento por parte de la Dirección de Autoevaluación y Acreditación al cumplimento de los Planes de Contingencia de las tres (3) Licenciaturas en el proceso, con el propósito de desarrollar oportunamente las 18 actividades faltantes a la fecha para alcanzar la meta del 100% de cumplimiento de cada una de las actividades de los cronogramas planteados en los Planes de Contingencia. III TRIMESTRE El cronograma de seguimiento trimestral a los planes de contingencia de las tres (3) Licenciaturas tuvo que ser ajustado a periodicidad semestral por motivos de la contingencia sanitaria y la carga de procesos en los programas académicos, por tanto, desde la Dirección de Autoevaluación y Acreditación se realizará seguimiento en el mes de octubre de 2020 con el propósito de desarrollar oportunamente las actividades faltantes a la fecha para alcanzar la meta del 100% de cumplimiento de los Planes de Contingencia. IV TRIMESTRE Durante la segunda y tercera semana de febrero de 2021 se realizará el último seguimiento de la vigencia 2020 a la ejecución de actividades de los planes de contingencia de tres (3) programas académicos: Licenciatura en Educación Básica con énfasis en Educación Física, Recreación y Deportes; Licenciatura en Educación Básica con énfasis en Lengua Castellana e Inglés; Licenciatura en Matemáticas. NOTA: Una vez ejecutado el seguimiento a los planes de contingencia se remitirá la información para la respectiva actualización de datos del indicador.
J41: RESPONSABLE
J42: =E14 -> Director de Autoevaluación y Acreditación
C45: PERIODO DE EVALUACIÓN
C46: MES | D46: =IF(J23="MENSUAL","ENERO",IF(J23="TRIMESTRAL","MARZO",IF(J23="SEMESTRAL","JUNIO",IF(J23="ANUAL",YEAR(TODAY()),"")))) -> MARZO | E46: =IF(J23="MENSUAL","FEBRERO",IF(J23="TRIMESTRAL","JUNIO",IF(J23="SEMESTRAL","DICIEMBRE",""))) -> JUNIO | F46: =IF(J23="MENSUAL","MARZO",IF(J23="TRIMESTRAL","SEPTIEMBRE","")) -> SEPTIEMBRE | G46: =IF(J23="MENSUAL","ABRIL",IF(J23="TRIMESTRAL","DICIEMBRE","")) -> DICIEMBRE | H46: =IF(J23="MENSUAL","MAYO","") ->  | I46: =IF(J23="MENSUAL","JUNIO","") ->  | J46: =IF(J23="MENSUAL","JULIO","") ->  | K46: =IF(J23="MENSUAL","AGOSTO","") ->  | L46: =IF(J23="MENSUAL","SEPTIEMBRE","") ->  | M46: =IF(J23="MENSUAL","OCTUBRE","") ->  | N46: =IF(J23="MENSUAL","NOVIEMBRE","") ->  | O46: =IF(J23="MENSUAL","DICIEMBRE","") -> 
C47: =G18 -> Total de actividades ejecutadas oportunamente *100 | D47: 28 | E47: 28 | F47: 28 | G47: 36
C48: =G19 -> Total de actividades programadas | D48: 46 | E48: 46 | F48: 46 | G48: 46
C49: VALOR | D49: =IFERROR(IF($E$17=1,D47/D48,IF($E$17=2,D47,"")),"") -> 0.6086956522 | E49: =IFERROR(IF($E$17=1,E47/E48,IF($E$17=2,E47,"")),"") -> 0.6086956522 | F49: 0.6086956522 | G49: 0.7826086957
C50: META PONDERADA | D50: =IF(AND(N23="ANUAL",J23="MENSUAL"),N17/12,IF(AND(N23="ANUAL",J23="TRIMESTRAL"),N17/4,IF(AND(N23="ANUAL",J23="SEMESTRAL"),N17/2,IF(AND(N23="ANUAL",J23="ANUAL"),N17,IF(AND(N23="SEMESTRAL",J23="MENSUAL"),N17/6,IF(AND(N23="SEMESTRAL",J23="TRIMESTRAL"),N17/2,IF(AND(N23="SEMESTRAL",J23="SEMESTRAL"),N17,IF(AND(N23="SEMESTRAL",J23="ANUAL"),"REVISAR FRECUENCIAS",IF(AND(N23="TRIMESTRAL",J23="MENSUAL"),N17/3,IF(AND(N23="TRIMESTRAL",J23="TRIMESTRAL"),N17,IF(AND(N23="TRIMESTRAL",J23="SEMESTRAL"),"REVISAR FRECUENCIAS",IF(AND(N23="TRIMESTRAL",J23="ANUAL"),"REVISAR FRECUENCIAS",IF(AND(N23="MENSUAL",J23="MENSUAL"),N17,IF(AND(N23="MENSUAL",J23="TRIMESTRAL"),"REVISAR FRECUENCIAS",IF(AND(N23="MENSUAL",J23="SEMESTRAL"),"REVISAR FRECUENCIAS",IF(AND(N23="MENSUAL",J23="ANUAL"),"REVISAR FRECUENCIAS","")))))))))))))))) -> 0.25 | E50: =IF(AND(N23="ANUAL",J23="MENSUAL"),N17/12+D50,IF(AND(N23="ANUAL",J23="TRIMESTRAL"),N17/4+D50,IF(AND(N23="ANUAL",J23="SEMESTRAL"),N17/2+D50,IF(AND(N23="SEMESTRAL",J23="MENSUAL"),N17/6+D50,IF(AND(N23="SEMESTRAL",J23="TRIMESTRAL"),N17/2+D50,IF(AND(N23="SEMESTRAL",J23="SEMESTRAL"),N17,IF(AND(N23="TRIMESTRAL",J23="MENSUAL"),N17/3+D50,IF(AND(N23="TRIMESTRAL",J23="TRIMESTRAL"),N17,IF(AND(N23="MENSUAL",J23="MENSUAL"),N17,""))))))))) -> 0.5 | F50: =IF(AND(N23="ANUAL",J23="MENSUAL"),N17/12+E50,IF(AND(N23="ANUAL",J23="TRIMESTRAL"),N17/4+E50,IF(AND(N23="SEMESTRAL",J23="MENSUAL"),N17/6+E50,IF(AND(N23="SEMESTRAL",J23="TRIMESTRAL"),N17/2,IF(AND(N23="TRIMESTRAL",J23="MENSUAL"),N17/3+E50,IF(AND(N23="TRIMESTRAL",J23="TRIMESTRAL"),N17,IF(AND(N23="MENSUAL",J23="MENSUAL"),N17,""))))))) -> 0.75 | G50: =IF(AND(N23="ANUAL",J23="MENSUAL"),N17/12+F50,IF(AND(N23="ANUAL",J23="TRIMESTRAL"),N17/4+F50,IF(AND(N23="SEMESTRAL",J23="MENSUAL"),N17/6+F50,IF(AND(N23="SEMESTRAL",J23="TRIMESTRAL"),N17/2+F50,IF(AND(N23="TRIMESTRAL",J23="MENSUAL"),N17/3,IF(AND(N23="TRIMESTRAL",J23="TRIMESTRAL"),N17,IF(AND(N23="MENSUAL",J23="MENSUAL"),N17,""))))))) -> 1 | H50: =IF(AND($N$23="ANUAL",$J$23="MENSUAL"),$N$17/12+G50,IF(AND(N23="SEMESTRAL",J23="MENSUAL"),N17/6+G50,IF(AND(N23="TRIMESTRAL",J23="MENSUAL"),N17/3+G50,IF(AND(N23="MENSUAL",J23="MENSUAL"),N17,"")))) ->  | I50: =IF(AND($N$23="ANUAL",$J$23="MENSUAL"),$N$17/12+H50,IF(AND(N23="SEMESTRAL",J23="MENSUAL"),N17/6+H50,IF(AND(N23="TRIMESTRAL",J23="MENSUAL"),N17/3+H50,IF(AND(N23="MENSUAL",J23="MENSUAL"),N17,"")))) ->  | J50: =IF(AND($N$23="ANUAL",$J$23="MENSUAL"),$N$17/12+I50,IF(AND(N23="SEMESTRAL",J23="MENSUAL"),N17/6,IF(AND(N23="TRIMESTRAL",J23="MENSUAL"),N17/3,IF(AND(N23="MENSUAL",J23="MENSUAL"),N17,"")))) ->  | K50: =IF(AND($N$23="ANUAL",$J$23="MENSUAL"),$N$17/12+J50,IF(AND(N23="SEMESTRAL",J23="MENSUAL"),N17/6+J50,IF(AND(N23="TRIMESTRAL",J23="MENSUAL"),N17/3+J50,IF(AND(N23="MENSUAL",J23="MENSUAL"),N17,"")))) ->  | L50: =IF(AND($N$23="ANUAL",$J$23="MENSUAL"),$N$17/12+K50,IF(AND(N23="SEMESTRAL",J23="MENSUAL"),N17/6+K50,IF(AND(N23="TRIMESTRAL",J23="MENSUAL"),N17/3+K50,IF(AND(N23="MENSUAL",J23="MENSUAL"),N17,"")))) ->  | M50: =IF(AND($N$23="ANUAL",$J$23="MENSUAL"),$N$17/12+L50,IF(AND(N23="SEMESTRAL",J23="MENSUAL"),N17/6+L50,IF(AND(N23="TRIMESTRAL",J23="MENSUAL"),N17/3,IF(AND(N23="MENSUAL",J23="MENSUAL"),N17,"")))) ->  | N50: =IF(AND($N$23="ANUAL",$J$23="MENSUAL"),$N$17/12+M50,IF(AND(N23="SEMESTRAL",J23="MENSUAL"),N17/6+M50,IF(AND(N23="TRIMESTRAL",J23="MENSUAL"),N17/3+M50,IF(AND(N23="MENSUAL",J23="MENSUAL"),N17,"")))) ->  | O50: =IF(AND($N$23="ANUAL",$J$23="MENSUAL"),$N$17/12+N50,IF(AND(N23="SEMESTRAL",J23="MENSUAL"),N17/6+N50,IF(AND(N23="TRIMESTRAL",J23="MENSUAL"),N17/3+N50,IF(AND(N23="MENSUAL",J23="MENSUAL"),N17,"")))) -> 
C52: NIVEL DE SEGREGACIÓN *
C53: UNIDAD SEGREGADA (Ej. Facultad, Programa Académico, Área) | G53: RESULTADO | K53: ANÁLISIS DE DATOS SEGREGADO
C54: Lic. En Educación Básica con énfasis en Educación Física, Recreación y Deportes | G54: 0.8571428571 | K54: El programa académico en cumplimiento del cronograma planteado en su Plan de Contingencia a ejecutado oportunamente las siguientes actividades: 1. Participar en eventos académicos nacionales e internacionales, producción de artículos científicos sometidos en revistas indexadas; 2. Presentar convocatoria de Colciencias para categorizar un docente como par evaluador e investigador Junior por Colciencias, categorizar un grupo de investigación en Colciencias; 3. Participar como docentes en proyectos de investigación interdisciplinaria en la convocatoria de investigación institucional; 4. Participar como docentes en la convocatoria institucional de micro proyectos; 5. Participar en las convocatorias interinstitucionales de la Universidad; 6. Programar y desarrollar el primer seminario internacional de actualización en educación física recreación y deporte; 7. Programar y desarrollar el cuarto congreso internacional del movimiento humano; 8. Programar y desarrollar eventos internos de investigación organizados por el campo de formación investigativa; 9. Articulación misional (investigación docencia e interacción universitaria) en los programas Recreoteca Itinerante y CARD (trabajos de grado modalidad auxiliares de investigación); 10. Ajustar la reglamentación; 11. Producir y publicar artículos y/o capítulos en libros relacionados con las disciplinas del programa; 12. Desarrollar y someter productos académicos como docentes investigadores; 13. Participar como docentes en la convocatoria interna de facultad proyectos de investigación 2018; 14. Estructurar e implementar del proyecto de pertenencia Estudiantil Facultad Ciencias del deporte y educación física. UNAD (modalidad investigación y servicio social); 15. Estructurar e implementar el programa CARD Alianza interinstitucional convenio facultad ciencias del deporte y educación físicamente UNAD; 16. Consolidar los semilleros de investigación articulación a los dos grupos de investigación. 17. Organizar y desarrollar plan de fortalecimiento semestral por semillero de investigación y plan consolidado para semilleros en general. 18. Organizar y realizar convocatoria para ampliación de semilleros.
C55: Lic. en educación básica con énfasis en lengua castellana e Ingles | G55: 0.6666666667 | K55: El programa académico en cumplimiento del cronograma planteado en su Plan de Contingencia a ejecutado oportunamente las siguientes actividades: 1. Mejora de las estrategias de seguimiento académico administrativo de los productos de investigación asignados a los docentes investigadores; 2. Acompañar al grupo de investigación del programa en la categoría de categorización promovida por Colciencias; 3. Dinamizar los convenios para las publicaciones a nivel nacional e internacional; 4. Actualizar el diagnóstico de deserción en el programa para ajustar estrategias; 5. Seguimiento a las cohortes y aplicaciones de normatividad correspondiente; 6. Seguimiento al desarrollo a las opciones de grado; 7. Planeación y asignación del requerimiento de asignación docente; 8. Aplicación de la normatividad vigente relacionada con la contratación docente; 9. Aplicación de las política de graduados; 10. Fortalecer los encuentros anuales con graduados del programa.
C56: Lic. en Matemáticas | G56: 0.8 | K56: El programa académico en cumplimiento del cronograma planteado en su Plan de Contingencia a ejecutado oportunamente las siguientes actividades: 1. Mejorar estrategias de seguimiento académico administrativos de los productos de investigación asignados a los docentes investigadores; 2. Divulgación y socialización de los proyectos de investigación; 3. Acompañar al grupo de investigación del programa en la convocatoria de categorización promovida por Colciencias; 4. Consolidar el estudio e implementar estrategias de mejoramiento de corto plazo; 5. Fortalecer la productividad académica para garantizar la visibilidad nacional e internacional del programa; 6. Gestionar la participación de profesores y estudiantes en eventos académicos e investigativos; 7. Dinamizar los convenios para las publicaciones a nivel nacional e internacional; 8. Sistematizar los resultados de los proyectos de proyección social y asegurar la divulgación de resultados y articular las actividades de proyección social a proyectos que visibilicen y amplíen la participación de estudiantes, docentes y otros actores.
G68: Estratégico | J68: Eficacia
G69: Misional | J69: Eficiencia
G70: Apoyo | J70: Acreditación
G71: Seguimiento, Medición, Análisis y Evaluación | J71: Positiva
G72: Direccionamiento Estratégico | J72: Negativa
G73: Planeación Institucional | J73: Por Unidad Regional
G74: Proyectos Especiales y Relaciones Interinstitucionales | J74: Por Facultad
G75: Sistemas Integrados | J75: Por Programa Académico
G76: Autoevaluación y Acreditación | J76: Por área
G77: Comunicaciones | J77: Por Laboratorio
G78: Formación y Aprendizaje | J78: Otros
G79: Ciencia, Tecnología e Innovación | J79: No Aplica
G80: Interacción Social Universitaria
G81: Bienestar Universitario
G82: Admisiones y Registro
G83: Graduados
G84: Dialogando con el Mundo
G85: Talento Humano
G86: Jurídica
G87: Financiera
G88: Sistemas y Tecnología
G89: Bienes y Servicios
G90: Documental
G91: Apoyo Académico
G92: Control Interno
G93: Control Disciplinario
G94: Servicio de Atención al Ciudadano

Sheet ECO-1
B2: REGRESAR
E5: MACROPROCESO ESTRATÉGICO | M5: CÓDIGO: ESGr027
E6: PROCESO GESTIÓN SISTEMAS INTEGRADOS | M6: VERSIÓN: 7
E7: MATRIZ DE MEDICIÓN Y SEGUIMIENTO A LOS PROCESOS DE GESTIÓN | M7: VIGENCIA: 2020-03-20
M8: PÁGINA: 1 de 1
C10: FICHA DE INDICADOR
C12: MACROPROCESO | E12: Estratégico | I12: NOMBRE DEL INDICADOR | K12: Oportunidad de atención a solicitudes (análisis según tipología)
C13: PROCESO GESTIÓN | E13: Comunicaciones
C14: RESPONSABLE DE MEDICIÓN | E14: Jefe de la Oficina Asesora de Comunicaciones
C16: 1. COMPORTAMIENTO DE INDICADOR
C17: CLASIFICACIÓN DE LA MEDICIÓN | E17: 1 | H17: TIPO DE INDICADOR | J17: Eficiencia | L17: META ANUAL | N17: 0.8
C18: FORMULA | E18: NUMERADOR | G18: Total de solicitudes atendidas oportunamente *100 | L18: UNIDAD DE MEDIDA | N18: Porcentual
E19: DENOMINADOR | G19: Total de solicitudes
C20: TENDENCIA | E20: Positiva | H20: NIVEL DE SEGREGACIÓN * | J20: No Aplica | L20: ESCALA
L21: Deficiente | M21: Aceptable | N21: Bueno | O21: Excelente
L22: 0% - 60% | M22: 61% - 70% | N22: 71% - 80% | O22: 81% - 100%
C23: ORIGEN DE DATOS NUMERADOR | E23: Base de datos del módulo SIS | H23: FRECUENCIA DE LA MEDICIÓN | J23: TRIMESTRAL | L23: FRECUENCIA DE RESULTADO | N23: TRIMESTRAL
C24: ORIGEN DE DATOS DENOMINADOR | E24: Base de datos del módulo SIS
C26: RESULTADOS
J27: ANÁLISIS DE DATOS
J28: I TRIMESTRE Para el primer trimestre se respondieron 401 solicitudes de las cuales 364 solicitudes fueron resultas a tiempo, logrando cumplir el indicador, algunas solicitudes es difícil responderlas oportunamente debido a que el proceso se retrasa porque el solicitante no adjunta la información y documentos necesarios de una forma completa, clara y detallada. II TRIMESTRE Para el segundo trimestre se respondieron 757 solicitudes de las cuales 641 fueron resultas a tiempo, logrando cumplir con el indicador ya que se obtuvo un 85% como resultado y siendo la meta 80%, aun así en comparación con el trimestre anterior el resultado fue menor, y algunas solicitudes fue difícil responderlas a tiempo ya que el proceso se retrasa porque el solicitante no envía la información completa o la envía al servicio equivocado, la comunicación se ha dificultado un poco debido a la situación de confinamiento y a que se está realizando trabajo en casa, por lo que no se cuenta con todos los recursos para una oportuna respuesta. III TRIMESTRE Para el tercer trimestre se respondieron 1126 solicitudes de las cuales 1021 fueron resueltas a tiempo, logrando cumplir con el indicador ya que se obtuvo un 91% como resultado y siendo la meta 80%, en comparación con el trimestre anterior el resultado fue mayor, la Oficina Asesora de Comunicaciones volvió a incrementar su porcentaje al responder las solicitudes oportunamente; aunque se ha logrado que la mayoría de solicitantes hagan el debido proceso a la hora de hacer solicitudes, hay quienes aun no cumplen con lo requerido por lo que se retrasan los procesos. IV TRIMESTRE Durante el cuarto trimestre se respondieron 1669 solicitudes de las cuales 1370 fueron resultas a tiempo, se logro cumplir la meta establecida con un resultado del 82%, sin embargo, y en comparación con los trimestres anteriores, el resultado fue decreciente debido a que la cantidad de solicitudes fue mayor, se evidencio como la cantidad de solicitudes recibidas fue en ascenso cada trimestre, lo cual ocasiono el incremento en el volumen y flujo de trabajo; el tiempo de respuesta bajo debido a que en una misma solicitud el usuario realizaba varias solicitudes sin tener en cuenta que el tiempo de respuesta para cada una es diferente, por lo que si una solicitud que tiene un día para ser resuelta se encuentra realizada a la par con una solicitudes que tiene 6 días para su desarrollo el resultado final de la solicitud se va a ver afectado hasta que no se cierre la misma, por ende la plataforma mostrara que se atendió en destiempo; lo anterior de conformidad con los tiempos acordados en el Manual de Comunicaciones. Por otra parte y a causa de la pandemia, se vio la necesidad de trasladar el trabajo a la virtualidad, todo se concentro en la era tecnológica, algunos de los funcionarios de la Oficina debieron disponer de sus equipos personales para desarrollar sus actividades donde estos equipos se vieron afectados y requirieron mantenimiento, así como algunos equipos de la Institución que estaban en uso también debían entrar a mantenimiento, por lo que las solicitudes se retrasaron mientras estos recibían apoyo técnico.
J37: ACCIÓN FORMULADA
J38: I TRIMESTRE Las acciones están encaminadas a tener mayor control en las respuestas; que las solicitudes se hagan de forma individual, no en una misma solicitud varios servicios, ya que cada servicio tiene sus tiempos establecidos, ejemplo se solicita un diseño grafico para publicar en la web, diseño tiene mas días para realizar la pieza y mientras se diseña y aprueba, la publicación web se retrasa quedando esta a destiempo. lo otro es crear conciencia de los tiempos que se manejan según manual de comunicaciones, para que los solicitantes los respeten y aprueben oportunamente ya que esperan hasta ultimo momento para hacer correcciones afectando nuestro trabajo oportuno. II TRIMESTRE Se buscara mejorar internamente la comunicación del equipo para articularse, ya que muchas veces los solicitantes en una misma solicitud realizan solicitudes a diferentes servicios, y cada servicio tiene tiempos diferentes de respuesta por lo que se puede ver retrasado este en algún punto, se espera trabajar conjunta y oportunamente entre el equipo de comunicaciones para que no se pase por alto ningún detalle, así mismo crear conciencia en la comunidad solicitante para que tengan presentes los tiempos, y realicen las solicitudes con antelación y que del mismo modo envíen toda la información, datos y aspectos a tener en cuenta de una forma completa y detalla para poder trabajar oportunamente. III TRIMESTRE Las acciones están orientadas a tener mayor control en las respuestas; así mismo que las solicitudes se hagan de forma individual, no en una misma solicitud varios servicios, ya que cada servicio tiene sus tiempos establecidos e internamente se depende de algún otro servicio para dar cumplimiento con el requerimiento; por lo que se ha acudido a la dirección de Sistemas y Tecnología para hacer algunos ajustes en la plataforma y del mismo modo la emisión de una circular por parte de secretaria general con los lineamientos de uso adecuado de SIS; se esta buscando generar cultura y conciencia en los solicitantes sobre el debido proceso al momento de hacer una solicitud, así como seguimiento a la misma para cerrarla oportunamente. IV TRIMESTRE Las acciones están direccionados en revisar por que se ha disminuido la oportunidad de respuesta, reuniéndose todo el equipo de la Oficina Asesora de Comunicaciones que tiene rol en SIS para dar respuesta a los solicitantes; el resultado esta por encima de la meta establecida, sin embargo, para cumplir con nuestro ideal de mejora continua es necesario revisar lineamientos, tiempos de respuesta, aspectos al momento que se hace la solicitud y por que no se esta dando la oportuna respuesta; se debe analizar que el flujo de trabajo fue muy alto en el segundo semestre del año por lo que en ocasiones el recurso humano no puede suplir todas las necesidades y requerimientos. Así mismo, es necesario crear cultura para que el solicitante haga cada solicitud con antelación y de forma separada para que alguna solicitud no se vea afectada por otra que tenga mas tiempo de respuesta, teniendo en cuenta los tiempos que están dispuestos en el Manual de Comunicaciones, ya que si se requiere publicar alguna pieza grafica, primero se debe solicitar el diseño y posteriormente si solicitar su publicación, pero si se solicitan al tiempo, el tiempo de respuesta de publicación es menor para el tiempo de respuesta del diseño, por lo que la publicación no puede cerrar hasta que este el diseño y quedan las dos solicitudes de forma inoportuna.
J44: RESPONSABLE
J45: =E14 -> Jefe de la Oficina Asesora de Comunicaciones
C48: PERIODO DE EVALUACIÓN
C49: MES | D49: =IF(J23="MENSUAL","ENERO",IF(J23="TRIMESTRAL","MARZO",IF(J23="SEMESTRAL","JUNIO",IF(J23="ANUAL",YEAR(TODAY()),"")))) -> MARZO | E49: =IF(J23="MENSUAL","FEBRERO",IF(J23="TRIMESTRAL","JUNIO",IF(J23="SEMESTRAL","DICIEMBRE",""))) -> JUNIO | F49: =IF(J23="MENSUAL","MARZO",IF(J23="TRIMESTRAL","SEPTIEMBRE","")) -> SEPTIEMBRE | G49: =IF(J23="MENSUAL","ABRIL",IF(J23="TRIMESTRAL","DICIEMBRE","")) -> DICIEMBRE | H49: =IF(J23="MENSUAL","MAYO","") ->  | I49: =IF(J23="MENSUAL","JUNIO","") ->  | J49: =IF(J23="MENSUAL","JULIO","") ->  | K49: =IF(J23="MENSUAL","AGOSTO","") ->  | L49: =IF(J23="MENSUAL","SEPTIEMBRE","") ->  | M49: =IF(J23="MENSUAL","OCTUBRE","") ->  | N49: =IF(J23="MENSUAL","NOVIEMBRE","") ->  | O49: =IF(J23="MENSUAL","DICIEMBRE","") -> 
C50: =G18 -> Total de solicitudes atendidas oportunamente *100 | D50: 364 | E50: 641 | F50: 1021 | G50: 1370
C51: =G19 -> Total de solicitudes | D51: 401 | E51: 757 | F51: 1126 | G51: 1669
C52: VALOR | D52: =IFERROR(IF($E$17=1,D50/D51,IF($E$17=2,D50,"")),"") -> 0.9077306733 | E52: =IFERROR(IF($E$17=1,E50/E51,IF($E$17=2,E50,"")),"") -> 0.8467635403 | F52: 0.906749556 | G52: 0.8208508089
C53: META PONDERADA | D53: =IF(AND(N23="ANUAL",J23="MENSUAL"),N17/12,IF(AND(N23="ANUAL",J23="TRIMESTRAL"),N17/4,IF(AND(N23="ANUAL",J23="SEMESTRAL"),N17/2,IF(AND(N23="ANUAL",J23="ANUAL"),N17,IF(AND(N23="SEMESTRAL",J23="MENSUAL"),N17/6,IF(AND(N23="SEMESTRAL",J23="TRIMESTRAL"),N17/2,IF(AND(N23="SEMESTRAL",J23="SEMESTRAL"),N17,IF(AND(N23="SEMESTRAL",J23="ANUAL"),"REVISAR FRECUENCIAS",IF(AND(N23="TRIMESTRAL",J23="MENSUAL"),N17/3,IF(AND(N23="TRIMESTRAL",J23="TRIMESTRAL"),N17,IF(AND(N23="TRIMESTRAL",J23="SEMESTRAL"),"REVISAR FRECUENCIAS",IF(AND(N23="TRIMESTRAL",J23="ANUAL"),"REVISAR FRECUENCIAS",IF(AND(N23="MENSUAL",J23="MENSUAL"),N17,IF(AND(N23="MENSUAL",J23="TRIMESTRAL"),"REVISAR FRECUENCIAS",IF(AND(N23="MENSUAL",J23="SEMESTRAL"),"REVISAR FRECUENCIAS",IF(AND(N23="MENSUAL",J23="ANUAL"),"REVISAR FRECUENCIAS","")))))))))))))))) -> 0.8 | E53: =IF(AND(N23="ANUAL",J23="MENSUAL"),N17/12+D53,IF(AND(N23="ANUAL",J23="TRIMESTRAL"),N17/4+D53,IF(AND(N23="ANUAL",J23="SEMESTRAL"),N17/2+D53,IF(AND(N23="SEMESTRAL",J23="MENSUAL"),N17/6+D53,IF(AND(N23="SEMESTRAL",J23="TRIMESTRAL"),N17/2+D53,IF(AND(N23="SEMESTRAL",J23="SEMESTRAL"),N17,IF(AND(N23="TRIMESTRAL",J23="MENSUAL"),N17/3+D53,IF(AND(N23="TRIMESTRAL",J23="TRIMESTRAL"),N17,IF(AND(N23="MENSUAL",J23="MENSUAL"),N17,""))))))))) -> 0.8 | F53: =IF(AND(N23="ANUAL",J23="MENSUAL"),N17/12+E53,IF(AND(N23="ANUAL",J23="TRIMESTRAL"),N17/4+E53,IF(AND(N23="SEMESTRAL",J23="MENSUAL"),N17/6+E53,IF(AND(N23="SEMESTRAL",J23="TRIMESTRAL"),N17/2,IF(AND(N23="TRIMESTRAL",J23="MENSUAL"),N17/3+E53,IF(AND(N23="TRIMESTRAL",J23="TRIMESTRAL"),N17,IF(AND(N23="MENSUAL",J23="MENSUAL"),N17,""))))))) -> 0.8 | G53: =IF(AND(N23="ANUAL",J23="MENSUAL"),N17/12+F53,IF(AND(N23="ANUAL",J23="TRIMESTRAL"),N17/4+F53,IF(AND(N23="SEMESTRAL",J23="MENSUAL"),N17/6+F53,IF(AND(N23="SEMESTRAL",J23="TRIMESTRAL"),N17/2+F53,IF(AND(N23="TRIMESTRAL",J23="MENSUAL"),N17/3,IF(AND(N23="TRIMESTRAL",J23="TRIMESTRAL"),N17,IF(AND(N23="MENSUAL",J23="MENSUAL"),N17,""))))))) -> 0.8 | H53: =IF(AND($N$23="ANUAL",$J$23="MENSUAL"),$N$17/12+G53,IF(AND(N23="SEMESTRAL",J23="MENSUAL"),N17/6+G53,IF(AND(N23="TRIMESTRAL",J23="MENSUAL"),N17/3+G53,IF(AND(N23="MENSUAL",J23="MENSUAL"),N17,"")))) ->  | I53: =IF(AND($N$23="ANUAL",$J$23="MENSUAL"),$N$17/12+H53,IF(AND(N23="SEMESTRAL",J23="MENSUAL"),N17/6+H53,IF(AND(N23="TRIMESTRAL",J23="MENSUAL"),N17/3+H53,IF(AND(N23="MENSUAL",J23="MENSUAL"),N17,"")))) ->  | J53: =IF(AND($N$23="ANUAL",$J$23="MENSUAL"),$N$17/12+I53,IF(AND(N23="SEMESTRAL",J23="MENSUAL"),N17/6,IF(AND(N23="TRIMESTRAL",J23="MENSUAL"),N17/3,IF(AND(N23="MENSUAL",J23="MENSUAL"),N17,"")))) ->  | K53: =IF(AND($N$23="ANUAL",$J$23="MENSUAL"),$N$17/12+J53,IF(AND(N23="SEMESTRAL",J23="MENSUAL"),N17/6+J53,IF(AND(N23="TRIMESTRAL",J23="MENSUAL"),N17/3+J53,IF(AND(N23="MENSUAL",J23="MENSUAL"),N17,"")))) ->  | L53: =IF(AND($N$23="ANUAL",$J$23="MENSUAL"),$N$17/12+K53,IF(AND(N23="SEMESTRAL",J23="MENSUAL"),N17/6+K53,IF(AND(N23="TRIMESTRAL",J23="MENSUAL"),N17/3+K53,IF(AND(N23="MENSUAL",J23="MENSUAL"),N17,"")))) ->  | M53: =IF(AND($N$23="ANUAL",$J$23="MENSUAL"),$N$17/12+L53,IF(AND(N23="SEMESTRAL",J23="MENSUAL"),N17/6+L53,IF(AND(N23="TRIMESTRAL",J23="MENSUAL"),N17/3,IF(AND(N23="MENSUAL",J23="MENSUAL"),N17,"")))) ->  | N53: =IF(AND($N$23="ANUAL",$J$23="MENSUAL"),$N$17/12+M53,IF(AND(N23="SEMESTRAL",J23="MENSUAL"),N17/6+M53,IF(AND(N23="TRIMESTRAL",J23="MENSUAL"),N17/3+M53,IF(AND(N23="MENSUAL",J23="MENSUAL"),N17,"")))) ->  | O53: =IF(AND($N$23="ANUAL",$J$23="MENSUAL"),$N$17/12+N53,IF(AND(N23="SEMESTRAL",J23="MENSUAL"),N17/6+N53,IF(AND(N23="TRIMESTRAL",J23="MENSUAL"),N17/3+N53,IF(AND(N23="MENSUAL",J23="MENSUAL"),N17,"")))) -> 
C55: NIVEL DE SEGREGACIÓN *
C56: UNIDAD SEGREGADA (Ej. Facultad, Programa Académico, Área) | G56: RESULTADO | K56: ANÁLISIS DE DATOS SEGREGADO
G75: Estratégico | J75: Eficacia
G76: Misional | J76: Eficiencia
G77: Apoyo | J77: Acreditación
G78: Seguimiento, Medición, Análisis y Evaluación | J78: Positiva
G79: Direccionamiento Estratégico | J79: Negativa
G80: Planeación Institucional | J80: Por Unidad Regional
G81: Proyectos Especiales y Relaciones Interinstitucionales | J81: Por Facultad
G82: Sistemas Integrados | J82: Por Programa Académico
G83: Autoevaluación y Acreditación | J83: Por área
G84: Comunicaciones | J84: Por Laboratorio
G85: Formación y Aprendizaje | J85: Otros
G86: Ciencia, Tecnología e Innovación | J86: No Aplica
G87: Interacción Social Universitaria
G88: Bienestar Universitario
G89: Admisiones y Registro
G90: Graduados
G91: Dialogando con el Mundo
G92: Talento Humano
G93: Jurídica
G94: Financiera
G95: Sistemas y Tecnología
G96: Bienes y Servicios
G97: Documental
G98: Apoyo Académico
G99: Control Interno
G100: Control Disciplinario
G101: Servicio de Atención al Ciudadano

Sheet ECO-2
B2: REGRESAR
E5: MACROPROCESO ESTRATÉGICO | M5: CÓDIGO: ESGr027
E6: PROCESO GESTIÓN SISTEMAS INTEGRADOS | M6: VERSIÓN: 7
E7: MATRIZ DE MEDICIÓN Y SEGUIMIENTO A LOS PROCESOS DE GESTIÓN | M7: VIGENCIA: 2020-03-20
M8: PÁGINA: 1 de 1
C10: FICHA DE INDICADOR
C12: MACROPROCESO | E12: Estratégico | I12: NOMBRE DEL INDICADOR | K12: Nivel de satisfacción del usuario
C13: PROCESO GESTIÓN | E13: Comunicaciones
C14: RESPONSABLE DE MEDICIÓN | E14: Jefe de la Oficina Asesora de Comunicaciones
C16: 1. COMPORTAMIENTO DE INDICADOR
C17: CLASIFICACIÓN DE LA MEDICIÓN | E17: 1 | H17: TIPO DE INDICADOR | J17: Eficiencia | L17: META ANUAL | N17: 0.88
C18: FORMULA | E18: NUMERADOR | G18: Número de solicitudes con calificación buenas y/o excelentes *100 | L18: UNIDAD DE MEDIDA | N18: Porcentual
E19: DENOMINADOR | G19: Número de solicitudes calificadas
C20: TENDENCIA | E20: Positiva | H20: NIVEL DE SEGREGACIÓN * | J20: No Aplica | L20: ESCALA
L21: Deficiente | M21: Aceptable | N21: Bueno | O21: Excelente
L22: 0% - 60% | M22: 61% - 75% | N22: 76% - 88% | O22: 89% - 100%
C23: ORIGEN DE DATOS NUMERADOR | E23: Base de datos del módulo SIS | H23: FRECUENCIA DE LA MEDICIÓN | J23: TRIMESTRAL | L23: FRECUENCIA DE RESULTADO | N23: TRIMESTRAL
C24: ORIGEN DE DATOS DENOMINADOR | E24: Base de datos del módulo SIS
C26: RESULTADOS
J27: ANÁLISIS DE DATOS
J28: I TRIMESTRE En el primer trimestre se recibieron 414 solicitudes entre 01 de enero y 31 de marzo de 2020, 364 recibieron calificación, teniendo en cuenta las recomendaciones de la auditoria se omiten las solicitudes sin calificación debido a que estas se respondieron en los tiempos establecidos para cada servicio, pero el solicitante no ingreso para dar su calificación y por eso mismo se veía afectado el resultado de nuestro indicador, al aplicar la recomendación se omitieron 37 solicitudes sin calificación dando por resultado un 99% en el nivel de satisfacción del usuario. II TRIMESTRE En el segundo trimestre se reciben 757 solicitudes de las cuales 686 están calificadas de la siguiente forma: 4 malo, 9 regular, 211 bueno, 462 excelente y 71 sin calificar, en este sentido la implementación del cumplimiento en un 98%, lo que respecta a una excelente satisfacción del usuario, pasando la meta establecida, sin embargo aun se debe hacer seguimiento y verificación a aquellas solicitudes sin calificación; se bajo un punto en el porcentaje con respecto al trimestre anterior. III TRIMESTRE En el tercer trimestre se reciben 1126 solicitudes de las cuales 1093 están calificadas, 33 sin calificar, 1 deficiente, 1 mal, 5 regular, 294 buenos y 792 excelentes; las solicitudes con buenos y excelentes representan 1086 solicitudes, logrando un resultado de 99% superando la meta establecida y mejorando en comparación del trimestre anterior, las solicitudes sin calificar se redujeron notoriamente, evidenciando que los usuarios están satisfechos con los servicios prestados. IV TRIMESTRE En el cuarto trimestre se recibieron 1669 solicitudes de las cuales 1157 fueron calificadas, 112 no se calificaron, hubo 1 deficiente, 5 mal, 12 regular, 578 buenos, y 961 excelentes; las solicitudes calificadas con buenos y excelentes representan 1539 solicitudes, logrando un resultado de 99% sobrepasando notoriamente la meta establecida manteniendo el resultado en comparación con los trimestres anteriores, así mismo se puede resaltar que los usuarios están satisfechos con los servicios prestados por el proceso.
J34: ACCIÓN FORMULADA
J35: I TRIMESTRE Se evidencia como el porcentaje se incremento notoriamente al suprimir las solicitudes sin calificación gracias a la acción propuesta por el auditor y al plan de mejoramiento al incrementar el porcentaje en la meta según el promedio obtenido en el año 2019, en vista que el trabajo de la oficina asesora de comunicaciones esta siendo bien visto y valorado, en busca de la mejora constante y optimización de nuestro servicios. Aunque se supero la meta establecida se requiere realizar seguimiento a las solicitudes que están sin calificación y llevar a cabo actividades para que estas sean valoradas y así poder mantener la satisfacción del usuario e incrementar el resultado en miras a obtener un 100% II TRIMESTRE Aunque se logro la meta establecida aun se requiere realizar seguimiento a aquellas solicitudes sin calificación, por lo que se enviará correos a los solicitantes que no califican pidiendo por favor su calificación, mostrándoles que esta es importante para nuestro proceso, resultados y mejora continua. III TRIMESTRE Se continua con el envió de correos a aquellos solicitantes que no califican los servicios prestados, así mismo, en la circular emitida sobre lineamientos de uso adecuado de SIS allí se indica que por favor una vez culminado el proceso de solicitud se califique el mismo; la circular fue enviada a cada proceso y su respectivo director o jefe, así como también a directores de extensiones y seccionales, decanos y coordinadores de programas ya que estas son las personas que tienen habilitado el rol para hacer solicitudes, por otra parte fue enviado a los docentes, sin embargo, ellos no tienen habilitado este rol, pero en caso de que tengan algún requerimiento allí se indicó el conducto regular es a través de su coordinador o decano de programa o facultad. IV TRIMESTRE Ya que el resultado ha sido muy bueno durante toda la vigencia 2020 y se ha mantenido de una forma significativa, es posible considerar cambiar el indicador, se debe evaluar el impacto de este, si es importante que siga su ejecución o si se deben buscar nuevos indicadores que representen de una u otra manera la satisfacción del usuario; así mismo es importante evaluar el por que aun hay solicitantes que no califican las solicitudes.
J41: RESPONSABLE
J42: =E14 -> Jefe de la Oficina Asesora de Comunicaciones
C45: PERIODO DE EVALUACIÓN
C46: MES | D46: =IF(J23="MENSUAL","ENERO",IF(J23="TRIMESTRAL","MARZO",IF(J23="SEMESTRAL","JUNIO",IF(J23="ANUAL",YEAR(TODAY()),"")))) -> MARZO | E46: =IF(J23="MENSUAL","FEBRERO",IF(J23="TRIMESTRAL","JUNIO",IF(J23="SEMESTRAL","DICIEMBRE",""))) -> JUNIO | F46: =IF(J23="MENSUAL","MARZO",IF(J23="TRIMESTRAL","SEPTIEMBRE","")) -> SEPTIEMBRE | G46: =IF(J23="MENSUAL","ABRIL",IF(J23="TRIMESTRAL","DICIEMBRE","")) -> DICIEMBRE | H46: =IF(J23="MENSUAL","MAYO","") ->  | I46: =IF(J23="MENSUAL","JUNIO","") ->  | J46: =IF(J23="MENSUAL","JULIO","") ->  | K46: =IF(J23="MENSUAL","AGOSTO","") ->  | L46: =IF(J23="MENSUAL","SEPTIEMBRE","") ->  | M46: =IF(J23="MENSUAL","OCTUBRE","") ->  | N46: =IF(J23="MENSUAL","NOVIEMBRE","") ->  | O46: =IF(J23="MENSUAL","DICIEMBRE","") -> 
C47: =G18 -> Número de solicitudes con calificación buenas y/o excelentes *100 | D47: 361 | E47: 673 | F47: 1086 | G47: 1539
C48: =G19 -> Número de solicitudes calificadas | D48: 364 | E48: 686 | F48: 1093 | G48: 1557
C49: VALOR | D49: =IFERROR(IF($E$17=1,D47/D48,IF($E$17=2,D47,"")),"") -> 0.9917582418 | E49: =IFERROR(IF($E$17=1,E47/E48,IF($E$17=2,E47,"")),"") -> 0.9810495627 | F49: 0.9935956084 | G49: 0.9884393064
